Departmental Family,Entity,Date,Expense Type,Expense Area,Supplier,Transaction Number,Amount
DEPARTMENT FOR WORK AND PENSIONS ,Corporate,02/11/2015,MEDICAL SERVICES FIXED COSTS,FG HS HDAS TCIF CONTRACT,CENTRE FOR HEALTH & DISABILITY ASSESSMENTS LTD,2033918004,"10,587,321"
DEPARTMENT FOR WORK AND PENSIONS ,European Social Fund,05/11/2015,MA ESF(D) PROGRAMME EXPENDITURE EC PREFUNDED OGDS,WWEG EUROPEAN SOCIAL FUND PROGRAMME 2007-2013,EAST OF ENGLAND LEARNING & SKILLS COUNCIL,5000001938,"8,467,408"
DEPARTMENT FOR WORK AND PENSIONS ,European Social Fund,05/11/2015,MA ESF(D) PROGRAMME EXPENDITURE EC PREFUNDED OGDS,WWEG EUROPEAN SOCIAL FUND PROGRAMME 2007-2013,EAST MIDLANDS SKILLS FUNDING AGENCY,5000001937,"7,734,816"
DEPARTMENT FOR WORK AND PENSIONS ,Corporate,26/11/2015,PIP FACE TO FACE ASSESSMENTS,FG HS PIP LOT 1,ATOS IT SERVICES UK LTD,2033954645,"5,997,244"
DEPARTMENT FOR WORK AND PENSIONS ,Corporate,11/11/2015,MEDICAL SERVICES - PERFORMANCE PAYMENTS,FG HS PIP LOT 2,CAPITA BUSINESS SERVICES LTD,2033930944,"5,455,986"
DEPARTMENT FOR WORK AND PENSIONS ,Corporate,17/11/2015,AMS SERVICES,CIO ITLR AMS,HP ENTERPRISE SERVICES UK LTD,2033941139,"4,478,032"
DEPARTMENT FOR WORK AND PENSIONS ,Corporate,26/11/2015,PIP FACE TO FACE ASSESSMENTS,FG HS PIP LOT 3,ATOS IT SERVICES UK LTD,2033954645,"4,219,534"
DEPARTMENT FOR WORK AND PENSIONS ,Corporate,10/11/2015,NETWORK SERVICES,CIO ITLR NETWORK,BT GLOBAL SERVICES,2033930004,"4,132,646"
DEPARTMENT FOR WORK AND PENSIONS ,Employment Programmes,24/11/2015,CPS LP RECOVERIES,BALANCE SHEET,DWP MANUAL PAYMENTS,2005874,"3,688,714"
DEPARTMENT FOR WORK AND PENSIONS ,European Social Fund,09/11/2015,MA ESF(D) PROGRAMME EXPENDITURE EC PREFUNDED OGDS,WWEG EUROPEAN SOCIAL FUND PROGRAMME 2007-2013,EAST MIDLANDS SKILLS FUNDING AGENCY,5000001941,"3,463,125"
DEPARTMENT FOR WORK AND PENSIONS ,Corporate,13/11/2015,CONTRACTED OUT OFFICE SERVICES,FG CD CENTRAL CONTRACTS,COFELY WORKPLACE LTD,2033937109,"3,127,818"
DEPARTMENT FOR WORK AND PENSIONS ,Corporate,17/11/2015,DESKTOP SERVICES,CIO ITLR DESKTOP,HP ENTERPRISE SERVICES UK LTD,2033941139,"3,055,820"
DEPARTMENT FOR WORK AND PENSIONS ,Corporate,16/11/2015,HOSTING SERVICES,CIO ITLR HOSTING DEL P,HP ENTERPRISE SERVICES UK LTD,2033938951,"2,987,116"
DEPARTMENT FOR WORK AND PENSIONS ,Corporate,10/11/2015,HOSTING SERVICES,CIO ITLR HOSTING DEL P,HP ENTERPRISE SERVICES UK LTD,2033929958,"2,750,082"
DEPARTMENT FOR WORK AND PENSIONS ,Corporate,30/11/2015,BELFAST BENEFIT CENTRE (RUN COSTS),CMG OPS EXTERNAL CONTRACTS/SLAS EASTERN PAYMENTS NI,DSD GROUP ACCOUNT,1007545,"2,388,881"
DEPARTMENT FOR WORK AND PENSIONS ,Corporate,09/11/2015,NETWORK SERVICES,CIO ITLR NETWORK,BT GLOBAL SERVICES,2033927270,"2,042,672"
DEPARTMENT FOR WORK AND PENSIONS ,Corporate,17/11/2015,HOSTING SERVICES,CIO ITLR HOSTING DEL P,HP ENTERPRISE SERVICES UK LTD,2033941139,"1,890,313"
DEPARTMENT FOR WORK AND PENSIONS ,Corporate,11/11/2015,NON PRIME PROPERTY COSTS,FG CD BENTON PARK VIEW,HM REVENUE & CUSTOMS,2033930647,"1,839,245"
DEPARTMENT FOR WORK AND PENSIONS ,Corporate,02/11/2015,PIP FACE TO FACE ASSESSMENTS,FG HS PIP LOT 2,CAPITA BUSINESS SERVICES LTD,2033918115,"1,750,800"
DEPARTMENT FOR WORK AND PENSIONS ,Corporate,20/11/2015,NON PRIME UTILITIES,FG CD DWP GAS & ELECTRICITY PAYMENTS / RECHARGES,EDF ENERGY 1 LTD SCC UTILITIES ONLY,2033947719,"1,743,409"
DEPARTMENT FOR WORK AND PENSIONS ,Corporate,11/11/2015,NON PRIME PROPERTY COSTS,FG CD OPS & CMG ESTATES NON-PRIME COSTS,HM REVENUE & CUSTOMS,2033930817,"1,658,874"
DEPARTMENT FOR WORK AND PENSIONS ,Corporate,17/11/2015,AMS SERVICES,CIO ITLR AMS - IBM,IBM UNITED KINGDOM LTD,2033940553,"1,639,091"
DEPARTMENT FOR WORK AND PENSIONS ,Corporate,02/11/2015,BELFAST BENEFIT CENTRE (RUN COSTS),OPS BEN BD LN BELFAST,DEPARTMENT FOR SOCIAL DEVELOPMENT,1007493,"1,524,174"
DEPARTMENT FOR WORK AND PENSIONS ,Corporate,24/11/2015,BELFAST BENEFIT CENTRE (RUN COSTS),OPS BEN BD LN BELFAST,DEPARTMENT FOR SOCIAL DEVELOPMENT,1007534,"1,513,683"
DEPARTMENT FOR WORK AND PENSIONS ,Corporate,03/11/2015,STATIONERY/ PUBLICATIONS/IT CONSUMABLES,CHG STATE PENSION REFORM SINGLE TIER,HM REVENUE & CUSTOMS,2005825,"1,509,332"
DEPARTMENT FOR WORK AND PENSIONS ,Corporate,13/11/2015,HOSTING SERVICES,CIO ITLR HOSTING DEL P,HP ENTERPRISE SERVICES UK LTD,2033934461,"1,484,147"
DEPARTMENT FOR WORK AND PENSIONS ,Corporate,11/11/2015,NON PRIME PROPERTY COSTS,FG CD DURHAM HOUSE,HM REVENUE & CUSTOMS,2033930818,"1,367,832"
DEPARTMENT FOR WORK AND PENSIONS ,Corporate,03/11/2015,APPS DEV GOODS AND SERVICES - NON-VAT RECOVERABLE,CHG STATE PENSION REFORM SINGLE TIER,HM REVENUE & CUSTOMS,2005825,"1,332,518"
DEPARTMENT FOR WORK AND PENSIONS ,Corporate,26/11/2015,AMS SERVICES,CIO ITLR AMS - ACCENTURE,ACCENTURE UK LTD,2033955538,"1,298,775"
DEPARTMENT FOR WORK AND PENSIONS ,Corporate,12/11/2015,HOSTING SERVICES,CIO ITLR HOSTING DEL P,HP ENTERPRISE SERVICES UK LTD,2033933678,"1,245,935"
DEPARTMENT FOR WORK AND PENSIONS ,Corporate,12/11/2015,PUBLICITY ADVERTISING MEDIA,CHG ERSP COMMS,CARAT,2033933347,"1,142,591"
DEPARTMENT FOR WORK AND PENSIONS ,Corporate,10/11/2015,SIAM FIXED PRICE CONTRACTS,CIO ITLR SIAM,HP ENTERPRISE SERVICES UK LTD,2033929958,"1,054,169"
DEPARTMENT FOR WORK AND PENSIONS ,Corporate,16/11/2015,TREDDS IS IT CONSULTANCY (HOSTING) NON ADVICE,CHG UC PATHFINDER DELIVERY MANAGEMENT,HP ENTERPRISE SERVICES UK LTD,2033938951,"1,027,969"
DEPARTMENT FOR WORK AND PENSIONS ,Corporate,23/11/2015,CONTRACTED OUT OFFICE SERVICES,OPS NET CC CAPITA,CAPITA,2033948629,"1,007,948"
DEPARTMENT FOR WORK AND PENSIONS ,Corporate,18/11/2015,DESKTOP SERVICES,CIO ITLR DESKTOP,HP ENTERPRISE SERVICES UK LTD,2033943610,"926,751"
DEPARTMENT FOR WORK AND PENSIONS ,Corporate,25/11/2015,NON PRIME PROPERTY COSTS,FG CD OPS & CMG ESTATES NON-PRIME COSTS,HMRC,2033952659,"920,272"
DEPARTMENT FOR WORK AND PENSIONS ,Corporate,09/11/2015,CONNECTIVITY,CIO ITLR PSN CONNECTIVITY,BT GLOBAL SERVICES,2033927270,"837,951"
DEPARTMENT FOR WORK AND PENSIONS ,Corporate,27/11/2015,HOSTING SERVICES,CIO ITLR HOSTING DEL P,HP ENTERPRISE SERVICES UK LTD,2033957563,"812,504"
DEPARTMENT FOR WORK AND PENSIONS ,Corporate,26/11/2015,PIP PAPER BASED ASSESSMENTS,FG HS PIP LOT 1,ATOS IT SERVICES UK LTD,2033954645,"742,005"
DEPARTMENT FOR WORK AND PENSIONS ,Corporate,27/11/2015,NON-TREDDS IS IT APPS DEV MANDAY,CHG UC PATHFINDER DELIVERY MANAGEMENT,ACCENTURE UK LTD,2033957665,"733,454"
DEPARTMENT FOR WORK AND PENSIONS ,Corporate,17/11/2015,NON-TREDDS IS IT APPS DEV MANDAY,CHG UC PATHFINDER DELIVERY MANAGEMENT,IBM UNITED KINGDOM LTD,2033940553,"678,014"
DEPARTMENT FOR WORK AND PENSIONS ,Corporate,09/11/2015,HOSTING SERVICES,CIO ITLR HOSTING DEL P,HP ENTERPRISE SERVICES UK LTD,2033928627,"666,314"
DEPARTMENT FOR WORK AND PENSIONS ,Corporate,12/11/2015,NETWORK SERVICES,CIO ITLR NETWORK,BT GLOBAL SERVICES,2033933733,"623,902"
DEPARTMENT FOR WORK AND PENSIONS ,Corporate,26/11/2015,PIP PAPER BASED ASSESSMENTS,FG HS PIP LOT 3,ATOS IT SERVICES UK LTD,2033954645,"584,957"
DEPARTMENT FOR WORK AND PENSIONS ,Corporate,13/11/2015,CONTRACTED OUT OFFICE SERVICES,FG CD OFFICE SERVICES,COFELY WORKPLACE LTD,2033937109,"577,459"
DEPARTMENT FOR WORK AND PENSIONS ,Corporate,23/11/2015,NON-TREDDS IS IT APPS DEV MANDAY,CHG UC PATHFINDER DELIVERY MANAGEMENT,ACCENTURE UK LTD,2033948680,"545,773"
DEPARTMENT FOR WORK AND PENSIONS ,Corporate,17/11/2015,TREDDS APPS DEV MANDAYS,CHG PIP IT PHASE 5,HP ENTERPRISE SERVICES UK LTD,2033941139,"533,647"
DEPARTMENT FOR WORK AND PENSIONS ,Housing Benefits,13/11/2015,HOUSING BENEFIT ADMINISTRATION,HB ENGLAND,BIRMINGHAM CITY COUNCIL,2033934175,"526,694"
DEPARTMENT FOR WORK AND PENSIONS ,Corporate,10/11/2015,CONNECTIVITY,CIO ITLR PSN CONNECTIVITY,BT GLOBAL SERVICES,2033930004,"514,483"
DEPARTMENT FOR WORK AND PENSIONS ,Corporate,23/11/2015,NON PRIME PROPERTY COSTS,FG HS HDAS NON CONTRACT,CARTER JONAS LLP,2033949290,"513,373"
DEPARTMENT FOR WORK AND PENSIONS ,Corporate,17/11/2015,NON PRIME UTILITIES,FG CD DWP GAS & ELECTRICITY PAYMENTS / RECHARGES,CORONA ENERGY RETAIL 4 LTD SCC UTILITIES ONLY,2033941646,"501,211"
DEPARTMENT FOR WORK AND PENSIONS ,Corporate,06/11/2015,PUBLICITY ADVERTISING MEDIA,CHG ERSP COMMS,CARAT,2033926037,"478,735"
DEPARTMENT FOR WORK AND PENSIONS ,Corporate,18/11/2015,IT Owned Additions Cost,CIO SECURITY CONTRACT SSOC,COMPUTACENTER UK LTD,2033943331,"473,019"
DEPARTMENT FOR WORK AND PENSIONS ,Corporate,23/11/2015,SIMPLE PAYMENT SERVICE,FG FIN CONT COBAP CHEQUES,CITIBANK GLOBAL CORPORATE BANKING,2033948924,"465,390"
DEPARTMENT FOR WORK AND PENSIONS ,Corporate,03/11/2015,SIMPLE PAYMENT SERVICE,FG FIN CONT COBAP CHEQUES,CITIBANK GLOBAL CORPORATE BANKING,2033920652,"455,883"
DEPARTMENT FOR WORK AND PENSIONS ,Corporate,03/11/2015,REMOTE STORAGE COSTS VAT RECOV,FG CD CENTRAL CONTRACTS,CAPITA BUSINESS SERVICES LTD,2033919792,"447,195"
DEPARTMENT FOR WORK AND PENSIONS ,Corporate,23/11/2015,ADEP AM SERVICES - VAT NON-RECOVERABLE,CIO TECH PLATFORM IMP MOSAIC,ACCENTURE UK LTD,2033948680,"430,469"
DEPARTMENT FOR WORK AND PENSIONS ,Employment Programmes,12/11/2015,YOUTH PROGRAMMES,WWEG EP NATIONAL,ENERGISE INNOVATION LTD,2033933393,"410,436"
DEPARTMENT FOR WORK AND PENSIONS ,Housing Benefits,13/11/2015,HOUSING BENEFIT ADMINISTRATION,HB SCOTLAND,CITY OF GLASGOW,2033934243,"409,974"
DEPARTMENT FOR WORK AND PENSIONS ,European Social Fund,20/11/2015,MA ESF(D) PROGRAMME EXPENDITURE EC PREFUNDED THIRD PARTIES,WWEG EUROPEAN SOCIAL FUND PROGRAMME 2007-2013,CORNWALL COLLEGE,5000001950,"405,690"
DEPARTMENT FOR WORK AND PENSIONS ,Corporate,17/11/2015,NETWORK SERVICES,OPS OPE C&I BUSINESS GENERATED CHANGE - IT,BT GLOBAL SERVICES,2033941370,"401,949"
DEPARTMENT FOR WORK AND PENSIONS ,Corporate,04/11/2015,CCS MANAGED SERVICE FEE,F&C CD STRATEGY AND BUSINESS MANAGEMENT,CROWN COMMERCIAL SERVICE,2005830,"375,000"
DEPARTMENT FOR WORK AND PENSIONS ,Corporate,23/11/2015,CONTRACTED OUT OFFICE SERVICES,OPS NET CC NETWORK MANAGEMENT TEAM,CAPITA BUSINESS SERVICES LTD,2033949117,"367,157"
DEPARTMENT FOR WORK AND PENSIONS ,Corporate,12/11/2015,PACS INTER-VOTE CREDITOR,BALANCE SHEET,DWP MANUAL PAYMENTS,2005839,"366,252"
DEPARTMENT FOR WORK AND PENSIONS ,Corporate,02/11/2015,MEDICAL SERVICES FIXED COSTS,FG HS HDAS CONTRACT,CENTRE FOR HEALTH & DISABILITY ASSESSMENTS LTD,2033918004,"355,855"
DEPARTMENT FOR WORK AND PENSIONS ,Corporate,17/11/2015,TREDDS APPS DEV MANDAYS,CIO TECH PLATFORM IMP VME R CACS-R,HP ENTERPRISE SERVICES UK LTD,2033941139,"352,881"
DEPARTMENT FOR WORK AND PENSIONS ,Corporate,30/11/2015,ADEP AM SERVICES - VAT NON-RECOVERABLE,CHG UC SECURITY,BAE SYSTEMS APPLIED INTELLIGENCE LTD,2033959841,"350,752"
DEPARTMENT FOR WORK AND PENSIONS ,Corporate,27/11/2015,NON-TREDDS IS IT CONSULTANCY (HOSTING) NON ADVICE,CHG UC DIGITAL SERVICE CENTRES,DELOITTE LLP,2033956713,"339,340"
DEPARTMENT FOR WORK AND PENSIONS ,Corporate,13/11/2015,CONNECTIVITY,CIO ENTERPRISE INFRASTRUCTURE CORE,BT GLOBAL SERVICES,2033934873,"333,630"
DEPARTMENT FOR WORK AND PENSIONS ,Corporate,17/11/2015,TREDDS IS IT CONSULTANCY (HOSTING) NON ADVICE,CIO TECH PLATFORM IMP VME R RESIDUAL COSTS,HP ENTERPRISE SERVICES UK LTD,2033941139,"309,070"
DEPARTMENT FOR WORK AND PENSIONS ,Corporate,06/11/2015,SOFTWARE LICENCES GREATER THAN ONE YEAR TERM,F&C CD STRATEGY AND BUSINESS MANAGEMENT,BRAVO SOLUTION UK LTD,2033926903,"306,915"
DEPARTMENT FOR WORK AND PENSIONS ,Corporate,17/11/2015,NON-TREDDS IS IT APPS DEV MANDAY,CIO TECH PLATFORM IMP CIS R,IBM UNITED KINGDOM LTD,2033940553,"306,631"
DEPARTMENT FOR WORK AND PENSIONS ,Corporate,19/11/2015,CONTRACTORS & STAFF SUBSTITUTIONS,CHG UC DESIGN & BUILD PROGRAMME MANAGER,CAPITA BUSINESS SERVICES LTD,2033944240,"304,193"
DEPARTMENT FOR WORK AND PENSIONS ,Corporate,13/11/2015,NON-TREDDS IS IT CONSULTANCY (HOSTING) NON ADVICE,CHG UC DIGITAL SERVICE CENTRES,DELOITTE LLP,2033936718,"303,747"
DEPARTMENT FOR WORK AND PENSIONS ,Corporate,17/11/2015,NETWORK SERVICES,CIO ITLR NETWORK,BT GLOBAL SERVICES,2033941370,"299,586"
DEPARTMENT FOR WORK AND PENSIONS ,Corporate,06/11/2015,HOSTING SERVICES,CIO ITLR HOSTING DEL P,HP ENTERPRISE SERVICES UK LTD,2033926616,"293,379"
DEPARTMENT FOR WORK AND PENSIONS ,Corporate,02/11/2015,NON-TREDDS IS IT APPS DEV MANDAY,CIO PENSIONS & DISABLED SERVICE TUO,ATOS ORIGIN IT SERVICES UK LTD,2033918828,"292,480"
DEPARTMENT FOR WORK AND PENSIONS ,Corporate,27/11/2015,NON-TREDDS IS IT SERVICES (AMS),CIO GG SERVICE DELIVERY,ATOS ORIGIN IT SERVICES UK LTD,2033957779,"291,870"
DEPARTMENT FOR WORK AND PENSIONS ,Corporate,11/11/2015,CONTRACTORS & STAFF SUBSTITUTIONS,CHG NSP DIGITAL,DELOITTE LLP,2033932790,"284,018"
DEPARTMENT FOR WORK AND PENSIONS ,Corporate,02/11/2015,NON-TREDDS IS IT SERVICES (AMS),CIO GG SERVICE DELIVERY,ATOS ORIGIN IT SERVICES UK LTD,2033918828,"281,214"
DEPARTMENT FOR WORK AND PENSIONS ,Corporate,23/11/2015,CONTRACTED OUT OFFICE SERVICES,UCO DIRECTOR CAPITA OUTSOURCING,CAPITA BUSINESS SERVICES LTD,2033949117,"280,166"
DEPARTMENT FOR WORK AND PENSIONS ,Corporate,13/11/2015,CONTRACTED OUT OFFICE SERVICES,FG CD CENTRAL CONTRACTS AGILITY,COFELY WORKPLACE LTD,2033937109,"276,527"
DEPARTMENT FOR WORK AND PENSIONS ,Corporate,27/11/2015,NON-TREDDS IS IT APPS DEV MANDAY,CIO PENSIONS & DISABLED SERVICE TUO,ATOS ORIGIN IT SERVICES UK LTD,2033957779,"272,651"
DEPARTMENT FOR WORK AND PENSIONS ,Corporate,16/11/2015,TREDDS APPS DEV MANDAYS,CHG PIP IT ASSESSMENT TOOL,HP ENTERPRISE SERVICES UK LTD,2033938951,"258,109"
DEPARTMENT FOR WORK AND PENSIONS ,Corporate,24/11/2015,NON-TREDDS IS IT SERVICES (HOSTING),CIO EUC INITIATIVES,DYNATRACE LTD,2033951219,"256,861"
DEPARTMENT FOR WORK AND PENSIONS ,Corporate,17/11/2015,NON-TREDDS IS IT APPS DEV MANDAY,CIO ENTERPRISE INFRASTRUCTURE CONTRACT CORE HOSTING,IBM UNITED KINGDOM LTD,2033940553,"250,904"
DEPARTMENT FOR WORK AND PENSIONS ,Corporate,16/11/2015,TREDDS APPS DEV MANDAYS,CHG UC PATHFINDER DELIVERY MANAGEMENT,HP ENTERPRISE SERVICES UK LTD,2033938951,"248,052"
DEPARTMENT FOR WORK AND PENSIONS ,Corporate,26/11/2015,CONTRACTORS & STAFF SUBSTITUTIONS,CHG UC DESIGN & BUILD PROGRAMME MANAGER,CAPITA BUSINESS SERVICES LTD,2033956009,"244,444"
DEPARTMENT FOR WORK AND PENSIONS ,Housing Benefits,13/11/2015,HOUSING BENEFIT ADMINISTRATION,HB ENGLAND,DURHAM COUNCIL,2033934301,"241,653"
DEPARTMENT FOR WORK AND PENSIONS ,Corporate,17/11/2015,TREDDS APPS DEV MANDAYS,CHG FRAUD & ERROR STRATEGY,HP ENTERPRISE SERVICES UK LTD,2033941139,"241,034"
DEPARTMENT FOR WORK AND PENSIONS ,Housing Benefits,13/11/2015,HOUSING BENEFIT ADMINISTRATION,HB ENGLAND,HACKNEY LBC,2033934153,"235,881"
DEPARTMENT FOR WORK AND PENSIONS ,Housing Benefits,13/11/2015,HOUSING BENEFIT ADMINISTRATION,HB ENGLAND,BRADFORD METROPOLITAN BOROUGH COUNCIL,2033934039,"235,204"
DEPARTMENT FOR WORK AND PENSIONS ,Corporate,02/11/2015,PIP PAPER BASED ASSESSMENTS,FG HS PIP LOT 2,CAPITA BUSINESS SERVICES LTD,2033918115,"226,681"
DEPARTMENT FOR WORK AND PENSIONS ,Corporate,04/11/2015,CCS MANAGED SERVICE FEE,F&C CD STRATEGY AND BUSINESS MANAGEMENT,CROWN COMMERCIAL SERVICE,2005829,"219,750"
DEPARTMENT FOR WORK AND PENSIONS ,Housing Benefits,13/11/2015,HOUSING BENEFIT ADMINISTRATION,HB ENGLAND,BRISTOL CITY COUNCIL,2033934052,"215,328"
DEPARTMENT FOR WORK AND PENSIONS ,Corporate,04/11/2015,CONTRACTORS & STAFF SUBSTITUTIONS,CHG UC DESIGN & BUILD PROGRAMME MANAGER,CAPITA BUSINESS SERVICES LTD,2033921245,"215,234"
DEPARTMENT FOR WORK AND PENSIONS ,European Social Fund,02/11/2015,MA ESF(D) PROGRAMME EXPENDITURE EC PREFUNDED OGDS,WWEG EUROPEAN SOCIAL FUND PROGRAMME 2007-2013,GREATER LONDON AUTHORITY,5000001930,"214,366"
DEPARTMENT FOR WORK AND PENSIONS ,Corporate,04/11/2015,CONTRACTED OUT OFFICE SERVICES,UCO DIRECTOR CAPITA OUTSOURCING,CAPITA BUSINESS SERVICES LTD,2033922196,"209,406"
DEPARTMENT FOR WORK AND PENSIONS ,Corporate,03/11/2015,NON-TREDDS IS IT SERVICES (HOSTING),CIO GG SERVICE DELIVERY,ATOS ORIGIN IT SERVICES UK LTD,2033920802,"202,649"
DEPARTMENT FOR WORK AND PENSIONS ,Corporate,16/11/2015,TREDDS APPS DEV MANDAYS,CHG PIP IT PHASE 5,HP ENTERPRISE SERVICES UK LTD,2033938951,"201,093"
DEPARTMENT FOR WORK AND PENSIONS ,Corporate,13/11/2015,TREDDS APPS DEV MANDAYS,CHG STATE PENSION REFORM SINGLE TIER,HP ENTERPRISE SERVICES UK LTD,2033934461,"197,876"
DEPARTMENT FOR WORK AND PENSIONS ,Housing Benefits,13/11/2015,HOUSING BENEFIT ADMINISTRATION,HB ENGLAND,CORNWALL COUNCIL,2033934300,"192,389"
DEPARTMENT FOR WORK AND PENSIONS ,Corporate,17/11/2015,NON-TREDDS IS IT APPS DEV MANDAY,CIO ENTERPRISE INFRASTRUCTURE CORE,IBM UNITED KINGDOM LTD,2033940553,"189,992"
DEPARTMENT FOR WORK AND PENSIONS ,Corporate,27/11/2015,NON-TREDDS IS IT SERVICES (HOSTING),CIO GG SERVICE DELIVERY,ATOS ORIGIN IT SERVICES UK LTD,2033957779,"186,869"
DEPARTMENT FOR WORK AND PENSIONS ,Housing Benefits,13/11/2015,HOUSING BENEFIT ADMINISTRATION,HB SCOTLAND,EDINBURGH DISTRICT COUNCIL,2033934242,"185,849"
DEPARTMENT FOR WORK AND PENSIONS ,Employment Programmes,30/11/2015,SERVICE FEE,WWEG EP WORK CHOICE HAMPSHIRE AND ISLE OF WIGHT,CDG WISE ABILITY LTD,2033959780,"184,798"
DEPARTMENT FOR WORK AND PENSIONS ,Employment Programmes,26/11/2015,WP JSA 25+ SUSTAINMENT OUTCOME PAYMENT,WWEG EP EAST MIDLANDS INGEUS UK,INGEUS UK LTD,2033956547,"182,527"
DEPARTMENT FOR WORK AND PENSIONS ,Corporate,17/11/2015,NON-TREDDS IS IT APPS DEV MANDAY,CHG PIP IT ASSESSMENT TOOL,IBM UNITED KINGDOM LTD,2033940553,"182,455"
DEPARTMENT FOR WORK AND PENSIONS ,Corporate,19/11/2015,PROFESSIONAL SERVICES NON VAT RECOVERABLE,STR LEGAL SERVICES,GOVERNMENT LEGAL DEPARTMENT,2033946168,"180,778"
DEPARTMENT FOR WORK AND PENSIONS ,Housing Benefits,13/11/2015,HOUSING BENEFIT ADMINISTRATION,HB ENGLAND,CROYDON PEO%,2033934103,"177,988"
DEPARTMENT FOR WORK AND PENSIONS ,Corporate,10/11/2015,CONTRACTORS & STAFF SUBSTITUTIONS,CHG UC DESIGN & BUILD PROGRAMME MANAGER,CAPITA BUSINESS SERVICES LTD,2033929315,"171,651"
DEPARTMENT FOR WORK AND PENSIONS ,Employment Programmes,30/11/2015,SERVICE FEE,WWEG EP WORK CHOICE BIRMINGHAM SOLIHULL BLACK COUNTRY,ADVANCE HOUSING & SUPPORT LTD,2033960712,"166,860"
DEPARTMENT FOR WORK AND PENSIONS ,Corporate,02/11/2015,PIP GP FACTUAL REPORTS,FG HS PIP LOT 2,CAPITA BUSINESS SERVICES LTD,2033918115,"165,356"
DEPARTMENT FOR WORK AND PENSIONS ,Corporate,02/11/2015,MEDICAL SERVICES FIXED COSTS,FG HS HDAS PASSTHROUGH,CENTRE FOR HEALTH & DISABILITY ASSESSMENTS LTD,2033918004,"162,572"
DEPARTMENT FOR WORK AND PENSIONS ,Corporate,24/11/2015,NON PRIME PROPERTY COSTS,FG CD OPS & CMG ESTATES NON-PRIME COSTS,FORESTRY COMMISSION,2033951164,"161,420"
DEPARTMENT FOR WORK AND PENSIONS ,Employment Programmes,30/11/2015,SERVICE FEE,WWEG EP WORK CHOICE S LON LAMBETH SOUTHWARK WANDSWORTH,INGEUS UK LTD,2033960714,"159,345"
DEPARTMENT FOR WORK AND PENSIONS ,Employment Programmes,25/11/2015,YOUTH PROGRAMMES,WWEG EP NATIONAL,ENERGISE INNOVATION LTD,2033953137,"152,460"
DEPARTMENT FOR WORK AND PENSIONS ,Corporate,19/11/2015,PROFESSIONAL SERVICES NON VAT RECOVERABLE,STR LEGAL SERVICES,GOVERNMENT LEGAL DEPARTMENT,2033946164,"149,963"
DEPARTMENT FOR WORK AND PENSIONS ,Housing Benefits,13/11/2015,HOUSING BENEFIT ADMINISTRATION,HB ENGLAND,CITY OF WESTMINSTER,2033934254,"149,212"
DEPARTMENT FOR WORK AND PENSIONS ,Corporate,02/11/2015,NON-TREDDS IS IT SERVICES (HOSTING),CIO GG SERVICE DELIVERY,ATOS ORIGIN IT SERVICES UK LTD,2033918828,"144,202"
DEPARTMENT FOR WORK AND PENSIONS ,Corporate,13/11/2015,CONTRACTED OUT OFFICE SERVICES,FG OPS FIN DM CONTRACTS,COFELY WORKPLACE LTD,2033937109,"143,991"
DEPARTMENT FOR WORK AND PENSIONS ,Housing Benefits,13/11/2015,HOUSING BENEFIT ADMINISTRATION,HB SCOTLAND,FIFE COUNCIL,2033934108,"142,576"
DEPARTMENT FOR WORK AND PENSIONS ,Housing Benefits,13/11/2015,HOUSING BENEFIT ADMINISTRATION,HB WALES,CARDIFF CITY COUNCIL,2033934256,"141,114"
DEPARTMENT FOR WORK AND PENSIONS ,Housing Benefits,13/11/2015,HOUSING BENEFIT ADMINISTRATION,HB ENGLAND,DONCASTER METROPOLITAN BOROUGH COUNCIL,2033934059,"138,172"
DEPARTMENT FOR WORK AND PENSIONS ,Corporate,17/11/2015,AMS SERVICES,F&C FIN CONT BI,HP ENTERPRISE SERVICES UK LTD,2033941139,"137,261"
DEPARTMENT FOR WORK AND PENSIONS ,Housing Benefits,13/11/2015,HOUSING BENEFIT ADMINISTRATION,HB ENGLAND,COVENTRY CITY COUNCIL,2033934125,"136,307"
DEPARTMENT FOR WORK AND PENSIONS ,Corporate,06/11/2015,TREDDS APPS DEV MANDAYS,CHG FRAUD & ERROR STRATEGY,HP ENTERPRISE SERVICES UK LTD,2033926616,"136,142"
DEPARTMENT FOR WORK AND PENSIONS ,Corporate,09/11/2015,ADEP AM SERVICES - VAT NON-RECOVERABLE,OPS WDC WSD ATW SLT & BUSINESS SUPPORT TEAM,CAPGEMINI UK PLC,2033928626,"135,636"
DEPARTMENT FOR WORK AND PENSIONS ,Employment Programmes,26/11/2015,WP JSA 25+ SUSTAINMENT OUTCOME PAYMENT,WWEG EP EAST LONDON CAREERS DEVELOPMENT GROUP,CAREERS DEVELOPMENT GROUP,2033955275,"134,975"
DEPARTMENT FOR WORK AND PENSIONS ,Corporate,10/11/2015,NETWORK SERVICES,CIO ITLR NEW NETWORK,BT GLOBAL SERVICES,2033930004,"133,183"
DEPARTMENT FOR WORK AND PENSIONS ,Corporate,10/11/2015,CONTRACTORS & STAFF SUBSTITUTIONS,CIO UC CORE,CAPITA BUSINESS SERVICES LTD,2033929315,"132,708"
DEPARTMENT FOR WORK AND PENSIONS ,Employment Programmes,26/11/2015,WP JSA 25+ SUSTAINMENT OUTCOME PAYMENT,WWEG EP SCOTLAND INGEUS UK,INGEUS UK LTD,2033956547,"132,661"
DEPARTMENT FOR WORK AND PENSIONS ,Corporate,24/11/2015,ADEP AM SERVICES - VAT NON-RECOVERABLE,CHG UC SECURITY,BAE SYSTEMS APPLIED INTELLIGENCE LTD,2033950600,"132,575"
DEPARTMENT FOR WORK AND PENSIONS ,Corporate,03/11/2015,CONSULTANTS VAT RECOVERABLE,CHG BTG DELIVER MOBILISE,ERNST & YOUNG LLP,2033920789,"132,100"
DEPARTMENT FOR WORK AND PENSIONS ,Corporate,10/11/2015,CONTRACTORS & STAFF SUBSTITUTIONS,F&C CD COMMERCIAL MANAGEMENT BUSINESS SERVICES,CAPITA BUSINESS SERVICES LTD,2033929315,"131,381"
DEPARTMENT FOR WORK AND PENSIONS ,Corporate,23/11/2015,NON-TREDDS IS IT APPS DEV MANDAY,CHG STATE PENSION REFORM SINGLE TIER,ACCENTURE UK LTD,2033948680,"131,162"
DEPARTMENT FOR WORK AND PENSIONS ,Housing Benefits,13/11/2015,HOUSING BENEFIT ADMINISTRATION,HB ENGLAND,BRIGHTON & HOVE COUNCIL,2033934032,"130,411"
DEPARTMENT FOR WORK AND PENSIONS ,Corporate,13/11/2015,NON PRIME PROPERTY COSTS,FG HS HDAS NON CONTRACT,CARTER JONAS LLP,2033937000,"128,230"
DEPARTMENT FOR WORK AND PENSIONS ,Employment Programmes,12/11/2015,YOUTH PROGRAMMES,WWEG EP NATIONAL,3SC,2033933378,"127,320"
DEPARTMENT FOR WORK AND PENSIONS ,Corporate,30/11/2015,"FURNITURE, FIXTURES & FITTINGS (NON-PRIME)",CHG ESTATES RATIONALISATION PROG MANAGER & PMO,CHARNWOOD BOROUGH COUNCIL,2033959555,"126,000"
DEPARTMENT FOR WORK AND PENSIONS ,Corporate,13/11/2015,TREDDS APPS DEV MANDAYS,CHG ABOLITION OF ASSESSED INCOME PERIODS IN SP CREDIT,HP ENTERPRISE SERVICES UK LTD,2033934461,"124,914"
DEPARTMENT FOR WORK AND PENSIONS ,Corporate,13/11/2015,PROFESSIONAL SERVICES NON VAT RECOVERABLE,STR LEGAL SERVICES,GOVERNMENT LEGAL DEPARTMENT,2005847,"122,500"
DEPARTMENT FOR WORK AND PENSIONS ,Employment Programmes,26/11/2015,WP JSA 25+ SUSTAINMENT OUTCOME PAYMENT,WWEG EP WEST YORKSHIRE BEST LTD,INTERSERVE WORKING FUTURES,2033955044,"119,130"
DEPARTMENT FOR WORK AND PENSIONS ,Corporate,12/11/2015,STAFF TRAINING VAT RECOVERABLE,HR CONTRACTUAL L AND D,CAPITA CIVIL SERVICE LEARNING,2033933310,"119,126"
DEPARTMENT FOR WORK AND PENSIONS ,Housing Benefits,13/11/2015,HOUSING BENEFIT ADMINISTRATION,HB ENGLAND,BOLTON METROPOLITAN BOROUGH COUNCIL,2033934208,"117,967"
DEPARTMENT FOR WORK AND PENSIONS ,Corporate,02/11/2015,NON-TREDDS APPS DEV FIXED PRICE CONTRACTS,CIO GG SERVICE DELIVERY,ATOS ORIGIN IT SERVICES UK LTD,2033918828,"117,868"
DEPARTMENT FOR WORK AND PENSIONS ,Corporate,27/11/2015,NON-TREDDS APPS DEV FIXED PRICE CONTRACTS,CIO GG SERVICE DELIVERY,ATOS ORIGIN IT SERVICES UK LTD,2033957779,"117,868"
DEPARTMENT FOR WORK AND PENSIONS ,Corporate,25/11/2015,CONNECTIVITY,CIO ITLR PSN CONNECTIVITY,BT GLOBAL SERVICES,2033952913,"117,789"
DEPARTMENT FOR WORK AND PENSIONS ,Housing Benefits,13/11/2015,HOUSING BENEFIT ADMINISTRATION,HB ENGLAND,DUDLEY METROPOLITAN BOROUGH COUNCIL,2033934170,"111,368"
DEPARTMENT FOR WORK AND PENSIONS ,Corporate,13/11/2015,PUBLICITY ADVERTISING MEDIA,CHG ERSP COMMS,CARAT,2033936804,"110,659"
DEPARTMENT FOR WORK AND PENSIONS ,Housing Benefits,13/11/2015,HOUSING BENEFIT ADMINISTRATION,HB ENGLAND,CHESHIRE WEST & CHESTER COUNCIL,2033934299,"110,553"
DEPARTMENT FOR WORK AND PENSIONS ,Corporate,17/11/2015,TREDDS APPS DEV MANDAYS,CIO TECH PLATFORM IMP VME R WFPS-R,HP ENTERPRISE SERVICES UK LTD,2033941139,"110,463"
DEPARTMENT FOR WORK AND PENSIONS ,Corporate,04/11/2015,CONTRACTORS & STAFF SUBSTITUTIONS,CIO UC CORE,CAPITA BUSINESS SERVICES LTD,2033921245,"108,672"
DEPARTMENT FOR WORK AND PENSIONS ,Corporate,19/11/2015,CONTRACTORS & STAFF SUBSTITUTIONS,CIO PROD OPS & ASSURANCE CORE,CAPITA BUSINESS SERVICES LTD,2033944240,"108,045"
DEPARTMENT FOR WORK AND PENSIONS ,Corporate,04/11/2015,CONTRACTORS & STAFF SUBSTITUTIONS,F&C CD COMMERCIAL MANAGEMENT BUSINESS SERVICES,CAPITA BUSINESS SERVICES LTD,2033921245,"106,453"
DEPARTMENT FOR WORK AND PENSIONS ,Housing Benefits,13/11/2015,HOUSING BENEFIT ADMINISTRATION,HB ENGLAND,BARNSLEY BOROUGH COUNCIL,2033934237,"105,233"
DEPARTMENT FOR WORK AND PENSIONS ,Housing Benefits,13/11/2015,HOUSING BENEFIT ADMINISTRATION,HB ENGLAND,DERBY CITY COUNCIL,2033934226,"105,229"
DEPARTMENT FOR WORK AND PENSIONS ,Employment Programmes,26/11/2015,WP JSA 25+ SUSTAINMENT OUTCOME PAYMENT,WWEG EP EAST OF ENGLAND INGEUS UK,INGEUS UK LTD,2033956547,"105,206"
DEPARTMENT FOR WORK AND PENSIONS ,Housing Benefits,13/11/2015,HOUSING BENEFIT ADMINISTRATION,HB ENGLAND,EAST RIDING OF YORKSHIRE BOROUGH COUNCIL,2033934098,"103,030"
DEPARTMENT FOR WORK AND PENSIONS ,Housing Benefits,13/11/2015,HOUSING BENEFIT ADMINISTRATION,HB ENGLAND,BLACKPOOL BOROUGH COUNCIL,2033934204,"102,629"
DEPARTMENT FOR WORK AND PENSIONS ,Housing Benefits,13/11/2015,HOUSING BENEFIT ADMINISTRATION,HB ENGLAND,CHESHIRE EAST BOROUGH COUNCIL,2033934276,"102,382"
DEPARTMENT FOR WORK AND PENSIONS ,Corporate,10/11/2015,TREDDS IS IT CONSULTANCY NON ADVICE,CHG STATE PENSION REFORM SINGLE TIER,HP ENTERPRISE SERVICES UK LTD,2033929958,"101,813"
DEPARTMENT FOR WORK AND PENSIONS ,Housing Benefits,13/11/2015,HOUSING BENEFIT ADMINISTRATION,HB SCOTLAND,DUNDEE CITY COUNCIL,2033934035,"98,989"
DEPARTMENT FOR WORK AND PENSIONS ,Corporate,09/11/2015,BBC TV LIC O/75'S,STR BBC TV LIC O 75s DEL P,BBC,2033927840,"98,805"
DEPARTMENT FOR WORK AND PENSIONS ,Housing Benefits,13/11/2015,HOUSING BENEFIT ADMINISTRATION,HB ENGLAND,GATESHEAD BOROUGH COUNCIL,2033934239,"98,323"
DEPARTMENT FOR WORK AND PENSIONS ,Corporate,06/11/2015,RENEWALS OF SOFTWARE SUPPORT AND MAINTENANCE,CIO ITLR SOFTWARE P,EXPERIAN,2033925740,"97,700"
DEPARTMENT FOR WORK AND PENSIONS ,Corporate,03/11/2015,PUBLICITY PRODUCTION COST,CHG ERSP COMMS,ENGINE PARTNERS UK LLP,2033919664,"97,291"
DEPARTMENT FOR WORK AND PENSIONS ,Corporate,17/11/2015,TREDDS APPS DEV MANDAYS,OPS OPE C&I BUSINESS GENERATED CHANGE - IT,HP ENTERPRISE SERVICES UK LTD,2033941139,"96,288"
DEPARTMENT FOR WORK AND PENSIONS ,Corporate,26/11/2015,CONTRACTORS & STAFF SUBSTITUTIONS,CIO ARCHITECTURE CORE,CAPITA BUSINESS SERVICES LTD,2033956009,"96,285"
DEPARTMENT FOR WORK AND PENSIONS ,Corporate,05/11/2015,AGENCY PAYMENTS TO LOCAL AUTHORITIES & PARTNERSHIPS,OPS WDC WSD CE GROUP DIRECTORS OFFICE,BIRMINGHAM CITY COUNCIL,2033923939,"96,062"
DEPARTMENT FOR WORK AND PENSIONS ,Corporate,03/11/2015,EARLY RELEASE FUND LUMP SUM PAYMENTS,HR ERF,CROWN COMMERCIAL SERVICE,2005824,"95,000"
DEPARTMENT FOR WORK AND PENSIONS ,Corporate,16/11/2015,CONTRACTED OUT ORIGINAL RESEARCH,STR ANALYSIS CAD,IFF RESEARCH LTD,2033938380,"94,842"
DEPARTMENT FOR WORK AND PENSIONS ,Corporate,10/11/2015,CONTRACTED OUT OFFICE SERVICES,FG OPS FIN DM ENFORCEMENT,COMMERCIAL COLLECTION SERVICES LTD,2033929407,"93,899"
DEPARTMENT FOR WORK AND PENSIONS ,Corporate,10/11/2015,SIAM FIXED PRICE CONTRACTS,CIO CTO SECURITY,AURIGA CONSULTING LTD,2033928763,"93,390"
DEPARTMENT FOR WORK AND PENSIONS ,Corporate,19/11/2015,AMS SERVICES,CIO ITLR AMS - CAP GEMINI,CAPGEMINI UK PLC,2033945187,"92,453"
DEPARTMENT FOR WORK AND PENSIONS ,Corporate,17/11/2015,RECURRENT PUBLICITY,CHG CLASS 3A VOLUNTARY NATIONAL INSURANCE CONTS,CARAT,2033940659,"92,276"
DEPARTMENT FOR WORK AND PENSIONS ,Housing Benefits,13/11/2015,HOUSING BENEFIT ADMINISTRATION,HB ENGLAND,BOURNEMOUTH BOROUGH COUNCIL,2033934031,"91,016"
DEPARTMENT FOR WORK AND PENSIONS ,Employment Programmes,26/11/2015,WP JSA 25+ SUSTAINMENT OUTCOME PAYMENT,WWEG EP NORTH EAST INGEUS UK,INGEUS UK LTD,2033956547,"90,803"
DEPARTMENT FOR WORK AND PENSIONS ,Corporate,09/11/2015,PUBLICITY PRODUCTION COST,CHG ERSP COMMS,ENGINE PARTNERS UK LLP,2033928099,"90,419"
DEPARTMENT FOR WORK AND PENSIONS ,Corporate,26/11/2015,CONTRACTORS & STAFF SUBSTITUTIONS,F&C CD COMMERCIAL MANAGEMENT BUSINESS SERVICES,CAPITA BUSINESS SERVICES LTD,2033956009,"90,125"
DEPARTMENT FOR WORK AND PENSIONS ,Employment Programmes,25/11/2015,WP JSA 25+ JOB OUTCOME PAYMENTWP JSA 25+ JOB OUTCOME PAYMENT,WWEG EP EAST MIDLANDS INGEUS UK,INGEUS UK LTD,2033954471,"87,445"
DEPARTMENT FOR WORK AND PENSIONS ,Housing Benefits,13/11/2015,HOUSING BENEFIT ADMINISTRATION,HB ENGLAND,CALDERDALE BOROUGH COUNCIL,2033934040,"87,141"
DEPARTMENT FOR WORK AND PENSIONS ,Housing Benefits,13/11/2015,HOUSING BENEFIT ADMINISTRATION,HB SCOTLAND,HIGHLAND COUNCIL,2033934185,"84,627"
DEPARTMENT FOR WORK AND PENSIONS ,Corporate,13/11/2015,CONTRACTED OUT OFFICE SERVICES,FG OPS FIN DM ENFORCEMENT,COMMERCIAL COLLECTION SERVICES LTD,2033934963,"84,171"
DEPARTMENT FOR WORK AND PENSIONS ,Corporate,26/11/2015,CONTRACTORS & STAFF SUBSTITUTIONS,CIO PENSIONS & DISABLED CORE,CAPITA BUSINESS SERVICES LTD,2033956009,"81,523"
DEPARTMENT FOR WORK AND PENSIONS ,Corporate,19/11/2015,CONTRACTORS & STAFF SUBSTITUTIONS,CIO UC CORE,CAPITA BUSINESS SERVICES LTD,2033944240,"81,523"
DEPARTMENT FOR WORK AND PENSIONS ,Corporate,17/11/2015,TREDDS IS IT CONSULTANCY (HOSTING) NON ADVICE,CIO ITLR HOSTING DEL P,HP ENTERPRISE SERVICES UK LTD,2033941139,"80,368"
DEPARTMENT FOR WORK AND PENSIONS ,Corporate,17/11/2015,NETWORK SERVICES,CHG UC PATHFINDER DELIVERY MANAGEMENT,BT GLOBAL SERVICES,2033941370,"80,156"
DEPARTMENT FOR WORK AND PENSIONS ,Employment Programmes,26/11/2015,WP JSA 25+ SUSTAINMENT OUTCOME PAYMENT,WWEG EP WEST YORKSHIRE INGEUS UK,INGEUS UK LTD,2033956547,"80,133"
DEPARTMENT FOR WORK AND PENSIONS ,Housing Benefits,13/11/2015,HOUSING BENEFIT ADMINISTRATION,HB ENGLAND,BOROUGH OF TELFORD & WREKIN COUNCIL,2033934318,"78,222"
DEPARTMENT FOR WORK AND PENSIONS ,Corporate,04/11/2015,CONTRACTORS & STAFF SUBSTITUTIONS,CIO PENSIONS & DISABLED CORE,CAPITA BUSINESS SERVICES LTD,2033921245,"77,796"
DEPARTMENT FOR WORK AND PENSIONS ,Corporate,27/11/2015,NON-TREDDS IS IT CONSULTANCY (HOSTING) NON ADVICE,CIO EUCS CONTRACT SIAM ISM,CAPGEMINI UK PLC,2033957471,"77,651"
DEPARTMENT FOR WORK AND PENSIONS ,Corporate,23/11/2015,ADEP AM SERVICES - VAT NON-RECOVERABLE,CIO UC INITIATIVES,ACCENTURE UK LTD,2033948680,"77,450"
DEPARTMENT FOR WORK AND PENSIONS ,Corporate,19/11/2015,CONTRACTORS & STAFF SUBSTITUTIONS,CIO SECURITY TECH SECURITY & RISK MGT CORE,CAPITA BUSINESS SERVICES LTD,2033944240,"76,922"
DEPARTMENT FOR WORK AND PENSIONS ,Corporate,19/11/2015,CONTRACTORS & STAFF SUBSTITUTIONS,CIO PENSIONS & DISABLED CORE,CAPITA BUSINESS SERVICES LTD,2033944240,"76,484"
DEPARTMENT FOR WORK AND PENSIONS ,Corporate,10/11/2015,TREDDS APPS DEV FIXED PRICE CONTRACTS,CIO ITLR HOSTING DEL P,HP ENTERPRISE SERVICES UK LTD,2033929958,"76,210"
DEPARTMENT FOR WORK AND PENSIONS ,Employment Programmes,25/11/2015,WP JSA 25+ JOB OUTCOME PAYMENTWP JSA 25+ JOB OUTCOME PAYMENT,WWEG EP EAST LONDON CAREERS DEVELOPMENT GROUP,CAREERS DEVELOPMENT GROUP,2033953371,"75,604"
DEPARTMENT FOR WORK AND PENSIONS ,Corporate,16/11/2015,STAFF TRAINING VAT RECOVERABLE,HR CONTRACTUAL L AND D,CAPITA CIVIL SERVICE LEARNING,2033938376,"75,504"
DEPARTMENT FOR WORK AND PENSIONS ,Housing Benefits,13/11/2015,HOUSING BENEFIT ADMINISTRATION,HB ENGLAND,BASILDON DISTRICT COUNCIL,2033934361,"75,289"
DEPARTMENT FOR WORK AND PENSIONS ,Housing Benefits,13/11/2015,HOUSING BENEFIT ADMINISTRATION,HB SCOTLAND,ABERDEEN CITY COUNCIL,2033934106,"75,014"
DEPARTMENT FOR WORK AND PENSIONS ,Corporate,10/11/2015,CONTRACTORS & STAFF SUBSTITUTIONS,CIO PENSIONS & DISABLED CORE,CAPITA BUSINESS SERVICES LTD,2033929315,"74,168"
DEPARTMENT FOR WORK AND PENSIONS ,Employment Programmes,26/11/2015,WP JSA 25+ SUSTAINMENT OUTCOME PAYMENT,WWEG EP WEST LONDON INGEUS UK,INGEUS UK LTD,2033956547,"72,539"
DEPARTMENT FOR WORK AND PENSIONS ,Employment Programmes,26/11/2015,WP JSA 25+ SUSTAINMENT OUTCOME PAYMENT,WWEG EP SOUTH EAST SURR SUSSX AND KENT G4S,G4S REGIONAL MANAGEMENT UK & I LTD,2033955320,"72,299"
DEPARTMENT FOR WORK AND PENSIONS ,Corporate,10/11/2015,NON-TREDDS IS IT CONSULTANCY (HOSTING) NON ADVICE,CIO CTO SECURITY,CAPGEMINI UK PLC,2033929957,"72,133"
DEPARTMENT FOR WORK AND PENSIONS ,Corporate,24/11/2015,RENEWALS OF SOFTWARE SUPPORT AND MAINTENANCE,CIO ITLR SOFTWARE P,IBM UNITED KINGDOM LTD,2033952235,"70,320"
DEPARTMENT FOR WORK AND PENSIONS ,Corporate,17/11/2015,TREDDS IS IT CONSULTANCY (HOSTING) NON ADVICE,CHG UC PATHFINDER DELIVERY MANAGEMENT,HP ENTERPRISE SERVICES UK LTD,2033941139,"69,397"
DEPARTMENT FOR WORK AND PENSIONS ,Employment Programmes,20/11/2015,WP JSA 25+ SUSTAINMENT OUTCOME PAYMENT,WWEG EP SCOTLAND INGEUS UK,INGEUS UK LTD,2033948004,"69,230"
DEPARTMENT FOR WORK AND PENSIONS ,Corporate,10/11/2015,CONTRACTORS & STAFF SUBSTITUTIONS,CIO TECH PLATFORM SHARED PLATFORMS CORE,CAPITA BUSINESS SERVICES LTD,2033929315,"69,226"
DEPARTMENT FOR WORK AND PENSIONS ,Housing Benefits,13/11/2015,HOUSING BENEFIT ADMINISTRATION,HB ENGLAND,CENTRAL BEDFORDSHIRE DISTRICT COUNCIL,2033934053,"68,415"
DEPARTMENT FOR WORK AND PENSIONS ,Corporate,10/11/2015,CONTRACTORS & STAFF SUBSTITUTIONS,CIO ARCHITECTURE CORE,CAPITA BUSINESS SERVICES LTD,2033929315,"68,318"
DEPARTMENT FOR WORK AND PENSIONS ,Housing Benefits,13/11/2015,HOUSING BENEFIT ADMINISTRATION,HB WALES,CAERPHILLY COUNTY BOROUGH COUNCIL,2033934251,"68,082"
DEPARTMENT FOR WORK AND PENSIONS ,Housing Benefits,13/11/2015,HOUSING BENEFIT ADMINISTRATION,HB SCOTLAND,ABERDEENSHIRE COUNCIL,2033934036,"67,168"
DEPARTMENT FOR WORK AND PENSIONS ,Employment Programmes,26/11/2015,WP JSA 25+ SUSTAINMENT OUTCOME PAYMENT,WWEG EP NORTH WEST GM CHES AND WARR G4S,G4S REGIONAL MANAGEMENT UK & I LTD,2033955320,"66,658"
DEPARTMENT FOR WORK AND PENSIONS ,Corporate,19/11/2015,CONTRACTORS & STAFF SUBSTITUTIONS,F&C CD COMMERCIAL MANAGEMENT BUSINESS SERVICES,CAPITA BUSINESS SERVICES LTD,2033944240,"66,449"
DEPARTMENT FOR WORK AND PENSIONS ,Corporate,04/11/2015,STAFF TRAINING VAT RECOVERABLE,OPS BEN DD DISABILITY CSD SUPPORT,CAPITA CIVIL SERVICE LEARNING,2033922514,"66,424"
DEPARTMENT FOR WORK AND PENSIONS ,Housing Benefits,13/11/2015,HOUSING BENEFIT ADMINISTRATION,HB WALES,CARMARTHENSHIRE COUNTY COUNCIL,2033934003,"65,648"
DEPARTMENT FOR WORK AND PENSIONS ,Corporate,11/11/2015,NON PRIME PROPERTY COSTS,FG CD BENTON PARK VIEW,HM REVENUE & CUSTOMS,2033930648,"65,454"
DEPARTMENT FOR WORK AND PENSIONS ,Corporate,06/11/2015,SOFTWARE LICENCES,CIO UC INITIATIVES,HEWLETT PACKARD LTD,2033926428,"65,381"
DEPARTMENT FOR WORK AND PENSIONS ,Corporate,09/11/2015,PUBLICITY ADVERTISING MEDIA,CHG PIP COMMS & STAKEHOLDER MANAGEMENT,CARAT,2033928664,"65,295"
DEPARTMENT FOR WORK AND PENSIONS ,Housing Benefits,13/11/2015,HOUSING BENEFIT ADMINISTRATION,HB ENGLAND,HALTON BOROUGH COUNCIL,2033934126,"65,149"
DEPARTMENT FOR WORK AND PENSIONS ,Corporate,10/11/2015,TREDDS APPS DEV FIXED PRICE CONTRACTS,CHG PIP IT PHASE 5,HP ENTERPRISE SERVICES UK LTD,2033929958,"65,084"
DEPARTMENT FOR WORK AND PENSIONS ,Housing Benefits,13/11/2015,HOUSING BENEFIT ADMINISTRATION,HB SCOTLAND,DUMFRIES & GALLOWAY COUNCIL,2033934311,"64,857"
DEPARTMENT FOR WORK AND PENSIONS ,Housing Benefits,13/11/2015,HOUSING BENEFIT ADMINISTRATION,HB ENGLAND,BURY METROPOLITAN BOROUGH COUNCIL,2033934209,"64,331"
DEPARTMENT FOR WORK AND PENSIONS ,Corporate,03/11/2015,REMOTE STORAGE COSTS VAT RECOV,CMG OPS EXTERNAL CONTRACTS/SLAS RECORD STORAGE,CAPITA BUSINESS SERVICES LTD,2033919792,"64,178"
DEPARTMENT FOR WORK AND PENSIONS ,Housing Benefits,13/11/2015,HOUSING BENEFIT ADMINISTRATION,HB ENGLAND,BLACKBURN BOROUGH COUNCIL,2033934139,"64,154"
DEPARTMENT FOR WORK AND PENSIONS ,Corporate,20/11/2015,OTHER CAPITAL GRANTS,CIO COO IT DIRECTOR,CAPITA BUSINESS SERVICES LTD,2033947181,"64,047"
DEPARTMENT FOR WORK AND PENSIONS ,Housing Benefits,13/11/2015,HOUSING BENEFIT ADMINISTRATION,HB ENGLAND,IPSWICH BOROUGH COUNCIL,2033934013,"63,443"
DEPARTMENT FOR WORK AND PENSIONS ,Housing Benefits,13/11/2015,HOUSING BENEFIT ADMINISTRATION,HB ENGLAND,BEDFORD BOROUGH COUNCIL,2033934336,"63,084"
DEPARTMENT FOR WORK AND PENSIONS ,Corporate,18/11/2015,STAFF TRAINING VAT RECOVERABLE,HR CONTRACTUAL L AND D,CAPITA CIVIL SERVICE LEARNING,2033941895,"62,863"
DEPARTMENT FOR WORK AND PENSIONS ,Corporate,24/11/2015,CONTRACTED OUT OFFICE SERVICES,FG OPS FIN DEBT OPS INVESTMENT,INDESSER,2033950474,"62,038"
DEPARTMENT FOR WORK AND PENSIONS ,Employment Programmes,26/11/2015,WP JSA 25+ SUSTAINMENT OUTCOME PAYMENT,WWEG EP W MIDLANDS COV WARW STAFFS AND MARCHES ESG,ESG HOLDINGS LIMITED,2033955243,"61,839"
DEPARTMENT FOR WORK AND PENSIONS ,Housing Benefits,13/11/2015,HOUSING BENEFIT ADMINISTRATION,HB ENGLAND,ISLE OF WIGHT COUNTY COUNCIL,2033934099,"61,671"
DEPARTMENT FOR WORK AND PENSIONS ,Corporate,17/11/2015,CHANGE ORDER - VAT RECOVERABLE,CHG STATE PENSION REFORM SINGLE TIER,IBM UNITED KINGDOM LTD,2033940553,"61,171"
DEPARTMENT FOR WORK AND PENSIONS ,Corporate,27/11/2015,ADEP AM SERVICES - VAT NON-RECOVERABLE,CIO UC INITIATIVES,ACCENTURE UK LTD,2033957665,"61,138"
DEPARTMENT FOR WORK AND PENSIONS ,Employment Programmes,06/11/2015,WP JSA 25+ SUSTAINMENT OUTCOME PAYMENT,WWEG EP SCOTLAND INGEUS UK,INGEUS UK LTD,2033926706,"60,415"
DEPARTMENT FOR WORK AND PENSIONS ,Corporate,10/11/2015,SIAM FIXED PRICE CONTRACTS,CIO CTO SECURITY,BRIDEWELL CONSULTING LLP,2033928806,"60,411"
DEPARTMENT FOR WORK AND PENSIONS ,Housing Benefits,13/11/2015,HOUSING BENEFIT ADMINISTRATION,HB SCOTLAND,FALKIRK DISTRICT COUNCIL,2033934217,"60,361"
DEPARTMENT FOR WORK AND PENSIONS ,Corporate,17/11/2015,ADEP AM SERVICES - VAT NON-RECOVERABLE,CHG UC DESIGN & BUILD PROGRAMME MANAGER,IBM UNITED KINGDOM LTD,2033940553,"60,222"
DEPARTMENT FOR WORK AND PENSIONS ,Corporate,20/11/2015,CONSULTANTS VAT RECOVERABLE,FG CD ESTATES PROFESSIONAL FEES,CARTER JONAS LLP,2033946793,"60,000"
DEPARTMENT FOR WORK AND PENSIONS ,Corporate,16/11/2015,CONTRACTED OUT ORIGINAL RESEARCH,CHG UC PROGRAMME INTEGRATION & APPROVALS,CENTRE FOR ECONOMIC & SOCIAL INCLUSION,2033938335,"60,000"
DEPARTMENT FOR WORK AND PENSIONS ,Corporate,06/11/2015,RENEWALS OF SOFTWARE SUPPORT AND MAINTENANCE,CIO ITLR HOSTING DEL P,HP ENTERPRISE SERVICES UK LTD,2033926616,"59,273"
DEPARTMENT FOR WORK AND PENSIONS ,Housing Benefits,13/11/2015,HOUSING BENEFIT ADMINISTRATION,HB ENGLAND,COLCHESTER BOROUGH COUNCIL,2033934309,"59,136"
DEPARTMENT FOR WORK AND PENSIONS ,Housing Benefits,13/11/2015,HOUSING BENEFIT ADMINISTRATION,HB WALES,BRIDGEND COUNTY BOROUGH COUNCIL,2033934330,"59,039"
DEPARTMENT FOR WORK AND PENSIONS ,Corporate,10/11/2015,DESKTOP SERVICES,CIO ITLR DESKTOP,HP ENTERPRISE SERVICES UK LTD,2033929958,"58,808"
DEPARTMENT FOR WORK AND PENSIONS ,Employment Programmes,17/11/2015,RESIDENTIAL TRAINING COSTS,WWEG EP DELIVERY WELFARE TO WORK PRODUCT SUPPORT,FINCHALE TRAINING COLLEGE,2033941023,"58,750"
DEPARTMENT FOR WORK AND PENSIONS ,Housing Benefits,13/11/2015,HOUSING BENEFIT ADMINISTRATION,HB SCOTLAND,EAST AYRSHIRE COUNCIL FINANCE DEPARTMENT,2033934245,"58,724"
DEPARTMENT FOR WORK AND PENSIONS ,Employment Programmes,27/11/2015,WP JSA 25+ SUSTAINMENT OUTCOME PAYMENT,WWEG EP EAST OF ENGLAND INGEUS UK,INGEUS UK LTD,2033956864,"58,695"
DEPARTMENT FOR WORK AND PENSIONS ,Corporate,16/11/2015,CONTRACTED OUT ORIGINAL RESEARCH,STR ANALYSIS CAD,CENTRE FOR ECONOMIC & SOCIAL INCLUSION,2033938335,"58,450"
DEPARTMENT FOR WORK AND PENSIONS ,Housing Benefits,13/11/2015,HOUSING BENEFIT ADMINISTRATION,HB ENGLAND,HARTLEPOOL BOROUGH COUNCIL,2033934261,"58,259"
DEPARTMENT FOR WORK AND PENSIONS ,Corporate,26/11/2015,CONTRACTORS & STAFF SUBSTITUTIONS,CIO SECURITY TECH SECURITY & RISK MGT CORE,CAPITA BUSINESS SERVICES LTD,2033956009,"56,488"
DEPARTMENT FOR WORK AND PENSIONS ,Corporate,26/11/2015,CONTRACTORS & STAFF SUBSTITUTIONS,CIO UC CORE,CAPITA BUSINESS SERVICES LTD,2033956009,"56,482"
DEPARTMENT FOR WORK AND PENSIONS ,Housing Benefits,13/11/2015,HOUSING BENEFIT ADMINISTRATION,HB ENGLAND,BATH & NORTH EAST SOMERSET COUNCIL,2033934333,"55,833"
DEPARTMENT FOR WORK AND PENSIONS ,Employment Programmes,06/11/2015,WP JSA 25+ SUSTAINMENT OUTCOME PAYMENT,WWEG EP EAST OF ENGLAND INGEUS UK,INGEUS UK LTD,2033926706,"55,470"
DEPARTMENT FOR WORK AND PENSIONS ,Employment Programmes,27/11/2015,WP JSA 25+ SUSTAINMENT OUTCOME PAYMENT,WWEG EP SCOTLAND INGEUS UK,INGEUS UK LTD,2033956864,"55,470"
DEPARTMENT FOR WORK AND PENSIONS ,Corporate,13/11/2015,CONNECTIVITY,CHG UC DESIGN & BUILD PROGRAMME MANAGER,BT GLOBAL SERVICES,2033934873,"55,116"
DEPARTMENT FOR WORK AND PENSIONS ,Employment Programmes,26/11/2015,WP JSA 25+ SUSTAINMENT OUTCOME PAYMENT,WWEG EP NORTH WEST MERS HAL CUMB AND LANCS INGEUS UK,INGEUS UK LTD,2033956547,"55,009"
DEPARTMENT FOR WORK AND PENSIONS ,Housing Benefits,13/11/2015,HOUSING BENEFIT ADMINISTRATION,HB ENGLAND,CITY OF YORK COUNCIL,2033934355,"54,875"
DEPARTMENT FOR WORK AND PENSIONS ,Corporate,17/11/2015,NON-TREDDS IS IT APPS DEV MANDAY,"CIO TECH PLATFORM FIN, COMM & HR CORE",IBM UNITED KINGDOM LTD,2033940553,"54,298"
DEPARTMENT FOR WORK AND PENSIONS ,Corporate,17/11/2015,NON-TREDDS IS IT APPS DEV MANDAY,CIO CIS DEVELOPMENT,IBM UNITED KINGDOM LTD,2033940553,"54,235"
DEPARTMENT FOR WORK AND PENSIONS ,Employment Programmes,25/11/2015,WP JSA 25+ JOB OUTCOME PAYMENTWP JSA 25+ JOB OUTCOME PAYMENT,WWEG EP WEST YORKSHIRE BEST LTD,INTERSERVE WORKING FUTURES,2033952451,"53,798"
DEPARTMENT FOR WORK AND PENSIONS ,Employment Programmes,13/11/2015,WP JSA 25+ SUSTAINMENT OUTCOME PAYMENT,WWEG EP EAST OF ENGLAND INGEUS UK,INGEUS UK LTD,2033935412,"53,535"
DEPARTMENT FOR WORK AND PENSIONS ,Corporate,19/11/2015,PROFESSIONAL SERVICES NON VAT RECOVERABLE,CMG OPS EXTERNAL CONTRACTS/SLAS TRACE,EXPERIAN LTD,2033945627,"53,165"
DEPARTMENT FOR WORK AND PENSIONS ,Corporate,02/11/2015,MEDICAL SERVICES FIXED COSTS,FG HS MEDICAL SERVICES SPECIFIC COSTS,CENTRE FOR HEALTH & DISABILITY ASSESSMENTS LTD,2033918004,"53,086"
DEPARTMENT FOR WORK AND PENSIONS ,Corporate,23/11/2015,NON-TREDDS IS IT APPS DEV MANDAY,CHG ABOLITION OF ASSESSED INCOME PERIODS IN SP CREDIT,ACCENTURE UK LTD,2033948680,"52,946"
DEPARTMENT FOR WORK AND PENSIONS ,Housing Benefits,13/11/2015,HOUSING BENEFIT ADMINISTRATION,HB ENGLAND,GREAT YARMOUTH COUNCIL,2033934246,"52,915"
DEPARTMENT FOR WORK AND PENSIONS ,Employment Programmes,13/11/2015,WP JSA 25+ SUSTAINMENT OUTCOME PAYMENT,WWEG EP SCOTLAND INGEUS UK,INGEUS UK LTD,2033935412,"52,890"
DEPARTMENT FOR WORK AND PENSIONS ,Housing Benefits,13/11/2015,HOUSING BENEFIT ADMINISTRATION,HB ENGLAND,HASTINGS BOROUGH COUNCIL,2033934328,"52,811"
DEPARTMENT FOR WORK AND PENSIONS ,Housing Benefits,13/11/2015,HOUSING BENEFIT ADMINISTRATION,HB ENGLAND,ARUN DISTRICT COUNCIL,2033934286,"52,782"
DEPARTMENT FOR WORK AND PENSIONS ,Housing Benefits,13/11/2015,HOUSING BENEFIT ADMINISTRATION,HB ENGLAND,HEREFORDSHIRE COUNCIL,2033934169,"52,424"
DEPARTMENT FOR WORK AND PENSIONS ,Housing Benefits,13/11/2015,HOUSING BENEFIT ADMINISTRATION,HB ENGLAND,EAST LINDSEY DISTRICT COUNCIL,2033934340,"52,072"
DEPARTMENT FOR WORK AND PENSIONS ,Employment Programmes,25/11/2015,WP JSA 25+ JOB OUTCOME PAYMENTWP JSA 25+ JOB OUTCOME PAYMENT,WWEG EP SCOTLAND INGEUS UK,INGEUS UK LTD,2033954471,"52,070"
DEPARTMENT FOR WORK AND PENSIONS ,Employment Programmes,20/11/2015,WP JSA 25+ SUSTAINMENT OUTCOME PAYMENT,WWEG EP EAST OF ENGLAND INGEUS UK,INGEUS UK LTD,2033948004,"51,600"
DEPARTMENT FOR WORK AND PENSIONS ,Housing Benefits,13/11/2015,HOUSING BENEFIT ADMINISTRATION,HB ENGLAND,GLOUCESTER CITY COUNCIL,2033934054,"51,571"
DEPARTMENT FOR WORK AND PENSIONS ,Corporate,17/11/2015,NON-TREDDS IS IT SERVICES (AMS),"CIO TECH PLATFORM FIN, COMM & HR CORE",IBM UNITED KINGDOM LTD,2033940553,"51,154"
DEPARTMENT FOR WORK AND PENSIONS ,Housing Benefits,13/11/2015,HOUSING BENEFIT ADMINISTRATION,HB ENGLAND,BASINGSTOKE DISTRICT COUNCIL,2033934045,"50,846"
DEPARTMENT FOR WORK AND PENSIONS ,Housing Benefits,13/11/2015,HOUSING BENEFIT ADMINISTRATION,HB ENGLAND,CRAWLEY BOROUGH COUNCIL,2033934133,"50,563"
DEPARTMENT FOR WORK AND PENSIONS ,Housing Benefits,13/11/2015,HOUSING BENEFIT ADMINISTRATION,HB SCOTLAND,INVERCLYDE DISTRICT COUNCIL,2033934244,"50,176"
DEPARTMENT FOR WORK AND PENSIONS ,Corporate,04/11/2015,CONTRACTORS & STAFF SUBSTITUTIONS,CIO IT INFORMATION DATA SERVICES,CAPITA BUSINESS SERVICES LTD,2033921245,"49,747"
DEPARTMENT FOR WORK AND PENSIONS ,Corporate,24/11/2015,TREDDS APPS DEV MANDAYS,CMG CPRG CMG PORTFOLIO - HPES COSTS,HP ENTERPRISE SERVICES UK LTD,2033950820,"49,603"
DEPARTMENT FOR WORK AND PENSIONS ,Housing Benefits,13/11/2015,HOUSING BENEFIT ADMINISTRATION,HB ENGLAND,DACORUM BOROUGH COUNCIL,2033934025,"49,601"
DEPARTMENT FOR WORK AND PENSIONS ,Employment Programmes,25/11/2015,WP JSA 25+ JOB OUTCOME PAYMENTWP JSA 25+ JOB OUTCOME PAYMENT,WWEG EP EAST OF ENGLAND INGEUS UK,INGEUS UK LTD,2033954471,"49,556"
DEPARTMENT FOR WORK AND PENSIONS ,Corporate,06/11/2015,NON-TREDDS IS IT SERVICES (HOSTING),CIO EUC COLLABORATION SERVICES CORE,HUDDLE,2033925633,"49,098"
DEPARTMENT FOR WORK AND PENSIONS ,Housing Benefits,13/11/2015,HOUSING BENEFIT ADMINISTRATION,HB ENGLAND,ASHFIELD DISTRICT COUNCIL,2033934034,"49,075"
DEPARTMENT FOR WORK AND PENSIONS ,Corporate,23/11/2015,TREDDS APPS DEV FIXED PRICE CONTRACTS,CIO CTO SECURITY,HP ENTERPRISE SERVICES UK LTD,2033948600,"49,000"
DEPARTMENT FOR WORK AND PENSIONS ,Housing Benefits,13/11/2015,HOUSING BENEFIT ADMINISTRATION,HB ENGLAND,DARLINGTON BOROUGH COUNCIL,2033934364,"48,495"
DEPARTMENT FOR WORK AND PENSIONS ,Housing Benefits,13/11/2015,HOUSING BENEFIT ADMINISTRATION,HB ENGLAND,BRAINTREE DISTRICT COUNCIL,2033934200,"48,335"
DEPARTMENT FOR WORK AND PENSIONS ,Corporate,17/11/2015,CONNECTIVITY,CIO CTO SECURITY,BT GLOBAL SERVICES,2033941370,"48,304"
DEPARTMENT FOR WORK AND PENSIONS ,Corporate,06/11/2015,PROFESSIONAL SERVICES NON VAT RECOVERABLE,CMG OPS EXTERNAL CONTRACTS/SLAS TRACE,EXPERIAN LTD,2033926756,"48,210"
DEPARTMENT FOR WORK AND PENSIONS ,Employment Programmes,27/11/2015,WP JSA 25+ SUSTAINMENT OUTCOME PAYMENT,WWEG EP EAST MIDLANDS INGEUS UK,INGEUS UK LTD,2033956864,"48,160"
DEPARTMENT FOR WORK AND PENSIONS ,Housing Benefits,13/11/2015,HOUSING BENEFIT ADMINISTRATION,HB ENGLAND,BURNLEY BOROUGH COUNCIL,2033934359,"47,914"
DEPARTMENT FOR WORK AND PENSIONS ,Housing Benefits,13/11/2015,HOUSING BENEFIT ADMINISTRATION,HB ENGLAND,HUNTINGDON DISTRICT COUNCIL,2033934161,"47,907"
DEPARTMENT FOR WORK AND PENSIONS ,Housing Benefits,13/11/2015,HOUSING BENEFIT ADMINISTRATION,HB ENGLAND,CHESTERFIELD BOROUGH COUNCIL,2033934283,"47,732"
DEPARTMENT FOR WORK AND PENSIONS ,Corporate,05/11/2015,NON-TREDDS IS IT SERVICES (AMS),CIO TECH PLATFORMS GOV GATEWAY,ATOS ORIGIN IT SERVICES UK LTD,2033923439,"47,363"
DEPARTMENT FOR WORK AND PENSIONS ,Housing Benefits,13/11/2015,HOUSING BENEFIT ADMINISTRATION,HB ENGLAND,HARLOW DISTRICT COUNCIL,2033934022,"47,029"
DEPARTMENT FOR WORK AND PENSIONS ,Housing Benefits,13/11/2015,HOUSING BENEFIT ADMINISTRATION,HB ENGLAND,CANTERBURY CITY COUNCIL,2033934114,"46,806"
DEPARTMENT FOR WORK AND PENSIONS ,Housing Benefits,13/11/2015,HOUSING BENEFIT ADMINISTRATION,HB ENGLAND,EXETER CITY COUNCIL,2033934297,"46,690"
DEPARTMENT FOR WORK AND PENSIONS ,Employment Programmes,06/11/2015,WP JSA 25+ SUSTAINMENT OUTCOME PAYMENT,WWEG EP NORTH EAST INGEUS UK,INGEUS UK LTD,2033926706,"46,440"
DEPARTMENT FOR WORK AND PENSIONS ,Corporate,10/11/2015,AMS SERVICES,CIO ITLR AMS,HP ENTERPRISE SERVICES UK LTD,2033929958,"46,302"
DEPARTMENT FOR WORK AND PENSIONS ,Corporate,12/11/2015,NON-TREDDS IS IT SERVICES (HOSTING),CIO CTO SECURITY,AKAMAI TECHNOLOGIES,2033933352,"45,971"
DEPARTMENT FOR WORK AND PENSIONS ,Employment Programmes,27/11/2015,WP JSA 25+ SUSTAINMENT OUTCOME PAYMENT,WWEG EP NORTH WEST MERS HAL CUMB AND LANCS INGEUS UK,INGEUS UK LTD,2033956864,"45,795"
DEPARTMENT FOR WORK AND PENSIONS ,Housing Benefits,13/11/2015,HOUSING BENEFIT ADMINISTRATION,HB ENGLAND,DOVER DISTRICT COUNCIL,2033934115,"45,736"
DEPARTMENT FOR WORK AND PENSIONS ,Housing Benefits,13/11/2015,HOUSING BENEFIT ADMINISTRATION,HB ENGLAND,CHELMSFORD BOROUGH COUNCIL,2033934376,"45,224"
DEPARTMENT FOR WORK AND PENSIONS ,Corporate,12/11/2015,NON PRIME PROPERTY COSTS,FG CD OPS & CMG ESTATES NON-PRIME COSTS,COPELAND BOROUGH COUNCIL,2033933743,"45,167"
DEPARTMENT FOR WORK AND PENSIONS ,Employment Programmes,13/11/2015,WP JSA 25+ SUSTAINMENT OUTCOME PAYMENT,WWEG EP EAST LONDON CAREERS DEVELOPMENT GROUP,CAREERS DEVELOPMENT GROUP,2033936884,"45,150"
DEPARTMENT FOR WORK AND PENSIONS ,Corporate,23/11/2015,TREDDS APPS DEV MANDAYS,CIO TECH PLATFORM IMP VME R WFPS-R,HP ENTERPRISE SERVICES UK LTD,2033948600,"44,955"
DEPARTMENT FOR WORK AND PENSIONS ,Employment Programmes,27/11/2015,WP JSA 25+ SUSTAINMENT OUTCOME PAYMENT,WWEG EP NORTH EAST INGEUS UK,INGEUS UK LTD,2033956864,"44,505"
DEPARTMENT FOR WORK AND PENSIONS ,Employment Programmes,13/11/2015,WP JSA 25+ SUSTAINMENT OUTCOME PAYMENT,WWEG EP NORTH EAST INGEUS UK,INGEUS UK LTD,2033935412,"44,290"
DEPARTMENT FOR WORK AND PENSIONS ,Housing Benefits,13/11/2015,HOUSING BENEFIT ADMINISTRATION,HB WALES,FLINTSHIRE COUNTY COUNCIL,2033934310,"44,226"
DEPARTMENT FOR WORK AND PENSIONS ,Employment Programmes,06/11/2015,WP JSA 25+ SUSTAINMENT OUTCOME PAYMENT,WWEG EP NORTH WEST MERS HAL CUMB AND LANCS INGEUS UK,INGEUS UK LTD,2033926706,"44,075"
DEPARTMENT FOR WORK AND PENSIONS ,Employment Programmes,25/11/2015,WP JSA 25+ JOB OUTCOME PAYMENTWP JSA 25+ JOB OUTCOME PAYMENT,WWEG EP NORTH EAST INGEUS UK,INGEUS UK LTD,2033954471,"44,047"
DEPARTMENT FOR WORK AND PENSIONS ,Housing Benefits,13/11/2015,HOUSING BENEFIT ADMINISTRATION,HB ENGLAND,EASTBOURNE BOROUGH COUNCIL,2033934351,"43,874"
DEPARTMENT FOR WORK AND PENSIONS ,Corporate,19/11/2015,CONTRACTORS & STAFF SUBSTITUTIONS,CIO TECHNOLOGY COO CORE,CAPITA BUSINESS SERVICES LTD,2033944240,"43,818"
DEPARTMENT FOR WORK AND PENSIONS ,Corporate,19/11/2015,CONTRACTORS & STAFF SUBSTITUTIONS,CIO ENTERPRISE INFRASTRUCTURE CORE,CAPITA BUSINESS SERVICES LTD,2033944240,"43,725"
DEPARTMENT FOR WORK AND PENSIONS ,Corporate,04/11/2015,CONTRACTORS & STAFF SUBSTITUTIONS,CIO PROD OPS & ASSURANCE CORE,CAPITA BUSINESS SERVICES LTD,2033921245,"43,606"
DEPARTMENT FOR WORK AND PENSIONS ,Corporate,10/11/2015,CONTRACTORS & STAFF SUBSTITUTIONS,CIO EUC SERVICE TECH & INTEGRATION CORE,CAPITA BUSINESS SERVICES LTD,2033929315,"43,571"
DEPARTMENT FOR WORK AND PENSIONS ,Corporate,26/11/2015,CONTRACTORS & STAFF SUBSTITUTIONS,CIO ENTERPRISE INFRASTRUCTURE CORE,CAPITA BUSINESS SERVICES LTD,2033956009,"43,497"
DEPARTMENT FOR WORK AND PENSIONS ,Employment Programmes,16/11/2015,WP JSA 25+ SUSTAINMENT OUTCOME PAYMENT,WWEG EP EAST LONDON CAREERS DEVELOPMENT GROUP,CAREERS DEVELOPMENT GROUP,2033938256,"43,430"
DEPARTMENT FOR WORK AND PENSIONS ,Housing Benefits,13/11/2015,HOUSING BENEFIT ADMINISTRATION,HB SCOTLAND,ANGUS COUNCIL,2033934172,"43,406"
DEPARTMENT FOR WORK AND PENSIONS ,Corporate,04/11/2015,NON PRIME PROPERTY COSTS,FG CD OPS & CMG ESTATES NON-PRIME COSTS,COPELAND BOROUGH COUNCIL,2033921882,"43,175"
DEPARTMENT FOR WORK AND PENSIONS ,Corporate,13/11/2015,CONTRACTED OUT OFFICE SERVICES,CIO TECH PLATFORM IMP MOSAIC,COFELY WORKPLACE LTD,2033937109,"43,129"
DEPARTMENT FOR WORK AND PENSIONS ,Corporate,26/11/2015,CONTRACTORS & STAFF SUBSTITUTIONS,CIO IT INFORMATION DATA SERVICES,CAPITA BUSINESS SERVICES LTD,2033956009,"43,087"
DEPARTMENT FOR WORK AND PENSIONS ,Employment Programmes,13/11/2015,WP JSA 25+ SUSTAINMENT OUTCOME PAYMENT,WWEG EP EAST MIDLANDS INGEUS UK,INGEUS UK LTD,2033935412,"43,000"
DEPARTMENT FOR WORK AND PENSIONS ,Housing Benefits,13/11/2015,HOUSING BENEFIT ADMINISTRATION,HB ENGLAND,BRECKLAND DISTRICT COUNCIL,2033934221,"42,890"
DEPARTMENT FOR WORK AND PENSIONS ,Housing Benefits,13/11/2015,HOUSING BENEFIT ADMINISTRATION,HB ENGLAND,AYLESBURY VALE DISTRICT COUNCIL,2033934156,"42,877"
DEPARTMENT FOR WORK AND PENSIONS ,Employment Programmes,13/11/2015,WP JSA 25+ SUSTAINMENT OUTCOME PAYMENT,WWEG EP NORTH WEST MERS HAL CUMB AND LANCS INGEUS UK,INGEUS UK LTD,2033935412,"42,570"
DEPARTMENT FOR WORK AND PENSIONS ,Employment Programmes,26/11/2015,WP JSA 25+ SUSTAINMENT OUTCOME PAYMENT,WWEG EP NORTH EAST Y AND H G4S,G4S REGIONAL MANAGEMENT UK & I LTD,2033955320,"42,498"
DEPARTMENT FOR WORK AND PENSIONS ,Housing Benefits,13/11/2015,HOUSING BENEFIT ADMINISTRATION,HB WALES,CONWY COUNTY BOROUGH  COUNCIL,2033934124,"42,422"
DEPARTMENT FOR WORK AND PENSIONS ,Employment Programmes,25/11/2015,WP JSA 25+ JOB OUTCOME PAYMENTWP JSA 25+ JOB OUTCOME PAYMENT,WWEG EP WEST YORKSHIRE INGEUS UK,INGEUS UK LTD,2033954471,"42,200"
DEPARTMENT FOR WORK AND PENSIONS ,Housing Benefits,13/11/2015,HOUSING BENEFIT ADMINISTRATION,HB WALES,GWYNEDD COUNCIL,2033934072,"42,026"
DEPARTMENT FOR WORK AND PENSIONS ,Housing Benefits,13/11/2015,HOUSING BENEFIT ADMINISTRATION,HB ENGLAND,CHARNWOOD BOROUGH COUNCIL,2033934123,"42,003"
DEPARTMENT FOR WORK AND PENSIONS ,Employment Programmes,20/11/2015,WP JSA 25+ SUSTAINMENT OUTCOME PAYMENT,WWEG EP NORTH WEST MERS HAL CUMB AND LANCS INGEUS UK,INGEUS UK LTD,2033948004,"41,925"
DEPARTMENT FOR WORK AND PENSIONS ,Employment Programmes,20/11/2015,WP JSA 25+ SUSTAINMENT OUTCOME PAYMENT,WWEG EP NORTH EAST INGEUS UK,INGEUS UK LTD,2033948004,"41,710"
DEPARTMENT FOR WORK AND PENSIONS ,Employment Programmes,23/11/2015,RESIDENTIAL TRAINING COSTS,WWEG EP DELIVERY WELFARE TO WORK PRODUCT SUPPORT,DONCASTER DEAF TRUST,2033949498,"41,010"
DEPARTMENT FOR WORK AND PENSIONS ,Employment Programmes,25/11/2015,WP JSA 25+ JOB OUTCOME PAYMENTWP JSA 25+ JOB OUTCOME PAYMENT,WWEG EP NORTH WEST GM CHES AND WARR G4S,G4S REGIONAL MANAGEMENT UK & I LTD,2033952633,"40,997"
DEPARTMENT FOR WORK AND PENSIONS ,Corporate,10/11/2015,TREDDS APPS DEV MANDAYS,F&C FIN CONT FIN SYSTEMS INT CONTROL GROUP,HP ENTERPRISE SERVICES UK LTD,2033929958,"40,767"
DEPARTMENT FOR WORK AND PENSIONS ,Corporate,17/11/2015,TREDDS IS IT CONSULTANCY (HOSTING) NON ADVICE,CIO TECH PLATFORM IMP VME R MIDDLEWARE,HP ENTERPRISE SERVICES UK LTD,2033941139,"40,504"
DEPARTMENT FOR WORK AND PENSIONS ,Housing Benefits,13/11/2015,HOUSING BENEFIT ADMINISTRATION,HB ENGLAND,BASSETLAW DISTRICT COUNCIL,2033934289,"40,399"
DEPARTMENT FOR WORK AND PENSIONS ,Corporate,10/11/2015,CONTRACTORS & STAFF SUBSTITUTIONS,CHG DIGITALISATION PROG DIRECTOR & PMO,CAPITA BUSINESS SERVICES LTD,2033929315,"40,346"
DEPARTMENT FOR WORK AND PENSIONS ,Housing Benefits,13/11/2015,HOUSING BENEFIT ADMINISTRATION,HB ENGLAND,HYNDBURN BOROUGH COUNCIL,2033934141,"40,308"
DEPARTMENT FOR WORK AND PENSIONS ,Housing Benefits,13/11/2015,HOUSING BENEFIT ADMINISTRATION,HB ENGLAND,CAMBRIDGE CITY COUNCIL,2033934258,"40,039"
DEPARTMENT FOR WORK AND PENSIONS ,Corporate,30/11/2015,PROFESSIONAL ADVICE & OPINION VAT RECOVERABLE,STR LEGAL SERVICES,GOVERNMENT LEGAL DEPARTMENT,2005896,"40,000"
DEPARTMENT FOR WORK AND PENSIONS ,Housing Benefits,13/11/2015,HOUSING BENEFIT ADMINISTRATION,HB WALES,DENBIGHSHIRE COUNTY COUNCIL,2033934277,"39,746"
DEPARTMENT FOR WORK AND PENSIONS ,Housing Benefits,13/11/2015,HOUSING BENEFIT ADMINISTRATION,HB ENGLAND,ASHFORD BOROUGH COUNCIL,2033934100,"39,068"
DEPARTMENT FOR WORK AND PENSIONS ,Corporate,13/11/2015,STAFF TRAINING VAT RECOVERABLE,HR CONTRACTUAL L AND D,CAPITA CIVIL SERVICE LEARNING,2033935030,"38,999"
DEPARTMENT FOR WORK AND PENSIONS ,Employment Programmes,20/11/2015,WP JSA 25+ SUSTAINMENT OUTCOME PAYMENT,WWEG EP EAST MIDLANDS INGEUS UK,INGEUS UK LTD,2033948004,"38,915"
DEPARTMENT FOR WORK AND PENSIONS ,Corporate,17/11/2015,AGENCY PAYMENTS TO LOCAL AUTHORITIES & PARTNERSHIPS,OPS WDC WSD SC DUNDEE UNIVERSAL SUPPORT,DUNDEE CITY COUNCIL,2033940151,"38,746"
DEPARTMENT FOR WORK AND PENSIONS ,Housing Benefits,13/11/2015,HOUSING BENEFIT ADMINISTRATION,HB ENGLAND,AMBER VALLEY BOROUGH COUNCIL,2033934121,"38,575"
DEPARTMENT FOR WORK AND PENSIONS ,Housing Benefits,13/11/2015,HOUSING BENEFIT ADMINISTRATION,HB ENGLAND,GRAVESHAM BOROUGH COUNCIL,2033934253,"38,567"
DEPARTMENT FOR WORK AND PENSIONS ,Corporate,19/11/2015,CONTRACTORS & STAFF SUBSTITUTIONS,CIO C SS S & E IT DIRECTOR CORE,CAPITA BUSINESS SERVICES LTD,2033944240,"38,513"
DEPARTMENT FOR WORK AND PENSIONS ,Employment Programmes,06/11/2015,WP JSA 25+ SUSTAINMENT OUTCOME PAYMENT,WWEG EP EAST MIDLANDS INGEUS UK,INGEUS UK LTD,2033926706,"38,485"
DEPARTMENT FOR WORK AND PENSIONS ,Employment Programmes,06/11/2015,WP JSA 25+ SUSTAINMENT OUTCOME PAYMENT,WWEG EP WEST LONDON INGEUS UK,INGEUS UK LTD,2033926706,"38,485"
DEPARTMENT FOR WORK AND PENSIONS ,Corporate,03/11/2015,STAFF TRAINING VAT RECOVERABLE,HR CONTRACTUAL L AND D,CAPITA CIVIL SERVICE LEARNING,2033920258,"38,226"
DEPARTMENT FOR WORK AND PENSIONS ,Corporate,03/11/2015,STATIONERY/ PUBLICATIONS/IT CONSUMABLES,CHG STATE PENSION REFORM SINGLE TIER,HM REVENUE & CUSTOMS,2005827,"38,107"
DEPARTMENT FOR WORK AND PENSIONS ,Housing Benefits,13/11/2015,HOUSING BENEFIT ADMINISTRATION,HB ENGLAND,HAVANT BOROUGH COUNCIL,2033934305,"37,904"
DEPARTMENT FOR WORK AND PENSIONS ,Housing Benefits,13/11/2015,HOUSING BENEFIT ADMINISTRATION,HB ENGLAND,FENLAND DISTRICT COUNCIL,2033934353,"37,892"
DEPARTMENT FOR WORK AND PENSIONS ,Housing Benefits,13/11/2015,HOUSING BENEFIT ADMINISTRATION,HB ENGLAND,CHERWELL DISTRICT COUNCIL,2033934130,"37,533"
DEPARTMENT FOR WORK AND PENSIONS ,Employment Programmes,27/11/2015,WP JSA 25+ SUSTAINMENT OUTCOME PAYMENT,WWEG EP WEST YORKSHIRE INGEUS UK,INGEUS UK LTD,2033956864,"37,410"
DEPARTMENT FOR WORK AND PENSIONS ,Housing Benefits,13/11/2015,HOUSING BENEFIT ADMINISTRATION,HB ENGLAND,CHELTENHAM BOROUGH COUNCIL,2033934087,"37,408"
DEPARTMENT FOR WORK AND PENSIONS ,Corporate,04/11/2015,CONTRACTORS & STAFF SUBSTITUTIONS,CIO C SS S & E IT DIRECTOR CORE,CAPITA BUSINESS SERVICES LTD,2033921245,"37,236"
DEPARTMENT FOR WORK AND PENSIONS ,Corporate,12/11/2015,COST VARIANCE ACCOUNT,OPS OPE C&I NATIONAL 3,CAPITA CIVIL SERVICE LEARNING,2033933310,"37,225"
DEPARTMENT FOR WORK AND PENSIONS ,Corporate,04/11/2015,CONTRACTORS & STAFF SUBSTITUTIONS,CIO SECURITY TECH SECURITY & RISK MGT CORE,CAPITA BUSINESS SERVICES LTD,2033921245,"36,988"
DEPARTMENT FOR WORK AND PENSIONS ,Housing Benefits,13/11/2015,HOUSING BENEFIT ADMINISTRATION,HB ENGLAND,EPPING FOREST DISTRICT COUNCIL,2033934017,"36,985"
DEPARTMENT FOR WORK AND PENSIONS ,Housing Benefits,13/11/2015,HOUSING BENEFIT ADMINISTRATION,HB ENGLAND,GOSPORT BOROUGH COUNCIL,2033934049,"36,980"
DEPARTMENT FOR WORK AND PENSIONS ,Employment Programmes,25/11/2015,WP JSA 25+ JOB OUTCOME PAYMENTWP JSA 25+ JOB OUTCOME PAYMENT,WWEG EP SOUTH EAST SURR SUSSX AND KENT G4S,G4S REGIONAL MANAGEMENT UK & I LTD,2033952633,"36,944"
DEPARTMENT FOR WORK AND PENSIONS ,Corporate,09/11/2015,AGENCY PAYMENTS TO LOCAL AUTHORITIES & PARTNERSHIPS,OPS WDS WSD NW REGION UNIVERSAL CREDIT,BURY MBC,2033927838,"36,877"
DEPARTMENT FOR WORK AND PENSIONS ,Housing Benefits,13/11/2015,HOUSING BENEFIT ADMINISTRATION,HB SCOTLAND,ARGYLL & BUTE COUNCIL,2033934009,"36,864"
DEPARTMENT FOR WORK AND PENSIONS ,Corporate,23/11/2015,ADEP AM SERVICES - VAT NON-RECOVERABLE,CIO PENSIONS & DISABLED CORE,ACCENTURE UK LTD,2033948680,"36,696"
DEPARTMENT FOR WORK AND PENSIONS ,Corporate,23/11/2015,ADEP AM SERVICES - VAT NON-RECOVERABLE,CIO ENTERPRISE INFRASTRUCTURE CORE,ACCENTURE UK LTD,2033948680,"36,696"
DEPARTMENT FOR WORK AND PENSIONS ,Corporate,27/11/2015,ADEP AM SERVICES - VAT NON-RECOVERABLE,CIO PENSIONS & DISABLED CORE,ACCENTURE UK LTD,2033957665,"36,696"
DEPARTMENT FOR WORK AND PENSIONS ,Employment Programmes,06/11/2015,ACCESS TO WORK - PAYMENT FOR SUPPORT WORKERS,WWEG EP LONDON REGION,HANDSCOM LTD,2033925753,"36,649"
DEPARTMENT FOR WORK AND PENSIONS ,Housing Benefits,13/11/2015,HOUSING BENEFIT ADMINISTRATION,HB ENGLAND,GEDLING BOROUGH COUNCIL,2033934291,"36,591"
DEPARTMENT FOR WORK AND PENSIONS ,Housing Benefits,13/11/2015,HOUSING BENEFIT ADMINISTRATION,HB ENGLAND,GUILDFORD BOROUGH COUNCIL,2033934079,"36,502"
DEPARTMENT FOR WORK AND PENSIONS ,Corporate,17/11/2015,NON-TREDDS IS IT APPS DEV MANDAY,CIO CIS INFRASTRUCTURE,IBM UNITED KINGDOM LTD,2033940553,"36,497"
DEPARTMENT FOR WORK AND PENSIONS ,Corporate,27/11/2015,NON-TREDDS IS IT APPS DEV MANDAY,CHG STATE PENSION REFORM 2,ACCENTURE UK LTD,2033957665,"36,471"
DEPARTMENT FOR WORK AND PENSIONS ,Housing Benefits,13/11/2015,HOUSING BENEFIT ADMINISTRATION,HB ENGLAND,EAST STAFFORDSHIRE DISTRICT COUNCIL,2033934345,"36,405"
DEPARTMENT FOR WORK AND PENSIONS ,Housing Benefits,13/11/2015,HOUSING BENEFIT ADMINISTRATION,HB WALES,BLAENAU GWENT COUNTY BOROUGH COUNCIL,2033934005,"36,373"
DEPARTMENT FOR WORK AND PENSIONS ,Employment Programmes,06/11/2015,WP JSA 25+ SUSTAINMENT OUTCOME PAYMENT,WWEG EP WEST YORKSHIRE INGEUS UK,INGEUS UK LTD,2033926706,"36,335"
DEPARTMENT FOR WORK AND PENSIONS ,Corporate,02/11/2015,FSF - TRAINING PAYMENTS TO PROVIDERS - JSA JOBSEEKERS,OPS WDC WSD NW CUMB LANCS EMPLOYER AND PARTNERSHIPS TEAM,INSPIRA CUMBRIA LTD,2033918243,"36,242"
DEPARTMENT FOR WORK AND PENSIONS ,Housing Benefits,13/11/2015,HOUSING BENEFIT ADMINISTRATION,HB ENGLAND,CANNOCK CHASE DISTRICT COUNCIL,2033934344,"36,174"
DEPARTMENT FOR WORK AND PENSIONS ,Housing Benefits,13/11/2015,HOUSING BENEFIT ADMINISTRATION,HB ENGLAND,EAST DEVON DISTRICT COUNCIL,2033934296,"36,002"
DEPARTMENT FOR WORK AND PENSIONS ,Housing Benefits,13/11/2015,HOUSING BENEFIT ADMINISTRATION,HB ENGLAND,HERTSMERE BOROUGH COUNCIL,2033934083,"35,929"
DEPARTMENT FOR WORK AND PENSIONS ,Corporate,17/11/2015,CONTRACTED OUT OFFICE SERVICES,FG OPS FIN DM ENFORCEMENT,AKINIKA,2033941776,"35,755"
DEPARTMENT FOR WORK AND PENSIONS ,Housing Benefits,13/11/2015,HOUSING BENEFIT ADMINISTRATION,HB ENGLAND,EAST HERTFORDSHIRE DISTRICT COUNCIL,2033934362,"35,502"
DEPARTMENT FOR WORK AND PENSIONS ,Corporate,26/11/2015,CONTRACTORS & STAFF SUBSTITUTIONS,CHG DIGITALISATION PROG DIRECTOR & PMO,CAPITA BUSINESS SERVICES LTD,2033956009,"35,404"
DEPARTMENT FOR WORK AND PENSIONS ,Employment Programmes,20/11/2015,WP JSA 25+ SUSTAINMENT OUTCOME PAYMENT,WWEG EP WEST YORKSHIRE INGEUS UK,INGEUS UK LTD,2033948004,"35,260"
DEPARTMENT FOR WORK AND PENSIONS ,Corporate,13/11/2015,CAPITAL GRANTS TO CENTRAL GOVERNMENT,STR ESF 2014-2020,DEPARTMENT OF COMMUNITIES & LOCAL GOVERNMENT,2005844,"35,250"
DEPARTMENT FOR WORK AND PENSIONS ,Employment Programmes,25/11/2015,WP JSA 25+ JOB OUTCOME PAYMENTWP JSA 25+ JOB OUTCOME PAYMENT,WWEG EP WEST LONDON INGEUS UK,INGEUS UK LTD,2033954471,"35,193"
DEPARTMENT FOR WORK AND PENSIONS ,Corporate,11/11/2015,CONTRACTED OUT ORIGINAL RESEARCH,STR SOCIAL JUSTICE DIRECTOR AND SUPPORT - DEL A,IFF RESEARCH LTD,2033931031,"35,160"
DEPARTMENT FOR WORK AND PENSIONS ,Employment Programmes,13/11/2015,WP JSA 25+ SUSTAINMENT OUTCOME PAYMENT,WWEG EP WEST YORKSHIRE INGEUS UK,INGEUS UK LTD,2033935412,"35,045"
DEPARTMENT FOR WORK AND PENSIONS ,Corporate,19/11/2015,CONTRACTORS & STAFF SUBSTITUTIONS,CIO ADC DIRECTOR,CAPITA BUSINESS SERVICES LTD,2033944240,"34,963"
DEPARTMENT FOR WORK AND PENSIONS ,Housing Benefits,13/11/2015,HOUSING BENEFIT ADMINISTRATION,HB ENGLAND,BROXBOURNE BOROUGH COUNCIL,2033934082,"34,950"
DEPARTMENT FOR WORK AND PENSIONS ,Corporate,10/11/2015,CONTRACTORS & STAFF SUBSTITUTIONS,CIO TECH PLATFORM IMP CIS R,CAPITA BUSINESS SERVICES LTD,2033929315,"34,844"
DEPARTMENT FOR WORK AND PENSIONS ,Housing Benefits,13/11/2015,HOUSING BENEFIT ADMINISTRATION,HB ENGLAND,EREWASH BOROUGH COUNCIL,2033934270,"34,774"
DEPARTMENT FOR WORK AND PENSIONS ,Corporate,10/11/2015,CONTRACTORS & STAFF SUBSTITUTIONS,CHG DEPARTMENTAL & BUSINESS STRATEGY,CAPITA BUSINESS SERVICES LTD,2033929315,"34,714"
DEPARTMENT FOR WORK AND PENSIONS ,Corporate,19/11/2015,CONTRACTORS & STAFF SUBSTITUTIONS,CIO EUC TECHNICAL SUPPORT  CORE,CAPITA BUSINESS SERVICES LTD,2033944240,"34,564"
DEPARTMENT FOR WORK AND PENSIONS ,Corporate,19/11/2015,CONTRACTORS & STAFF SUBSTITUTIONS,CIO EUC SERVICE TECH & INTEGRATION CORE,CAPITA BUSINESS SERVICES LTD,2033944240,"34,486"
DEPARTMENT FOR WORK AND PENSIONS ,Housing Benefits,13/11/2015,HOUSING BENEFIT ADMINISTRATION,HB ENGLAND,CITY OF CARLISLE DISTRICT COUNCIL,2033934267,"34,382"
DEPARTMENT FOR WORK AND PENSIONS ,Housing Benefits,13/11/2015,HOUSING BENEFIT ADMINISTRATION,HB ENGLAND,CHICHESTER DISTRICT COUNCIL,2033934132,"34,367"
DEPARTMENT FOR WORK AND PENSIONS ,Housing Benefits,13/11/2015,HOUSING BENEFIT ADMINISTRATION,HB ENGLAND,HARROGATE BOROUGH COUNCIL,2033934275,"34,286"
DEPARTMENT FOR WORK AND PENSIONS ,Corporate,10/11/2015,CONTRACTORS & STAFF SUBSTITUTIONS,CIO C SS S & E IT DIRECTOR CORE,CAPITA BUSINESS SERVICES LTD,2033929315,"33,915"
DEPARTMENT FOR WORK AND PENSIONS ,Corporate,23/11/2015,AGENCY PAYMENTS TO LOCAL AUTHORITIES & PARTNERSHIPS,OPS WDC WSD NE SOUTH YORKSHIRE DISTRICT OFFICE,BARNSLEY METROPOLITAN BOROUGH COUNCIL UC,2033949534,"33,800"
DEPARTMENT FOR WORK AND PENSIONS ,Housing Benefits,13/11/2015,HOUSING BENEFIT ADMINISTRATION,HB SCOTLAND,EAST LOTHIAN DISTRICT COUNCIL,2033934241,"33,624"
DEPARTMENT FOR WORK AND PENSIONS ,Employment Programmes,25/11/2015,WP JSA 25+ JOB OUTCOME PAYMENTWP JSA 25+ JOB OUTCOME PAYMENT,WWEG EP W MIDLANDS COV WARW STAFFS AND MARCHES ESG,ESG HOLDINGS LIMITED,2033952880,"33,620"
DEPARTMENT FOR WORK AND PENSIONS ,Employment Programmes,27/11/2015,WP JSA 25+ SUSTAINMENT OUTCOME PAYMENT,WWEG EP WEST LONDON INGEUS UK,INGEUS UK LTD,2033956864,"33,325"
DEPARTMENT FOR WORK AND PENSIONS ,Corporate,03/11/2015,FSF - PARTNERSHIP GRANTS - TO HELP JSA CLIENTS INTO WORK,OPS WDC WSD SC DUNDEE WELLGATE JOBCENTRE PLUS,DUNDEE CITY COUNCIL,2033920002,"33,301"
DEPARTMENT FOR WORK AND PENSIONS ,Corporate,10/11/2015,TREDDS APPS DEV MANDAYS,CHG STATE PENSION REFORM SINGLE TIER,HP ENTERPRISE SERVICES UK LTD,2033929958,"33,251"
DEPARTMENT FOR WORK AND PENSIONS ,Employment Programmes,18/11/2015,WP JSA 25+ SUSTAINMENT OUTCOME PAYMENT,WWEG EP EAST LONDON CAREERS DEVELOPMENT GROUP,CAREERS DEVELOPMENT GROUP,2033943187,"32,895"
DEPARTMENT FOR WORK AND PENSIONS ,Corporate,17/11/2015,TREDDS APPS DEV MANDAYS,CHG ESA REFORMS,HP ENTERPRISE SERVICES UK LTD,2033941139,"32,663"
DEPARTMENT FOR WORK AND PENSIONS ,Corporate,16/11/2015,NETWORK SERVICES,CIO ITLR NETWORK,BT GLOBAL SERVICES,2033939230,"32,646"
DEPARTMENT FOR WORK AND PENSIONS ,Corporate,16/11/2015,TREDDS IS IT CONSULTANCY NON ADVICE,CHG SCANNING & DIGITAL STORAGE,HP ENTERPRISE SERVICES UK LTD,2033938951,"32,503"
DEPARTMENT FOR WORK AND PENSIONS ,Corporate,09/11/2015,AGENCY PAYMENTS TO LOCAL AUTHORITIES & PARTNERSHIPS,OPS WDC WSD NE NORTHUMBRIA TYNE AND WEAR DISTRICT OFFICE,GATESHEAD COUNCIL,2033927648,"32,424"
DEPARTMENT FOR WORK AND PENSIONS ,Housing Benefits,13/11/2015,HOUSING BENEFIT ADMINISTRATION,HB ENGLAND,BRACKNELL FOREST BOROUGH COUNCIL,2033934062,"32,298"
DEPARTMENT FOR WORK AND PENSIONS ,Employment Programmes,02/11/2015,WP JSA 25+ SUSTAINMENT OUTCOME PAYMENT,WWEG EP EAST LONDON CAREERS DEVELOPMENT GROUP,CAREERS DEVELOPMENT GROUP,2033919221,"32,250"
DEPARTMENT FOR WORK AND PENSIONS ,Corporate,19/11/2015,CONTRACTORS & STAFF SUBSTITUTIONS,CIO IT INFORMATION DATA SERVICES,CAPITA BUSINESS SERVICES LTD,2033944240,"32,177"
DEPARTMENT FOR WORK AND PENSIONS ,Corporate,17/11/2015,NON-TREDDS IS IT APPS DEV MANDAY,CHG PAYMENT DEDUCTION PROGRAMME,IBM UNITED KINGDOM LTD,2033940553,"32,161"
DEPARTMENT FOR WORK AND PENSIONS ,Housing Benefits,13/11/2015,HOUSING BENEFIT ADMINISTRATION,HB ENGLAND,ELMBRIDGE BOROUGH COUNCIL,2033934016,"32,135"
DEPARTMENT FOR WORK AND PENSIONS ,Corporate,16/11/2015,STAFF TRAINING VAT RECOVERABLE,CMG OPS EXTERNAL CONTRACTS/SLAS L&D,CAPITA CIVIL SERVICE LEARNING,2033938376,"32,029"
DEPARTMENT FOR WORK AND PENSIONS ,Employment Programmes,20/11/2015,WP JSA 25+ SUSTAINMENT OUTCOME PAYMENT,WWEG EP WEST LONDON INGEUS UK,INGEUS UK LTD,2033948004,"31,820"
DEPARTMENT FOR WORK AND PENSIONS ,Employment Programmes,05/11/2015,SERVICE FEE,WWEP EP FG CEP SES - DONCASTER DEAF TRUST,DONCASTER DEAF TRUST,2033923281,"31,581"
DEPARTMENT FOR WORK AND PENSIONS ,Housing Benefits,13/11/2015,HOUSING BENEFIT ADMINISTRATION,HB ENGLAND,CORBY BOROUGH COUNCIL,2033934055,"31,536"
DEPARTMENT FOR WORK AND PENSIONS ,Corporate,19/11/2015,CONTRACTORS & STAFF SUBSTITUTIONS,F&C CD STRATEGY AND BUSINESS MANAGEMENT,CAPITA BUSINESS SERVICES LTD,2033944240,"31,504"
DEPARTMENT FOR WORK AND PENSIONS ,Housing Benefits,13/11/2015,HOUSING BENEFIT ADMINISTRATION,HB ENGLAND,ALLERDALE DISTRICT COUNCIL,2033934188,"31,273"
DEPARTMENT FOR WORK AND PENSIONS ,Corporate,10/11/2015,CONTRACTORS & STAFF SUBSTITUTIONS,CIO TECHNOLOGY COO CORE,CAPITA BUSINESS SERVICES LTD,2033929315,"31,269"
DEPARTMENT FOR WORK AND PENSIONS ,Corporate,24/11/2015,STAFF TRAINING VAT RECOVERABLE,HR CONTRACTUAL L AND D,CAPITA CIVIL SERVICE LEARNING,2033950783,"31,225"
DEPARTMENT FOR WORK AND PENSIONS ,Employment Programmes,13/11/2015,WP JSA 25+ SUSTAINMENT OUTCOME PAYMENT,WWEG EP WEST LONDON INGEUS UK,INGEUS UK LTD,2033935412,"31,175"
DEPARTMENT FOR WORK AND PENSIONS ,Housing Benefits,13/11/2015,HOUSING BENEFIT ADMINISTRATION,HB ENGLAND,CHORLEY BOROUGH COUNCIL,2033934140,"31,024"
DEPARTMENT FOR WORK AND PENSIONS ,Housing Benefits,13/11/2015,HOUSING BENEFIT ADMINISTRATION,HB ENGLAND,DARTFORD BOROUGH COUNCIL,2033934157,"31,002"
DEPARTMENT FOR WORK AND PENSIONS ,Corporate,10/11/2015,SIAM FIXED PRICE CONTRACTS,CIO CTO SECURITY,CAPGEMINI UK PLC,2033929957,"30,950"
DEPARTMENT FOR WORK AND PENSIONS ,Housing Benefits,13/11/2015,HOUSING BENEFIT ADMINISTRATION,HB ENGLAND,BOROUGH OF REDDITCH,2033934070,"30,818"
DEPARTMENT FOR WORK AND PENSIONS ,Corporate,17/11/2015,RECURRENT PUBLICITY,CHG STATE PENSION REFORM SINGLE TIER,CARAT,2033940659,"30,533"
DEPARTMENT FOR WORK AND PENSIONS ,Housing Benefits,13/11/2015,HOUSING BENEFIT ADMINISTRATION,HB ENGLAND,BROXTOWE BOROUGH COUNCIL,2033934290,"30,453"
DEPARTMENT FOR WORK AND PENSIONS ,Corporate,04/11/2015,CONTRACTORS & STAFF SUBSTITUTIONS,CIO EUC SERVICE TECH & INTEGRATION CORE,CAPITA BUSINESS SERVICES LTD,2033921245,"29,912"
DEPARTMENT FOR WORK AND PENSIONS ,Corporate,04/11/2015,CONTRACTORS & STAFF SUBSTITUTIONS,CIO ARCHITECTURE CORE,CAPITA BUSINESS SERVICES LTD,2033921245,"29,778"
DEPARTMENT FOR WORK AND PENSIONS ,Housing Benefits,13/11/2015,HOUSING BENEFIT ADMINISTRATION,HB ENGLAND,BOLSOVER DISTRICT COUNCIL,2033934026,"29,643"
DEPARTMENT FOR WORK AND PENSIONS ,Corporate,26/11/2015,CONTRACTORS & STAFF SUBSTITUTIONS,CHG PIP IT DIGITAL,CAPITA BUSINESS SERVICES LTD,2033956009,"29,607"
DEPARTMENT FOR WORK AND PENSIONS ,Corporate,30/11/2015,AGENCY PAYMENTS TO LOCAL AUTHORITIES & PARTNERSHIPS,OPS WDC WSD LN GROUP HOLDING ACCOUNT,GRAVESHAM BOROUGH COUNCIL,2033960751,"29,563"
DEPARTMENT FOR WORK AND PENSIONS ,Corporate,13/11/2015,TREDDS APPS DEV MANDAYS,CHG STATE PENSION REFORM 2,HP ENTERPRISE SERVICES UK LTD,2033934461,"29,520"
DEPARTMENT FOR WORK AND PENSIONS ,Housing Benefits,13/11/2015,HOUSING BENEFIT ADMINISTRATION,HB ENGLAND,HIGH PEAK BOROUGH COUNCIL,2033934271,"29,513"
DEPARTMENT FOR WORK AND PENSIONS ,Corporate,10/11/2015,TREDDS APPS DEV FIXED PRICE CONTRACTS,CHG UC PATHFINDER DELIVERY MANAGEMENT,HP ENTERPRISE SERVICES UK LTD,2033929958,"29,467"
DEPARTMENT FOR WORK AND PENSIONS ,Corporate,26/11/2015,CONTRACTORS & STAFF SUBSTITUTIONS,CIO EUC SERVICE TECH & INTEGRATION CORE,CAPITA BUSINESS SERVICES LTD,2033956009,"29,124"
DEPARTMENT FOR WORK AND PENSIONS ,Corporate,03/11/2015,BANK COMMISSION & CHARGES,FG FIN CONT COBAP BANKING,HSBC BANK PLC,2033920329,"28,942"
DEPARTMENT FOR WORK AND PENSIONS ,Corporate,04/11/2015,CONTRACTORS & STAFF SUBSTITUTIONS,CIO IT SECURITY & BUSINESS CONTINUITY,CAPITA BUSINESS SERVICES LTD,2033921245,"28,930"
DEPARTMENT FOR WORK AND PENSIONS ,Housing Benefits,13/11/2015,HOUSING BENEFIT ADMINISTRATION,HB ENGLAND,HORSHAM DISTRICT COUNCIL,2033934134,"28,915"
DEPARTMENT FOR WORK AND PENSIONS ,Employment Programmes,17/11/2015,WP JSA 25+ SUSTAINMENT OUTCOME PAYMENT,WWEG EP EAST LONDON CAREERS DEVELOPMENT GROUP,CAREERS DEVELOPMENT GROUP,2033940865,"28,595"
DEPARTMENT FOR WORK AND PENSIONS ,Corporate,23/11/2015,STAFF TRAINING VAT RECOVERABLE,HR CONTRACTUAL L AND D,CAPITA CIVIL SERVICE LEARNING,2033949063,"28,551"
DEPARTMENT FOR WORK AND PENSIONS ,Housing Benefits,13/11/2015,HOUSING BENEFIT ADMINISTRATION,HB ENGLAND,EASTLEIGH BOROUGH COUNCIL,2033934047,"28,444"
DEPARTMENT FOR WORK AND PENSIONS ,Corporate,16/11/2015,FSF - PARTNERSHIP GRANTS - TO HELP JSA CLIENTS INTO WORK,OPS WDC WSD LN SOUTH LONDON DISTRICT OFFICE,EMERGENCE OPPORTUNITIES LTD,2033937925,"28,443"
DEPARTMENT FOR WORK AND PENSIONS ,Employment Programmes,05/11/2015,ACCESS TO WORK - PAYMENT FOR SUPPORT WORKERS,WWEG EP LONDON REGION,COMMUNIQUECATION LTD,2033924678,"28,348"
DEPARTMENT FOR WORK AND PENSIONS ,Corporate,18/11/2015,MANAGEMENT CONFERENCES,STR ANALYSIS DIRECTOR OF ANALYSIS AND SUPPORT,CALDER CONFERENCES LTD,2033942957,"28,274"
DEPARTMENT FOR WORK AND PENSIONS ,Corporate,26/11/2015,CONTRACTORS & STAFF SUBSTITUTIONS,CHG DIGITAL ACADEMY,CAPITA BUSINESS SERVICES LTD,2033956009,"28,208"
DEPARTMENT FOR WORK AND PENSIONS ,Corporate,24/11/2015,FSF - PARTNERSHIP GRANTS - TO HELP JSA CLIENTS INTO WORK,OPS WDC WSD LN SOUTH LONDON DISTRICT OFFICE,FLY CONSORTIUM,2033951534,"28,200"
DEPARTMENT FOR WORK AND PENSIONS ,Corporate,20/11/2015,FSF - PARTNERSHIP GRANTS - TO HELP JSA CLIENTS INTO WORK,OPS WDC WSD LN NORTH LONDON DISTRICT OFFICE,ISLINGTON COUNCIL,2033946689,"28,000"
DEPARTMENT FOR WORK AND PENSIONS ,Corporate,04/11/2015,CONTRACTORS & STAFF SUBSTITUTIONS,CHG RTI STRATEGIC SOLUTION,CAPITA BUSINESS SERVICES LTD,2033921245,"27,996"
DEPARTMENT FOR WORK AND PENSIONS ,Corporate,20/11/2015,PROFESSIONAL ADVICE & OPINION VAT RECOVERABLE,STR LEGAL SERVICES COMPENSATION & LEGAL COSTS,DLA PIPER UK LLP,1007527,"27,959"
DEPARTMENT FOR WORK AND PENSIONS ,Corporate,10/11/2015,CONTRACTORS & STAFF SUBSTITUTIONS,CIO ENTERPRISE INFRASTRUCTURE CONTRACT IPCC,CAPITA BUSINESS SERVICES LTD,2033929315,"27,761"
DEPARTMENT FOR WORK AND PENSIONS ,Housing Benefits,13/11/2015,HOUSING BENEFIT ADMINISTRATION,HB ENGLAND,BOSTON BOROUGH COUNCIL,2033934196,"27,547"
DEPARTMENT FOR WORK AND PENSIONS ,Housing Benefits,13/11/2015,HOUSING BENEFIT ADMINISTRATION,HB ENGLAND,BOROUGH OF WELLINGBOROUGH,2033934273,"27,417"
DEPARTMENT FOR WORK AND PENSIONS ,Corporate,24/11/2015,PROFESSIONAL ADVICE & OPINION VAT RECOVERABLE,STR LEGAL SERVICES,HOGAN LOVELLS,1007531,"27,404"
DEPARTMENT FOR WORK AND PENSIONS ,Housing Benefits,13/11/2015,HOUSING BENEFIT ADMINISTRATION,HB ENGLAND,EAST HAMPSHIRE DISTRICT COUNCIL,2033934046,"27,170"
DEPARTMENT FOR WORK AND PENSIONS ,Corporate,24/11/2015,PROFESSIONAL ADVICE & OPINION VAT RECOVERABLE,STR LEGAL SERVICES,HOGAN LOVELLS,1007532,"27,093"
DEPARTMENT FOR WORK AND PENSIONS ,Corporate,11/11/2015,BBC TV LIC O/75'S,STR BBC TV LIC O 75s DEL P,BBC,2033932379,"27,068"
DEPARTMENT FOR WORK AND PENSIONS ,Corporate,04/11/2015,PROFESSIONAL SERVICES NON VAT RECOVERABLE,OPS OPE CMG RELATIONSHIP SUPPORT,FAMILY LIVES,2033922620,"26,974"
DEPARTMENT FOR WORK AND PENSIONS ,Housing Benefits,13/11/2015,HOUSING BENEFIT ADMINISTRATION,HB ENGLAND,BROADLAND DISTRICT COUNCIL,2033934222,"26,825"
DEPARTMENT FOR WORK AND PENSIONS ,Housing Benefits,13/11/2015,HOUSING BENEFIT ADMINISTRATION,HB ENGLAND,BARROW BOROUGH COUNCIL,2033934088,"26,727"
DEPARTMENT FOR WORK AND PENSIONS ,Corporate,26/11/2015,CONTRACTORS & STAFF SUBSTITUTIONS,CIO TECH PLATFORM FED CORE,CAPITA BUSINESS SERVICES LTD,2033956009,"26,719"
DEPARTMENT FOR WORK AND PENSIONS ,Corporate,10/11/2015,HOSTING GMS SERVICES,OPS OPE C&I IT WINTER FUEL,HP ENTERPRISE SERVICES UK LTD,2033929958,"26,633"
DEPARTMENT FOR WORK AND PENSIONS ,Employment Programmes,02/11/2015,WP JSA 25+ SUSTAINMENT OUTCOME PAYMENT,WWEG EP SOUTH EAST SURR SUSSX AND KENT G4S,G4S REGIONAL MANAGEMENT UK & I LTD,2033918582,"26,445"
DEPARTMENT FOR WORK AND PENSIONS ,Employment Programmes,03/11/2015,WP JSA 25+ SUSTAINMENT OUTCOME PAYMENT,WWEG EP SOUTH EAST SURR SUSSX AND KENT G4S,G4S REGIONAL MANAGEMENT UK & I LTD,2033919744,"26,445"
DEPARTMENT FOR WORK AND PENSIONS ,Housing Benefits,13/11/2015,HOUSING BENEFIT ADMINISTRATION,HB ENGLAND,FOREST OF DEAN DISTRICT COUNCIL,2033934020,"26,346"
DEPARTMENT FOR WORK AND PENSIONS ,Employment Programmes,02/11/2015,WP JSA 25+ SUSTAINMENT OUTCOME PAYMENT,WWEG EP NORTH WEST GM CHES AND WARR G4S,G4S REGIONAL MANAGEMENT UK & I LTD,2033918582,"26,230"
DEPARTMENT FOR WORK AND PENSIONS ,Corporate,26/11/2015,CONTRACTORS & STAFF SUBSTITUTIONS,CIO TECHNOLOGY COO CORE,CAPITA BUSINESS SERVICES LTD,2033956009,"26,150"
DEPARTMENT FOR WORK AND PENSIONS ,Housing Benefits,13/11/2015,HOUSING BENEFIT ADMINISTRATION,HB ENGLAND,CASTLE POINT DISTRICT COUNCIL,2033934375,"26,108"
DEPARTMENT FOR WORK AND PENSIONS ,Corporate,23/11/2015,NON-TREDDS IS IT APPS DEV MANDAY,OPS OPE C&I BUSINESS GENERATED CHANGE - IT,ACCENTURE UK LTD,2033948680,"26,024"
DEPARTMENT FOR WORK AND PENSIONS ,Corporate,26/11/2015,CONTRACTORS & STAFF SUBSTITUTIONS,CIO EUC COLLABORATION SERVICES CORE,CAPITA BUSINESS SERVICES LTD,2033956009,"25,981"
DEPARTMENT FOR WORK AND PENSIONS ,Housing Benefits,13/11/2015,HOUSING BENEFIT ADMINISTRATION,HB ENGLAND,HINCKLEY & BOSWORTH BOROUGH COUNCIL,2033934168,"25,468"
DEPARTMENT FOR WORK AND PENSIONS ,Corporate,13/11/2015,OVERTIME,CMG OPS EXTERNAL CONTRACTS/SLAS EASTERN PAYMENTS NI,DSD GROUP ACCOUNT,1007517,"25,455"
DEPARTMENT FOR WORK AND PENSIONS ,Corporate,19/11/2015,CONTRACTORS & STAFF SUBSTITUTIONS,CHG DIGITALISATION PROG DIRECTOR & PMO,CAPITA BUSINESS SERVICES LTD,2033944240,"25,400"
DEPARTMENT FOR WORK AND PENSIONS ,Housing Benefits,13/11/2015,HOUSING BENEFIT ADMINISTRATION,HB SCOTLAND,CLACKMANNANSHIRE COUNCIL,2033934148,"25,370"
DEPARTMENT FOR WORK AND PENSIONS ,Corporate,02/11/2015,AGENCY PAYMENTS TO LOCAL AUTHORITIES & PARTNERSHIPS,OPS WDC WSD SC GLASGOW LANARKSHIRE E DUMBARTONSHIRE DO,GLASGOW CITY COUNCIL,2033919032,"25,172"
DEPARTMENT FOR WORK AND PENSIONS ,Employment Programmes,30/11/2015,WP JSA 25+ SUSTAINMENT OUTCOME PAYMENT,WWEG EP SOUTH EAST SURR SUSSX AND KENT G4S,G4S REGIONAL MANAGEMENT UK & I LTD,2033959538,"25,155"
DEPARTMENT FOR WORK AND PENSIONS ,Housing Benefits,13/11/2015,HOUSING BENEFIT ADMINISTRATION,HB WALES,CEREDIGION COUNTY COUNCIL,2033934280,"25,043"
DEPARTMENT FOR WORK AND PENSIONS ,Corporate,04/11/2015,CONTRACTORS & STAFF SUBSTITUTIONS,CIO EUC TECHNICAL SUPPORT  CORE,CAPITA BUSINESS SERVICES LTD,2033921245,"24,952"
DEPARTMENT FOR WORK AND PENSIONS ,Housing Benefits,13/11/2015,HOUSING BENEFIT ADMINISTRATION,HB SCOTLAND,EAST DUNBARTONSHIRE COUNCIL,2033934101,"24,730"
DEPARTMENT FOR WORK AND PENSIONS ,Corporate,19/11/2015,CONTRACTORS & STAFF SUBSTITUTIONS,CIO TECH PLATFORM IMP CIS R,CAPITA BUSINESS SERVICES LTD,2033944240,"24,705"
DEPARTMENT FOR WORK AND PENSIONS ,Employment Programmes,16/11/2015,WP JSA 25+ SUSTAINMENT OUTCOME PAYMENT,WWEG EP NORTH WEST GM CHES AND WARR G4S,G4S REGIONAL MANAGEMENT UK & I LTD,2033938983,"24,510"
DEPARTMENT FOR WORK AND PENSIONS ,Employment Programmes,25/11/2015,WP JSA 25+ JOB OUTCOME PAYMENTWP JSA 25+ JOB OUTCOME PAYMENT,WWEG EP NORTH EAST Y AND H G4S,G4S REGIONAL MANAGEMENT UK & I LTD,2033952633,"24,240"
DEPARTMENT FOR WORK AND PENSIONS ,Employment Programmes,24/11/2015,COMMUNITY WORK PLACEMENTS - LONG COMPLETION FEE,WWEP EP FG CEP CWP CPA02 - EAST MIDLANDS,G4S REGIONAL MANAGEMENT UK & I LTD,2033951319,"24,181"
DEPARTMENT FOR WORK AND PENSIONS ,Corporate,04/11/2015,CONTRACTORS & STAFF SUBSTITUTIONS,CHG DIGITAL ACADEMY,CAPITA BUSINESS SERVICES LTD,2033921245,"24,114"
DEPARTMENT FOR WORK AND PENSIONS ,Corporate,18/11/2015,MANAGEMENT CONFERENCES,CIO IT INFORMATION DATA SERVICES,CALDER CONFERENCES LTD,2033942957,"24,037"
DEPARTMENT FOR WORK AND PENSIONS ,Corporate,10/11/2015,CONTRACTORS & STAFF SUBSTITUTIONS,CIO IT INFORMATION DATA SERVICES,CAPITA BUSINESS SERVICES LTD,2033929315,"24,013"
DEPARTMENT FOR WORK AND PENSIONS ,Corporate,26/11/2015,CONTRACTORS & STAFF SUBSTITUTIONS,CIO EUC BUS SUPPORT & PORTFOLIO CORE,CAPITA BUSINESS SERVICES LTD,2033956009,"23,964"
DEPARTMENT FOR WORK AND PENSIONS ,Corporate,11/11/2015,BAILIFF COMMISSION,CMG OPS EXTERNAL CONTRACTS/SLAS BAILIFFS,HARPER MACLEOD LLP,2033931969,"23,959"
DEPARTMENT FOR WORK AND PENSIONS ,Corporate,26/11/2015,STAFF TRAINING VAT RECOVERABLE,HR CONTRACTUAL L AND D,CAPITA CIVIL SERVICE LEARNING,2033954787,"23,888"
DEPARTMENT FOR WORK AND PENSIONS ,Housing Benefits,13/11/2015,HOUSING BENEFIT ADMINISTRATION,HB ENGLAND,COPELAND BOROUGH COUNCIL,2033934268,"23,750"
DEPARTMENT FOR WORK AND PENSIONS ,Employment Programmes,17/11/2015,COMMUNITY WORK PLACEMENTS - SHORT COMPLETION FEE,WWEP EP FG CEP CWP CPA02 - EAST MIDLANDS,G4S REGIONAL MANAGEMENT UK & I LTD,2033941041,"23,733"
DEPARTMENT FOR WORK AND PENSIONS ,Employment Programmes,23/11/2015,WP JSA 25+ SUSTAINMENT OUTCOME PAYMENT,WWEG EP EAST LONDON CAREERS DEVELOPMENT GROUP,CAREERS DEVELOPMENT GROUP,2033948826,"23,650"
DEPARTMENT FOR WORK AND PENSIONS ,Housing Benefits,13/11/2015,HOUSING BENEFIT ADMINISTRATION,HB WALES,ISLE OF ANGLESEY COUNTY COUNCIL,2033934191,"23,622"
DEPARTMENT FOR WORK AND PENSIONS ,Housing Benefits,13/11/2015,HOUSING BENEFIT ADMINISTRATION,HB ENGLAND,FYLDE BOROUGH COUNCIL,2033934184,"23,415"
DEPARTMENT FOR WORK AND PENSIONS ,Corporate,19/11/2015,CONTRACTORS & STAFF SUBSTITUTIONS,CIO TECH PLATFORM SHARED PLATFORMS CORE,CAPITA BUSINESS SERVICES LTD,2033944240,"23,311"
DEPARTMENT FOR WORK AND PENSIONS ,Employment Programmes,30/11/2015,WP JSA 25+ SUSTAINMENT OUTCOME PAYMENT,WWEG EP NORTH WEST GM CHES AND WARR G4S,G4S REGIONAL MANAGEMENT UK & I LTD,2033959538,"23,220"
DEPARTMENT FOR WORK AND PENSIONS ,Corporate,17/11/2015,TREDDS IS IT CONSULTANCY (HOSTING) NON ADVICE,CIO TECH PLATFORM IMP CIS R,HP ENTERPRISE SERVICES UK LTD,2033941139,"23,148"
DEPARTMENT FOR WORK AND PENSIONS ,Housing Benefits,13/11/2015,HOUSING BENEFIT ADMINISTRATION,HB ENGLAND,BABERGH DISTRICT COUNCIL,2033934371,"23,098"
DEPARTMENT FOR WORK AND PENSIONS ,Corporate,23/11/2015,TREDDS IS IT CONSULTANCY NON ADVICE,"CIO TECH PLATFORM FIN, COMM & HR CORE",HP ENTERPRISE SERVICES UK LTD,2033948600,"23,076"
DEPARTMENT FOR WORK AND PENSIONS ,Corporate,26/11/2015,CONTRACTORS & STAFF SUBSTITUTIONS,CIO EUC TECHNICAL SUPPORT  CORE,CAPITA BUSINESS SERVICES LTD,2033956009,"23,065"
DEPARTMENT FOR WORK AND PENSIONS ,Corporate,10/11/2015,CONTRACTORS & STAFF SUBSTITUTIONS,CIO SECURITY CHIEF SECURITY OFFICER CORE,CAPITA BUSINESS SERVICES LTD,2033929315,"23,034"
DEPARTMENT FOR WORK AND PENSIONS ,Corporate,23/11/2015,TREDDS IS IT CONSULTANCY (HOSTING) NON ADVICE,CIO TECH PLATFORM BUS DIRECTOR & SUPPORT CORE,HP ENTERPRISE SERVICES UK LTD,2033948600,"22,902"
DEPARTMENT FOR WORK AND PENSIONS ,Corporate,06/11/2015,FSF - TRAINING PAYMENTS TO PROVIDERS - LONE PARENTS,OPS WDC WSD LN ESSEX DISTRICT OFFICE,GINGERBREAD,2033925618,"22,776"
DEPARTMENT FOR WORK AND PENSIONS ,Housing Benefits,13/11/2015,HOUSING BENEFIT ADMINISTRATION,HB ENGLAND,EAST CAMBRIDGESHIRE DISTRICT COUNCIL,2033934160,"22,751"
DEPARTMENT FOR WORK AND PENSIONS ,Employment Programmes,02/11/2015,ACCESS TO WORK - PAYMENT FOR SUPPORT WORKERS,WWEG EP SOUTH EAST,ELMFIELD SCHOOL FOR DEAF CHILDREN,2033918586,"22,591"
DEPARTMENT FOR WORK AND PENSIONS ,Employment Programmes,24/11/2015,WP JSA 25+ SUSTAINMENT OUTCOME PAYMENT,WWEG EP EAST LONDON CAREERS DEVELOPMENT GROUP,CAREERS DEVELOPMENT GROUP,2033951700,"22,575"
DEPARTMENT FOR WORK AND PENSIONS ,Corporate,10/11/2015,CONTRACTORS & STAFF SUBSTITUTIONS,CHG PIP IT DIGITAL,CAPITA BUSINESS SERVICES LTD,2033929315,"22,465"
DEPARTMENT FOR WORK AND PENSIONS ,Employment Programmes,09/11/2015,WP JSA 25+ SUSTAINMENT OUTCOME PAYMENT,WWEG EP NORTH WEST GM CHES AND WARR G4S,G4S REGIONAL MANAGEMENT UK & I LTD,2033928166,"22,360"
DEPARTMENT FOR WORK AND PENSIONS ,Employment Programmes,04/11/2015,WP JSA 25+ JOB OUTCOME PAYMENTWP JSA 25+ JOB OUTCOME PAYMENT,WWEG EP SOUTH EAST SURR SUSSX AND KENT G4S,G4S REGIONAL MANAGEMENT UK & I LTD,2033922860,"22,350"
DEPARTMENT FOR WORK AND PENSIONS ,Housing Benefits,13/11/2015,HOUSING BENEFIT ADMINISTRATION,HB ENGLAND,HAMBLETON DISTRICT COUNCIL,2033934274,"22,288"
DEPARTMENT FOR WORK AND PENSIONS ,Employment Programmes,25/11/2015,WP JSA 25+ JOB OUTCOME PAYMENTWP JSA 25+ JOB OUTCOME PAYMENT,WWEG EP NORTH WEST MERS HAL CUMB AND LANCS INGEUS UK,INGEUS UK LTD,2033954471,"21,737"
DEPARTMENT FOR WORK AND PENSIONS ,Corporate,17/11/2015,TREDDS IS IT MGT CONSULTANCY NON ADVICE,CIO TECH PLATFORM IMP VME R RESIDUAL COSTS,HP ENTERPRISE SERVICES UK LTD,2033941139,"21,522"
DEPARTMENT FOR WORK AND PENSIONS ,Corporate,24/11/2015,RECURRENT PUBLICITY,CHG STATE PENSION REFORM SINGLE TIER,ENGINE PARTNERS UK LLP,2033950195,"21,500"
DEPARTMENT FOR WORK AND PENSIONS ,Employment Programmes,09/11/2015,WP JSA 25+ SUSTAINMENT OUTCOME PAYMENT,WWEG EP SCOTLAND INGEUS UK,INGEUS UK LTD,2033927516,"21,500"
DEPARTMENT FOR WORK AND PENSIONS ,Corporate,11/11/2015,CONTRACTED OUT ORIGINAL RESEARCH,STR ANALYSIS CAD,ECORYS UK LTD,2033932478,"21,481"
DEPARTMENT FOR WORK AND PENSIONS ,Corporate,10/11/2015,CONTRACTORS & STAFF SUBSTITUTIONS,F&C CORP SVS FIN WORKING AGE,CAPITA BUSINESS SERVICES LTD,2033929315,"21,377"
DEPARTMENT FOR WORK AND PENSIONS ,Corporate,16/11/2015,CONTRACTED OUT ORIGINAL RESEARCH,STR ANALYSIS CAD,ICF CONSULTING SERVICES LTD,2033938469,"21,223"
DEPARTMENT FOR WORK AND PENSIONS ,Housing Benefits,13/11/2015,HOUSING BENEFIT ADMINISTRATION,HB ENGLAND,FAREHAM BOROUGH COUNCIL,2033934048,"21,159"
DEPARTMENT FOR WORK AND PENSIONS ,Employment Programmes,26/11/2015,COMMUNITY WORK PLACEMENTS - SHORT COMPLETION FEE,WWEP EP FG CEP CWP CPA02 - EAST MIDLANDS,G4S REGIONAL MANAGEMENT UK & I LTD,2033955320,"21,047"
DEPARTMENT FOR WORK AND PENSIONS ,Employment Programmes,16/11/2015,COMMUNITY WORK PLACEMENTS - JOB OUTCOME FEE,WWEP EP FG CEP CWP CPA18 - YORKSHIRE & HUMBER (3),G4S REGIONAL MANAGEMENT UK & I LTD,2033938983,"21,000"
DEPARTMENT FOR WORK AND PENSIONS ,Corporate,16/11/2015,TREDDS IS IT CONSULTANCY NON ADVICE,CHG PIP IT ASSESSMENT TOOL,HP ENTERPRISE SERVICES UK LTD,2033938951,"20,961"
DEPARTMENT FOR WORK AND PENSIONS ,Housing Benefits,13/11/2015,HOUSING BENEFIT ADMINISTRATION,HB ENGLAND,EAST NORTHANTS DISTRICT COUNCIL,2033934249,"20,915"
DEPARTMENT FOR WORK AND PENSIONS ,Corporate,26/11/2015,CONTRACTORS & STAFF SUBSTITUTIONS,CIO TECH PLATFORM IMP CIS R,CAPITA BUSINESS SERVICES LTD,2033956009,"20,875"
DEPARTMENT FOR WORK AND PENSIONS ,Employment Programmes,09/11/2015,WP JSA 25+ SUSTAINMENT OUTCOME PAYMENT,WWEG EP EAST OF ENGLAND INGEUS UK,INGEUS UK LTD,2033927516,"20,855"
DEPARTMENT FOR WORK AND PENSIONS ,Housing Benefits,13/11/2015,HOUSING BENEFIT ADMINISTRATION,HB ENGLAND,COTSWOLD DISTRICT COUNCIL,2033934071,"20,714"
DEPARTMENT FOR WORK AND PENSIONS ,Corporate,17/11/2015,CONNECTIVITY,CIO ITLR PSN CONNECTIVITY,BT GLOBAL SERVICES,2033941370,"20,703"
DEPARTMENT FOR WORK AND PENSIONS ,Corporate,19/11/2015,CONTRACTORS & STAFF SUBSTITUTIONS,CIO IMP DATA ANALYTICS,CAPITA BUSINESS SERVICES LTD,2033944240,"20,699"
DEPARTMENT FOR WORK AND PENSIONS ,Employment Programmes,24/11/2015,ACCESS TO WORK - TRAVEL IN WORK,WWEG EP NORTH EAST,CAPITA SYMONDS LTD,2033950222,"20,683"
DEPARTMENT FOR WORK AND PENSIONS ,Corporate,25/11/2015,ADEP AM SERVICES - VAT NON-RECOVERABLE,CIO ITLR DIGITAL TOWER DEL P,ACCENTURE UK LTD,2033953379,"20,563"
DEPARTMENT FOR WORK AND PENSIONS ,Employment Programmes,03/11/2015,WP JSA 25+ SUSTAINMENT OUTCOME PAYMENT,WWEG EP SCOTLAND INGEUS UK,INGEUS UK LTD,2033919428,"20,425"
DEPARTMENT FOR WORK AND PENSIONS ,Employment Programmes,23/11/2015,WP JSA 25+ SUSTAINMENT OUTCOME PAYMENT,WWEG EP EAST OF ENGLAND INGEUS UK,INGEUS UK LTD,2033948650,"20,425"
DEPARTMENT FOR WORK AND PENSIONS ,Housing Benefits,13/11/2015,HOUSING BENEFIT ADMINISTRATION,HB ENGLAND,EAST DORSET DISTRICT COUNCIL,2033934308,"20,410"
DEPARTMENT FOR WORK AND PENSIONS ,Corporate,10/11/2015,CONTRACTORS & STAFF SUBSTITUTIONS,CIO EUC TECHNICAL SUPPORT  CORE,CAPITA BUSINESS SERVICES LTD,2033929315,"20,388"
DEPARTMENT FOR WORK AND PENSIONS ,Corporate,10/11/2015,CONTRACTORS & STAFF SUBSTITUTIONS,CHG ETSE R3,CAPITA BUSINESS SERVICES LTD,2033929315,"20,241"
DEPARTMENT FOR WORK AND PENSIONS ,Employment Programmes,20/11/2015,WP JSA 25+ SUSTAINMENT OUTCOME PAYMENT,WWEG EP W MIDLANDS COV WARW STAFFS AND MARCHES ESG,ESG HOLDINGS LIMITED,2033946829,"20,210"
DEPARTMENT FOR WORK AND PENSIONS ,Employment Programmes,24/11/2015,COMMUNITY WORK PLACEMENTS - SHORT COMPLETION FEE,WWEP EP FG CEP CWP CPA02 - EAST MIDLANDS,G4S REGIONAL MANAGEMENT UK & I LTD,2033951319,"20,151"
DEPARTMENT FOR WORK AND PENSIONS ,Housing Benefits,13/11/2015,HOUSING BENEFIT ADMINISTRATION,HB SCOTLAND,EAST RENFREWSHIRE COUNCIL,2033934282,"20,145"
DEPARTMENT FOR WORK AND PENSIONS ,Corporate,26/11/2015,CONTRACTORS & STAFF SUBSTITUTIONS,CIO ENTERPRISE INFRASTRUCTURE CONTRACT CORE HOSTING,CAPITA BUSINESS SERVICES LTD,2033956009,"20,129"
DEPARTMENT FOR WORK AND PENSIONS ,Corporate,10/11/2015,CONTRACTORS & STAFF SUBSTITUTIONS,CHG STATE PENSION REFORM SINGLE TIER,CAPITA BUSINESS SERVICES LTD,2033929315,"20,126"
DEPARTMENT FOR WORK AND PENSIONS ,Employment Programmes,05/11/2015,WP JSA 25+ JOB OUTCOME PAYMENTWP JSA 25+ JOB OUTCOME PAYMENT,WWEG EP NORTH WEST GM CHES AND WARR G4S,G4S REGIONAL MANAGEMENT UK & I LTD,2033924269,"20,124"
DEPARTMENT FOR WORK AND PENSIONS ,Corporate,19/11/2015,CONTRACTORS & STAFF SUBSTITUTIONS,CIO ARCHITECTURE CORE,CAPITA BUSINESS SERVICES LTD,2033944240,"20,059"
DEPARTMENT FOR WORK AND PENSIONS ,Housing Benefits,13/11/2015,HOUSING BENEFIT ADMINISTRATION,HB ENGLAND,FOREST HEATH DISTRICT COUNCIL,2033934012,"20,039"
DEPARTMENT FOR WORK AND PENSIONS ,Corporate,18/11/2015,COST VARIANCE ACCOUNT,OPS OPE C&I NATIONAL 3,CAPITA CIVIL SERVICE LEARNING,2033941895,"20,032"
DEPARTMENT FOR WORK AND PENSIONS ,Housing Benefits,13/11/2015,HOUSING BENEFIT ADMINISTRATION,HB ENGLAND,ADUR DISTRICT COUNCIL,2033934113,"19,960"
DEPARTMENT FOR WORK AND PENSIONS ,Corporate,25/11/2015,ADEP AM SERVICES - VAT NON-RECOVERABLE,CIO ENTERPRISE INFRASTRUCTURE CORE,ACCENTURE UK LTD,2033953379,"19,930"
DEPARTMENT FOR WORK AND PENSIONS ,Housing Benefits,13/11/2015,HOUSING BENEFIT ADMINISTRATION,HB ENGLAND,BLABY DISTRICT COUNCIL,2033934122,"19,857"
DEPARTMENT FOR WORK AND PENSIONS ,Employment Programmes,30/11/2015,WP JSA 25+ SUSTAINMENT OUTCOME PAYMENT,WWEG EP EAST LONDON CAREERS DEVELOPMENT GROUP,CAREERS DEVELOPMENT GROUP,2033960812,"19,780"
DEPARTMENT FOR WORK AND PENSIONS ,Corporate,10/11/2015,CONTRACTORS & STAFF SUBSTITUTIONS,CIO ENTERPRISE INFRASTRUCTURE CONTRACT CORE HOSTING,CAPITA BUSINESS SERVICES LTD,2033929315,"19,756"
DEPARTMENT FOR WORK AND PENSIONS ,Corporate,26/11/2015,CONTRACTORS & STAFF SUBSTITUTIONS,CIO TECH PLATFORM SHARED PLATFORMS CORE,CAPITA BUSINESS SERVICES LTD,2033956009,"19,746"
DEPARTMENT FOR WORK AND PENSIONS ,Corporate,04/11/2015,CONTRACTORS & STAFF SUBSTITUTIONS,CIO ENTERPRISE INFRASTRUCTURE CORE,CAPITA BUSINESS SERVICES LTD,2033921245,"19,391"
DEPARTMENT FOR WORK AND PENSIONS ,Employment Programmes,09/11/2015,WP JSA 25+ SUSTAINMENT OUTCOME PAYMENT,WWEG EP SOUTH EAST SURR SUSSX AND KENT G4S,G4S REGIONAL MANAGEMENT UK & I LTD,2033928166,"19,350"
DEPARTMENT FOR WORK AND PENSIONS ,Employment Programmes,23/11/2015,WP JSA 25+ SUSTAINMENT OUTCOME PAYMENT,WWEG EP NORTH WEST GM CHES AND WARR G4S,G4S REGIONAL MANAGEMENT UK & I LTD,2033949009,"19,350"
DEPARTMENT FOR WORK AND PENSIONS ,Employment Programmes,27/11/2015,WP JSA 25+ SUSTAINMENT OUTCOME PAYMENT,WWEG EP NORTH WEST GM CHES AND WARR G4S,G4S REGIONAL MANAGEMENT UK & I LTD,2033958842,"19,350"
DEPARTMENT FOR WORK AND PENSIONS ,Employment Programmes,23/11/2015,WP JSA 25+ SUSTAINMENT OUTCOME PAYMENT,WWEG EP SCOTLAND INGEUS UK,INGEUS UK LTD,2033948650,"19,350"
DEPARTMENT FOR WORK AND PENSIONS ,Housing Benefits,13/11/2015,HOUSING BENEFIT ADMINISTRATION,HB ENGLAND,BROMSGROVE DISTRICT COUNCIL,2033934069,"19,327"
DEPARTMENT FOR WORK AND PENSIONS ,Corporate,17/11/2015,NON-TREDDS IS IT APPS DEV MANDAY,CHG PIP IT PHASE 5,IBM UNITED KINGDOM LTD,2033940553,"19,158"
DEPARTMENT FOR WORK AND PENSIONS ,Employment Programmes,06/11/2015,WP JSA 25+ SUSTAINMENT OUTCOME PAYMENT,WWEG EP NORTH WEST GM CHES AND WARR G4S,G4S REGIONAL MANAGEMENT UK & I LTD,2033926387,"19,135"
DEPARTMENT FOR WORK AND PENSIONS ,Employment Programmes,30/11/2015,WP JSA 25+ SUSTAINMENT OUTCOME PAYMENT,WWEG EP SCOTLAND INGEUS UK,INGEUS UK LTD,2033960714,"19,135"
DEPARTMENT FOR WORK AND PENSIONS ,Corporate,26/11/2015,CONTRACTORS & STAFF SUBSTITUTIONS,CIO C SS S & E IT DIRECTOR CORE,CAPITA BUSINESS SERVICES LTD,2033956009,"18,930"
DEPARTMENT FOR WORK AND PENSIONS ,Employment Programmes,03/11/2015,WP JSA 25+ SUSTAINMENT OUTCOME PAYMENT,WWEG EP NORTH WEST GM CHES AND WARR G4S,G4S REGIONAL MANAGEMENT UK & I LTD,2033919744,"18,920"
DEPARTMENT FOR WORK AND PENSIONS ,Employment Programmes,24/11/2015,WP JSA 25+ SUSTAINMENT OUTCOME PAYMENT,WWEG EP EAST OF ENGLAND INGEUS UK,INGEUS UK LTD,2033952315,"18,920"
DEPARTMENT FOR WORK AND PENSIONS ,Corporate,04/11/2015,CONTRACTORS & STAFF SUBSTITUTIONS,CIO ENTERPRISE INFRASTRUCTURE CONTRACT CORE HOSTING,CAPITA BUSINESS SERVICES LTD,2033921245,"18,857"
DEPARTMENT FOR WORK AND PENSIONS ,Employment Programmes,03/11/2015,COMMUNITY WORK PLACEMENTS - SHORT COMPLETION FEE,WWEP EP FG CEP CWP CPA02 - EAST MIDLANDS,G4S REGIONAL MANAGEMENT UK & I LTD,2033919744,"18,808"
DEPARTMENT FOR WORK AND PENSIONS ,Employment Programmes,30/11/2015,COMMUNITY WORK PLACEMENTS - LONG COMPLETION FEE,WWEP EP FG CEP CWP CPA02 - EAST MIDLANDS,G4S REGIONAL MANAGEMENT UK & I LTD,2033959538,"18,808"
DEPARTMENT FOR WORK AND PENSIONS ,Corporate,13/11/2015,ADEP AM SERVICES - VAT NON-RECOVERABLE,CIO ADC DIRECTOR,CAPGEMINI UK PLC,2033937547,"18,726"
DEPARTMENT FOR WORK AND PENSIONS ,Employment Programmes,30/11/2015,WP JSA 25+ SUSTAINMENT OUTCOME PAYMENT,WWEG EP EAST OF ENGLAND INGEUS UK,INGEUS UK LTD,2033960714,"18,705"
DEPARTMENT FOR WORK AND PENSIONS ,Corporate,04/11/2015,CONTRACTORS & STAFF SUBSTITUTIONS,CIO TECH PLATFORM SHARED PLATFORMS CORE,CAPITA BUSINESS SERVICES LTD,2033921245,"18,644"
DEPARTMENT FOR WORK AND PENSIONS ,Corporate,04/11/2015,CONTRACTORS & STAFF SUBSTITUTIONS,F&C CORP SVS FIN WORKING AGE,CAPITA BUSINESS SERVICES LTD,2033921245,"18,629"
DEPARTMENT FOR WORK AND PENSIONS ,Corporate,17/11/2015,TREDDS APPS DEV MANDAYS,CIO TECH PLATFORM IMP VME R RESIDUAL COSTS,HP ENTERPRISE SERVICES UK LTD,2033941139,"18,590"
DEPARTMENT FOR WORK AND PENSIONS ,Corporate,23/11/2015,TREDDS APPS DEV MANDAYS,CHG FRAUD & ERROR STRATEGY,HP ENTERPRISE SERVICES UK LTD,2033948600,"18,513"
DEPARTMENT FOR WORK AND PENSIONS ,Employment Programmes,13/11/2015,WP JSA 25+ SUSTAINMENT OUTCOME PAYMENT,WWEG EP NORTH WEST GM CHES AND WARR G4S,G4S REGIONAL MANAGEMENT UK & I LTD,2033937597,"18,490"
DEPARTMENT FOR WORK AND PENSIONS ,Employment Programmes,25/11/2015,WP JSA 25+ SUSTAINMENT OUTCOME PAYMENT,WWEG EP NORTH WEST GM CHES AND WARR G4S,G4S REGIONAL MANAGEMENT UK & I LTD,2033952633,"18,490"
DEPARTMENT FOR WORK AND PENSIONS ,Employment Programmes,10/11/2015,WP JSA 25+ SUSTAINMENT OUTCOME PAYMENT,WWEG EP SCOTLAND INGEUS UK,INGEUS UK LTD,2033930160,"18,490"
DEPARTMENT FOR WORK AND PENSIONS ,Employment Programmes,30/11/2015,WP JSA 25+ SUSTAINMENT OUTCOME PAYMENT,WWEG EP EAST MIDLANDS INGEUS UK,INGEUS UK LTD,2033960714,"18,490"
DEPARTMENT FOR WORK AND PENSIONS ,Employment Programmes,04/11/2015,WP JSA 25+ JOB OUTCOME PAYMENTWP JSA 25+ JOB OUTCOME PAYMENT,WWEG EP NORTH WEST GM CHES AND WARR G4S,G4S REGIONAL MANAGEMENT UK & I LTD,2033922860,"18,420"
DEPARTMENT FOR WORK AND PENSIONS ,Employment Programmes,03/11/2015,WP JSA 25+ SUSTAINMENT OUTCOME PAYMENT,WWEG EP EAST OF ENGLAND INGEUS UK,INGEUS UK LTD,2033919428,"18,275"
DEPARTMENT FOR WORK AND PENSIONS ,Employment Programmes,17/11/2015,WP JSA 25+ SUSTAINMENT OUTCOME PAYMENT,WWEG EP NORTH EAST INGEUS UK,INGEUS UK LTD,2033940111,"18,275"
DEPARTMENT FOR WORK AND PENSIONS ,Employment Programmes,17/11/2015,WP JSA 25+ SUSTAINMENT OUTCOME PAYMENT,WWEG EP EAST MIDLANDS INGEUS UK,INGEUS UK LTD,2033940111,"18,275"
DEPARTMENT FOR WORK AND PENSIONS ,Employment Programmes,17/11/2015,WP JSA 25+ SUSTAINMENT OUTCOME PAYMENT,WWEG EP EAST OF ENGLAND INGEUS UK,INGEUS UK LTD,2033940111,"18,275"
DEPARTMENT FOR WORK AND PENSIONS ,Employment Programmes,24/11/2015,WP JSA 25+ SUSTAINMENT OUTCOME PAYMENT,WWEG EP SCOTLAND INGEUS UK,INGEUS UK LTD,2033952315,"18,275"
DEPARTMENT FOR WORK AND PENSIONS ,Employment Programmes,05/11/2015,WP JSA 25+ SUSTAINMENT OUTCOME PAYMENT,WWEG EP WEST YORKSHIRE BEST LTD,INTERSERVE WORKING FUTURES,2033924109,"18,275"
DEPARTMENT FOR WORK AND PENSIONS ,Corporate,26/11/2015,CONTRACTORS & STAFF SUBSTITUTIONS,CIO TECHNOLOGY COO CONTRACT BULK PRINT,CAPITA BUSINESS SERVICES LTD,2033956009,"18,216"
DEPARTMENT FOR WORK AND PENSIONS ,Employment Programmes,05/11/2015,WP JSA 25+ SUSTAINMENT OUTCOME PAYMENT,WWEG EP W MIDLANDS COV WARW STAFFS AND MARCHES ESG,ESG HOLDINGS LIMITED,2033924710,"18,060"
DEPARTMENT FOR WORK AND PENSIONS ,Employment Programmes,10/11/2015,WP JSA 25+ SUSTAINMENT OUTCOME PAYMENT,WWEG EP EAST OF ENGLAND INGEUS UK,INGEUS UK LTD,2033930160,"18,060"
DEPARTMENT FOR WORK AND PENSIONS ,Employment Programmes,17/11/2015,WP JSA 25+ SUSTAINMENT OUTCOME PAYMENT,WWEG EP SCOTLAND INGEUS UK,INGEUS UK LTD,2033940111,"18,060"
DEPARTMENT FOR WORK AND PENSIONS ,Housing Benefits,13/11/2015,HOUSING BENEFIT ADMINISTRATION,HB ENGLAND,CHILTERN DISTRICT COUNCIL,2033934077,"18,045"
DEPARTMENT FOR WORK AND PENSIONS ,Employment Programmes,20/11/2015,WP JSA 18-24 JOB SUSTAINMENT OUTCOME PAYMENT,WWEG EP NORTH EAST INGEUS UK,INGEUS UK LTD,2033948004,"18,020"
DEPARTMENT FOR WORK AND PENSIONS ,Corporate,13/11/2015,STAFF TRAINING VAT RECOVERABLE,CIO IT CYBER SECURITY,CAPITA CIVIL SERVICE LEARNING,2033935030,"17,950"
DEPARTMENT FOR WORK AND PENSIONS ,Corporate,26/11/2015,CONTRACTORS & STAFF SUBSTITUTIONS,CIO TECH PLATFORM BUS DIRECTOR & SUPPORT CORE,CAPITA BUSINESS SERVICES LTD,2033956009,"17,944"
DEPARTMENT FOR WORK AND PENSIONS ,Corporate,26/11/2015,CONTRACTORS & STAFF SUBSTITUTIONS,"CIO TECH PLATFORM FIN, COMM & HR CORE",CAPITA BUSINESS SERVICES LTD,2033956009,"17,887"
DEPARTMENT FOR WORK AND PENSIONS ,Employment Programmes,02/11/2015,WP JSA 25+ SUSTAINMENT OUTCOME PAYMENT,WWEG EP SCOTLAND INGEUS UK,INGEUS UK LTD,2033918938,"17,845"
DEPARTMENT FOR WORK AND PENSIONS ,Housing Benefits,13/11/2015,HOUSING BENEFIT ADMINISTRATION,HB ENGLAND,EPSOM & EWELL BOROUGH COUNCIL,2033934078,"17,761"
DEPARTMENT FOR WORK AND PENSIONS ,Corporate,17/11/2015,NON-TREDDS IS IT APPS DEV MANDAY,CHG UC PATHFINDER RECURRENT COSTS,IBM UNITED KINGDOM LTD,2033940553,"17,739"
DEPARTMENT FOR WORK AND PENSIONS ,Employment Programmes,03/11/2015,WP JSA 25+ SUSTAINMENT OUTCOME PAYMENT,WWEG EP EAST LONDON CAREERS DEVELOPMENT GROUP,CAREERS DEVELOPMENT GROUP,2033919711,"17,630"
DEPARTMENT FOR WORK AND PENSIONS ,Employment Programmes,02/11/2015,WP JSA 25+ SUSTAINMENT OUTCOME PAYMENT,WWEG EP W MIDLANDS COV WARW STAFFS AND MARCHES ESG,ESG HOLDINGS LIMITED,2033919345,"17,630"
DEPARTMENT FOR WORK AND PENSIONS ,Employment Programmes,13/11/2015,WP JSA 25+ SUSTAINMENT OUTCOME PAYMENT,WWEG EP W MIDLANDS COV WARW STAFFS AND MARCHES ESG,ESG HOLDINGS LIMITED,2033937468,"17,630"
DEPARTMENT FOR WORK AND PENSIONS ,Corporate,17/11/2015,TREDDS APPS DEV FIXED PRICE CONTRACTS,CHG PIP IT ASSESSMENT TOOL,HP ENTERPRISE SERVICES UK LTD,2033941139,"17,552"
DEPARTMENT FOR WORK AND PENSIONS ,Corporate,10/11/2015,CONTRACTORS & STAFF SUBSTITUTIONS,CIO ENTERPRISE INFRASTRUCTURE CORE,CAPITA BUSINESS SERVICES LTD,2033929315,"17,533"
DEPARTMENT FOR WORK AND PENSIONS ,Housing Benefits,13/11/2015,HOUSING BENEFIT ADMINISTRATION,HB ENGLAND,DAVENTRY DISTRICT COUNCIL,2033934248,"17,516"
DEPARTMENT FOR WORK AND PENSIONS ,Housing Benefits,13/11/2015,HOUSING BENEFIT ADMINISTRATION,HB ENGLAND,BRENTWOOD DISTRICT COUNCIL,2033934374,"17,447"
DEPARTMENT FOR WORK AND PENSIONS ,Employment Programmes,27/11/2015,WP JSA 18-24 JOB SUSTAINMENT OUTCOME PAYMENT,WWEG EP SCOTLAND INGEUS UK,INGEUS UK LTD,2033956864,"17,340"
DEPARTMENT FOR WORK AND PENSIONS ,Employment Programmes,27/11/2015,WP JSA 18-24 JOB SUSTAINMENT OUTCOME PAYMENT,WWEG EP NORTH EAST INGEUS UK,INGEUS UK LTD,2033956864,"17,340"
DEPARTMENT FOR WORK AND PENSIONS ,Employment Programmes,27/11/2015,WP JSA 18-24 JOB SUSTAINMENT OUTCOME PAYMENT,WWEG EP EAST OF ENGLAND INGEUS UK,INGEUS UK LTD,2033956864,"17,340"
DEPARTMENT FOR WORK AND PENSIONS ,Employment Programmes,20/11/2015,WP JSA 25+ SUSTAINMENT OUTCOME PAYMENT,WWEG EP EAST LONDON CAREERS DEVELOPMENT GROUP,CAREERS DEVELOPMENT GROUP,2033947777,"17,200"
DEPARTMENT FOR WORK AND PENSIONS ,Employment Programmes,10/11/2015,WP JSA 25+ SUSTAINMENT OUTCOME PAYMENT,WWEG EP SOUTH EAST SURR SUSSX AND KENT G4S,G4S REGIONAL MANAGEMENT UK & I LTD,2033929165,"17,200"
DEPARTMENT FOR WORK AND PENSIONS ,Corporate,17/11/2015,NON-TREDDS IS IT APPS DEV MANDAY,CHG ABOLITION OF ASSESSED INCOME PERIODS IN SP CREDIT,IBM UNITED KINGDOM LTD,2033940553,"17,196"
DEPARTMENT FOR WORK AND PENSIONS ,Corporate,13/11/2015,NON-TREDDS IS IT APPS DEV MANDAY,CHG UC PATHFINDER DELIVERY MANAGEMENT,CAPGEMINI UK PLC,2033937547,"17,097"
DEPARTMENT FOR WORK AND PENSIONS ,Employment Programmes,09/11/2015,WP JSA 25+ SUSTAINMENT OUTCOME PAYMENT,WWEG EP NORTH WEST MERS HAL CUMB AND LANCS INGEUS UK,INGEUS UK LTD,2033927516,"16,985"
DEPARTMENT FOR WORK AND PENSIONS ,Corporate,19/11/2015,CONTRACTORS & STAFF SUBSTITUTIONS,CHG DIGITAL ACADEMY,CAPITA BUSINESS SERVICES LTD,2033944240,"16,792"
DEPARTMENT FOR WORK AND PENSIONS ,Corporate,17/11/2015,SIAM FIXED PRICE CONTRACTS,CIO ITLR SIAM,HP ENTERPRISE SERVICES UK LTD,2033941139,"16,771"
DEPARTMENT FOR WORK AND PENSIONS ,Employment Programmes,27/11/2015,WP JSA 25+ SUSTAINMENT OUTCOME PAYMENT,WWEG EP EAST LONDON CAREERS DEVELOPMENT GROUP,CAREERS DEVELOPMENT GROUP,2033957446,"16,770"
DEPARTMENT FOR WORK AND PENSIONS ,Employment Programmes,16/11/2015,WP JSA 25+ SUSTAINMENT OUTCOME PAYMENT,WWEG EP SOUTH EAST SURR SUSSX AND KENT G4S,G4S REGIONAL MANAGEMENT UK & I LTD,2033938983,"16,770"
DEPARTMENT FOR WORK AND PENSIONS ,Employment Programmes,24/11/2015,WP JSA 25+ SUSTAINMENT OUTCOME PAYMENT,WWEG EP NORTH EAST INGEUS UK,INGEUS UK LTD,2033952315,"16,770"
DEPARTMENT FOR WORK AND PENSIONS ,Employment Programmes,30/11/2015,WP JSA 25+ SUSTAINMENT OUTCOME PAYMENT,WWEG EP WEST YORKSHIRE BEST LTD,INTERSERVE WORKING FUTURES,2033959444,"16,770"
DEPARTMENT FOR WORK AND PENSIONS ,Employment Programmes,06/11/2015,WP JSA NEET SUSTAINMENT OUTCOME PAYMENT,WWEG EP SCOTLAND INGEUS UK,INGEUS UK LTD,2033926706,"16,750"
DEPARTMENT FOR WORK AND PENSIONS ,Employment Programmes,06/11/2015,WP JSA 25+ SUSTAINMENT OUTCOME PAYMENT,WWEG EP W MIDLANDS COV WARW STAFFS AND MARCHES ESG,ESG HOLDINGS LIMITED,2033925393,"16,555"
DEPARTMENT FOR WORK AND PENSIONS ,Employment Programmes,03/11/2015,WP JSA 25+ SUSTAINMENT OUTCOME PAYMENT,WWEG EP NORTH EAST Y AND H G4S,G4S REGIONAL MANAGEMENT UK & I LTD,2033919744,"16,555"
DEPARTMENT FOR WORK AND PENSIONS ,Employment Programmes,13/11/2015,WP JSA 25+ SUSTAINMENT OUTCOME PAYMENT,WWEG EP WEST YORKSHIRE BEST LTD,INTERSERVE WORKING FUTURES,2033935095,"16,555"
DEPARTMENT FOR WORK AND PENSIONS ,Corporate,20/11/2015,STAFF TRAINING VAT RECOVERABLE,HR CONTRACTUAL L AND D,CAPITA CIVIL SERVICE LEARNING,2033948415,"16,529"
DEPARTMENT FOR WORK AND PENSIONS ,Housing Benefits,13/11/2015,HOUSING BENEFIT ADMINISTRATION,HB ENGLAND,DERBYSHIRE DALES DISTRICT COUNCIL,2033934295,"16,412"
DEPARTMENT FOR WORK AND PENSIONS ,Corporate,16/11/2015,TREDDS IS IT CONSULTANCY NON ADVICE,CHG PIP IT PHASE 5,HP ENTERPRISE SERVICES UK LTD,2033938951,"16,378"
DEPARTMENT FOR WORK AND PENSIONS ,Employment Programmes,20/11/2015,WP JSA 25+ SUSTAINMENT OUTCOME PAYMENT,WWEG EP NORTH WEST GM CHES AND WARR G4S,G4S REGIONAL MANAGEMENT UK & I LTD,2033948080,"16,340"
DEPARTMENT FOR WORK AND PENSIONS ,Employment Programmes,02/11/2015,WP JSA 25+ SUSTAINMENT OUTCOME PAYMENT,WWEG EP WEST LONDON INGEUS UK,INGEUS UK LTD,2033918938,"16,340"
DEPARTMENT FOR WORK AND PENSIONS ,Employment Programmes,18/11/2015,WP JSA 25+ SUSTAINMENT OUTCOME PAYMENT,WWEG EP NORTH EAST INGEUS UK,INGEUS UK LTD,2033943009,"16,340"
DEPARTMENT FOR WORK AND PENSIONS ,Employment Programmes,13/11/2015,WP JSA NEET SUSTAINMENT OUTCOME PAYMENT,WWEG EP SCOTLAND INGEUS UK,INGEUS UK LTD,2033935412,"16,250"
DEPARTMENT FOR WORK AND PENSIONS ,Corporate,26/11/2015,CONTRACTORS & STAFF SUBSTITUTIONS,CIO IMP DATA ANALYTICS,CAPITA BUSINESS SERVICES LTD,2033956009,"16,167"
DEPARTMENT FOR WORK AND PENSIONS ,Corporate,23/11/2015,STAFF TRAINING VAT RECOVERABLE,CIO IT CYBER SECURITY,CAPITA CIVIL SERVICE LEARNING,2033949063,"16,152"
DEPARTMENT FOR WORK AND PENSIONS ,Employment Programmes,23/11/2015,WP JSA 25+ SUSTAINMENT OUTCOME PAYMENT,WWEG EP SOUTH EAST SURR SUSSX AND KENT G4S,G4S REGIONAL MANAGEMENT UK & I LTD,2033949009,"16,125"
DEPARTMENT FOR WORK AND PENSIONS ,Employment Programmes,25/11/2015,WP JSA 25+ SUSTAINMENT OUTCOME PAYMENT,WWEG EP EAST MIDLANDS INGEUS UK,INGEUS UK LTD,2033954471,"16,125"
DEPARTMENT FOR WORK AND PENSIONS ,Corporate,18/11/2015,STAFF TRAINING,CIO IT DIRECTOR & SUPPORT,CALDER CONFERENCES LTD,2033942957,"16,078"
DEPARTMENT FOR WORK AND PENSIONS ,Corporate,10/11/2015,CONTRACTORS & STAFF SUBSTITUTIONS,CHG RTI STRATEGIC SOLUTION,CAPITA BUSINESS SERVICES LTD,2033929315,"16,058"
DEPARTMENT FOR WORK AND PENSIONS ,Employment Programmes,06/11/2015,WP JSA 18-24 JOB SUSTAINMENT OUTCOME PAYMENT,WWEG EP NORTH EAST INGEUS UK,INGEUS UK LTD,2033926706,"15,980"
DEPARTMENT FOR WORK AND PENSIONS ,Employment Programmes,18/11/2015,WP JSA 25+ SUSTAINMENT OUTCOME PAYMENT,WWEG EP SCOTLAND INGEUS UK,INGEUS UK LTD,2033943009,"15,910"
DEPARTMENT FOR WORK AND PENSIONS ,Employment Programmes,06/11/2015,COMMUNITY WORK PLACEMENTS - LONG COMPLETION FEE,WWEP EP FG CEP CWP CPA06 - NORTH WEST (1),G4S REGIONAL MANAGEMENT UK & I LTD,2033926387,"15,890"
DEPARTMENT FOR WORK AND PENSIONS ,Employment Programmes,20/11/2015,WP JSA 18-24 JOB SUSTAINMENT OUTCOME PAYMENT,WWEG EP SCOTLAND INGEUS UK,INGEUS UK LTD,2033948004,"15,810"
DEPARTMENT FOR WORK AND PENSIONS ,Corporate,04/11/2015,CONTRACTORS & STAFF SUBSTITUTIONS,CIO IT SERVICES SERVICE DELIVERY MANAGEMENT,CAPITA BUSINESS SERVICES LTD,2033921245,"15,764"
DEPARTMENT FOR WORK AND PENSIONS ,Corporate,19/11/2015,CONTRACTORS & STAFF SUBSTITUTIONS,CIO IT SERVICES SERVICE DELIVERY MANAGEMENT,CAPITA BUSINESS SERVICES LTD,2033944240,"15,764"
DEPARTMENT FOR WORK AND PENSIONS ,Employment Programmes,20/11/2015,WP JSA NEET SUSTAINMENT OUTCOME PAYMENT,WWEG EP SCOTLAND INGEUS UK,INGEUS UK LTD,2033948004,"15,750"
DEPARTMENT FOR WORK AND PENSIONS ,Corporate,17/11/2015,NON-TREDDS IS IT SERVICES (AMS),OPS OPE C&I BUSINESS GENERATED CHANGE - IT,IBM UNITED KINGDOM LTD,2033940553,"15,722"
DEPARTMENT FOR WORK AND PENSIONS ,Corporate,27/11/2015,NON-TREDDS IS IT APPS DEV MANDAY,CIO PENSIONS & DISABLED CORE,ACCENTURE UK LTD,2033957665,"15,675"
DEPARTMENT FOR WORK AND PENSIONS ,Corporate,19/11/2015,CONTRACTORS & STAFF SUBSTITUTIONS,CHG DIGITAL TRANSFORMATION DG OFFICE,CAPITA BUSINESS SERVICES LTD,2033944240,"15,645"
DEPARTMENT FOR WORK AND PENSIONS ,Corporate,23/11/2015,NON-TREDDS IS IT APPS DEV MANDAY,CIO TECH PLATFORM IMP MOSAIC,ACCENTURE UK LTD,2033948680,"15,548"
DEPARTMENT FOR WORK AND PENSIONS ,Corporate,04/11/2015,CONTRACTORS & STAFF SUBSTITUTIONS,CIO TECHNOLOGY COO CORE,CAPITA BUSINESS SERVICES LTD,2033921245,"15,509"
DEPARTMENT FOR WORK AND PENSIONS ,Employment Programmes,02/11/2015,WP JSA 25+ SUSTAINMENT OUTCOME PAYMENT,WWEG EP EAST OF ENGLAND INGEUS UK,INGEUS UK LTD,2033918938,"15,480"
DEPARTMENT FOR WORK AND PENSIONS ,Employment Programmes,16/11/2015,WP JSA 25+ SUSTAINMENT OUTCOME PAYMENT,WWEG EP EAST MIDLANDS INGEUS UK,INGEUS UK LTD,2033939711,"15,480"
DEPARTMENT FOR WORK AND PENSIONS ,Employment Programmes,23/11/2015,WP JSA 25+ SUSTAINMENT OUTCOME PAYMENT,WWEG EP NORTH EAST INGEUS UK,INGEUS UK LTD,2033948650,"15,480"
DEPARTMENT FOR WORK AND PENSIONS ,Employment Programmes,25/11/2015,WP JSA 25+ SUSTAINMENT OUTCOME PAYMENT,WWEG EP SCOTLAND INGEUS UK,INGEUS UK LTD,2033954471,"15,480"
DEPARTMENT FOR WORK AND PENSIONS ,Corporate,17/11/2015,TREDDS IS IT CONSULTANCY (HOSTING) NON ADVICE,CIO TECH PLATFORM IMP VME R WFES,HP ENTERPRISE SERVICES UK LTD,2033941139,"15,416"
DEPARTMENT FOR WORK AND PENSIONS ,Corporate,13/11/2015,TREDDS APPS DEV MANDAYS,CHG WINTER FUEL TEMPERATURE LINK,HP ENTERPRISE SERVICES UK LTD,2033934461,"15,412"
DEPARTMENT FOR WORK AND PENSIONS ,Employment Programmes,06/11/2015,WP JSA 18-24 JOB SUSTAINMENT OUTCOME PAYMENT,WWEG EP NORTH WEST MERS HAL CUMB AND LANCS INGEUS UK,INGEUS UK LTD,2033926706,"15,300"
DEPARTMENT FOR WORK AND PENSIONS ,Employment Programmes,03/11/2015,WP JSA 25+ SUSTAINMENT OUTCOME PAYMENT,WWEG EP NORTH EAST INGEUS UK,INGEUS UK LTD,2033919428,"15,265"
DEPARTMENT FOR WORK AND PENSIONS ,Employment Programmes,19/11/2015,WP JSA 25+ SUSTAINMENT OUTCOME PAYMENT,WWEG EP SCOTLAND INGEUS UK,INGEUS UK LTD,2033945576,"15,265"
DEPARTMENT FOR WORK AND PENSIONS ,Employment Programmes,27/11/2015,WP JSA NEET SUSTAINMENT OUTCOME PAYMENT,WWEG EP SCOTLAND INGEUS UK,INGEUS UK LTD,2033956864,"15,250"
DEPARTMENT FOR WORK AND PENSIONS ,Corporate,19/11/2015,CONTRACTORS & STAFF SUBSTITUTIONS,F&C CORP SVS FIN WORKING AGE,CAPITA BUSINESS SERVICES LTD,2033944240,"15,238"
DEPARTMENT FOR WORK AND PENSIONS ,Employment Programmes,17/11/2015,COMMUNITY WORK PLACEMENTS - LONG COMPLETION FEE,WWEP EP FG CEP CWP CPA02 - EAST MIDLANDS,G4S REGIONAL MANAGEMENT UK & I LTD,2033941041,"15,225"
DEPARTMENT FOR WORK AND PENSIONS ,Employment Programmes,26/11/2015,COMMUNITY WORK PLACEMENTS - LONG COMPLETION FEE,WWEP EP FG CEP CWP CPA02 - EAST MIDLANDS,G4S REGIONAL MANAGEMENT UK & I LTD,2033955320,"15,225"
DEPARTMENT FOR WORK AND PENSIONS ,Corporate,05/11/2015,NON-TREDDS APPS DEV FIXED PRICE CONTRACTS,CIO PENSIONS & DISABLED SERVICE TUO,ATOS ORIGIN IT SERVICES UK LTD,2033923439,"15,202"
DEPARTMENT FOR WORK AND PENSIONS ,Corporate,19/11/2015,CONTRACTORS & STAFF SUBSTITUTIONS,CIO EUC DEVICE SERVICES CORE,CAPITA BUSINESS SERVICES LTD,2033944240,"15,196"
DEPARTMENT FOR WORK AND PENSIONS ,Corporate,26/11/2015,CONTRACTORS & STAFF SUBSTITUTIONS,CIO EUC DEVICE SERVICES CORE,CAPITA BUSINESS SERVICES LTD,2033956009,"15,196"
DEPARTMENT FOR WORK AND PENSIONS ,Housing Benefits,13/11/2015,HOUSING BENEFIT ADMINISTRATION,HB ENGLAND,HARBOROUGH DISTRICT COUNCIL,2033934167,"15,190"
DEPARTMENT FOR WORK AND PENSIONS ,Employment Programmes,13/11/2015,WP JSA 18-24 JOB SUSTAINMENT OUTCOME PAYMENT,WWEG EP SCOTLAND INGEUS UK,INGEUS UK LTD,2033935412,"15,130"
DEPARTMENT FOR WORK AND PENSIONS ,Employment Programmes,20/11/2015,WP JSA 18-24 JOB SUSTAINMENT OUTCOME PAYMENT,WWEG EP EAST OF ENGLAND INGEUS UK,INGEUS UK LTD,2033948004,"15,130"
DEPARTMENT FOR WORK AND PENSIONS ,Employment Programmes,25/11/2015,WP JSA 25+ SUSTAINMENT OUTCOME PAYMENT,WWEG EP SOUTH EAST SURR SUSSX AND KENT G4S,G4S REGIONAL MANAGEMENT UK & I LTD,2033952633,"15,050"
DEPARTMENT FOR WORK AND PENSIONS ,Employment Programmes,09/11/2015,WP JSA 25+ SUSTAINMENT OUTCOME PAYMENT,WWEG EP EAST MIDLANDS INGEUS UK,INGEUS UK LTD,2033927516,"15,050"
DEPARTMENT FOR WORK AND PENSIONS ,Employment Programmes,12/11/2015,WP JSA 25+ SUSTAINMENT OUTCOME PAYMENT,WWEG EP SCOTLAND INGEUS UK,INGEUS UK LTD,2033933067,"15,050"
DEPARTMENT FOR WORK AND PENSIONS ,Employment Programmes,12/11/2015,WP JSA 25+ JOB OUTCOME PAYMENTWP JSA 25+ JOB OUTCOME PAYMENT,WWEG EP EAST LONDON CAREERS DEVELOPMENT GROUP,CAREERS DEVELOPMENT GROUP,2033933136,"15,012"
DEPARTMENT FOR WORK AND PENSIONS ,Employment Programmes,06/11/2015,WP JSA 18-24 JOB SUSTAINMENT OUTCOME PAYMENT,WWEG EP SCOTLAND INGEUS UK,INGEUS UK LTD,2033926706,"14,960"
DEPARTMENT FOR WORK AND PENSIONS ,Employment Programmes,13/11/2015,WP JSA 18-24 JOB SUSTAINMENT OUTCOME PAYMENT,WWEG EP NORTH WEST MERS HAL CUMB AND LANCS INGEUS UK,INGEUS UK LTD,2033935412,"14,960"
DEPARTMENT FOR WORK AND PENSIONS ,Employment Programmes,13/11/2015,WP JSA 18-24 JOB SUSTAINMENT OUTCOME PAYMENT,WWEG EP EAST MIDLANDS INGEUS UK,INGEUS UK LTD,2033935412,"14,960"
DEPARTMENT FOR WORK AND PENSIONS ,Corporate,10/11/2015,CONTRACTORS & STAFF SUBSTITUTIONS,CIO SECURITY TECH SECURITY & RISK MGT CORE,CAPITA BUSINESS SERVICES LTD,2033929315,"14,892"
DEPARTMENT FOR WORK AND PENSIONS ,Housing Benefits,13/11/2015,HOUSING BENEFIT ADMINISTRATION,HB ENGLAND,CHRISTCHURCH BOROUGH COUNCIL,2033934325,"14,858"
DEPARTMENT FOR WORK AND PENSIONS ,Employment Programmes,10/11/2015,WP JSA 25+ SUSTAINMENT OUTCOME PAYMENT,WWEG EP W MIDLANDS COV WARW STAFFS AND MARCHES ESG,ESG HOLDINGS LIMITED,2033930180,"14,835"
DEPARTMENT FOR WORK AND PENSIONS ,Employment Programmes,04/11/2015,WP JSA 25+ SUSTAINMENT OUTCOME PAYMENT,WWEG EP EAST OF ENGLAND INGEUS UK,INGEUS UK LTD,2033922492,"14,835"
DEPARTMENT FOR WORK AND PENSIONS ,Employment Programmes,09/11/2015,WP JSA 25+ SUSTAINMENT OUTCOME PAYMENT,WWEG EP WEST LONDON INGEUS UK,INGEUS UK LTD,2033927516,"14,835"
DEPARTMENT FOR WORK AND PENSIONS ,Employment Programmes,18/11/2015,WP JSA 25+ SUSTAINMENT OUTCOME PAYMENT,WWEG EP EAST OF ENGLAND INGEUS UK,INGEUS UK LTD,2033943009,"14,835"
DEPARTMENT FOR WORK AND PENSIONS ,Employment Programmes,23/11/2015,WP JSA 25+ SUSTAINMENT OUTCOME PAYMENT,WWEG EP EAST MIDLANDS INGEUS UK,INGEUS UK LTD,2033948650,"14,835"
DEPARTMENT FOR WORK AND PENSIONS ,Corporate,27/11/2015,NON-TREDDS IS IT APPS DEV MANDAY,CIO GG CORE,ATOS ORIGIN IT SERVICES UK LTD,2033957779,"14,833"
DEPARTMENT FOR WORK AND PENSIONS ,Employment Programmes,23/11/2015,WP JSA 25+ JOB OUTCOME PAYMENTWP JSA 25+ JOB OUTCOME PAYMENT,WWEG EP EAST LONDON CAREERS DEVELOPMENT GROUP,CAREERS DEVELOPMENT GROUP,2033948826,"14,688"
DEPARTMENT FOR WORK AND PENSIONS ,Employment Programmes,27/11/2015,WP JSA 25+ SUSTAINMENT OUTCOME PAYMENT,WWEG EP SOUTH EAST SURR SUSSX AND KENT G4S,G4S REGIONAL MANAGEMENT UK & I LTD,2033958842,"14,620"
DEPARTMENT FOR WORK AND PENSIONS ,Employment Programmes,09/11/2015,WP JSA 25+ SUSTAINMENT OUTCOME PAYMENT,WWEG EP NORTH EAST INGEUS UK,INGEUS UK LTD,2033927516,"14,620"
DEPARTMENT FOR WORK AND PENSIONS ,Employment Programmes,10/11/2015,WP JSA 25+ SUSTAINMENT OUTCOME PAYMENT,WWEG EP NORTH EAST INGEUS UK,INGEUS UK LTD,2033930160,"14,620"
DEPARTMENT FOR WORK AND PENSIONS ,Employment Programmes,10/11/2015,WP JSA 25+ SUSTAINMENT OUTCOME PAYMENT,WWEG EP EAST MIDLANDS INGEUS UK,INGEUS UK LTD,2033930160,"14,620"
DEPARTMENT FOR WORK AND PENSIONS ,Employment Programmes,19/11/2015,WP JSA 25+ SUSTAINMENT OUTCOME PAYMENT,WWEG EP NORTH WEST MERS HAL CUMB AND LANCS INGEUS UK,INGEUS UK LTD,2033945576,"14,620"
DEPARTMENT FOR WORK AND PENSIONS ,Employment Programmes,27/11/2015,WP JSA 18-24 JOB SUSTAINMENT OUTCOME PAYMENT,WWEG EP NORTH WEST MERS HAL CUMB AND LANCS INGEUS UK,INGEUS UK LTD,2033956864,"14,620"
DEPARTMENT FOR WORK AND PENSIONS ,Employment Programmes,20/11/2015,WP JSA 18-24 JOB SUSTAINMENT OUTCOME PAYMENT,WWEG EP NORTH WEST MERS HAL CUMB AND LANCS INGEUS UK,INGEUS UK LTD,2033948004,"14,450"
DEPARTMENT FOR WORK AND PENSIONS ,Employment Programmes,27/11/2015,WP JSA 18-24 JOB SUSTAINMENT OUTCOME PAYMENT,WWEG EP EAST MIDLANDS INGEUS UK,INGEUS UK LTD,2033956864,"14,450"
DEPARTMENT FOR WORK AND PENSIONS ,Corporate,26/11/2015,CONTRACTORS & STAFF SUBSTITUTIONS,CHG BTG DELIVER MOBILISE,CAPITA BUSINESS SERVICES LTD,2033956009,"14,447"
DEPARTMENT FOR WORK AND PENSIONS ,Corporate,04/11/2015,CONTRACTORS & STAFF SUBSTITUTIONS,CHG BTG DELIVER MOBILISE,CAPITA BUSINESS SERVICES LTD,2033921245,"14,418"
DEPARTMENT FOR WORK AND PENSIONS ,Employment Programmes,04/11/2015,WP JSA 25+ SUSTAINMENT OUTCOME PAYMENT,WWEG EP NORTH WEST GM CHES AND WARR G4S,G4S REGIONAL MANAGEMENT UK & I LTD,2033922860,"14,405"
DEPARTMENT FOR WORK AND PENSIONS ,Employment Programmes,18/11/2015,WP JSA 25+ SUSTAINMENT OUTCOME PAYMENT,WWEG EP NORTH WEST MERS HAL CUMB AND LANCS INGEUS UK,INGEUS UK LTD,2033943009,"14,405"
DEPARTMENT FOR WORK AND PENSIONS ,Corporate,03/11/2015,REMOTE STORAGE COSTS VAT RECOV,HR RECORD STORAGE,CAPITA BUSINESS SERVICES LTD,2033919792,"14,207"
DEPARTMENT FOR WORK AND PENSIONS ,Employment Programmes,16/11/2015,WP JSA 25+ SUSTAINMENT OUTCOME PAYMENT,WWEG EP SCOTLAND INGEUS UK,INGEUS UK LTD,2033939711,"14,190"
DEPARTMENT FOR WORK AND PENSIONS ,Employment Programmes,23/11/2015,WP JSA 25+ SUSTAINMENT OUTCOME PAYMENT,WWEG EP WEST YORKSHIRE INGEUS UK,INGEUS UK LTD,2033948650,"14,190"
DEPARTMENT FOR WORK AND PENSIONS ,Employment Programmes,30/11/2015,COMMUNITY WORK PLACEMENTS - JOB OUTCOME FEE,WWEP EP FG CEP CWP CPA04 - LONDON (EAST),G4S REGIONAL MANAGEMENT UK & I LTD,2033959538,"14,145"
DEPARTMENT FOR WORK AND PENSIONS ,Employment Programmes,06/11/2015,WP JSA 18-24 JOB SUSTAINMENT OUTCOME PAYMENT,WWEG EP EAST OF ENGLAND INGEUS UK,INGEUS UK LTD,2033926706,"14,110"
DEPARTMENT FOR WORK AND PENSIONS ,Employment Programmes,03/11/2015,COMMUNITY WORK PLACEMENTS - LONG COMPLETION FEE,WWEP EP FG CEP CWP CPA06 - NORTH WEST (1),G4S REGIONAL MANAGEMENT UK & I LTD,2033919744,"14,021"
DEPARTMENT FOR WORK AND PENSIONS ,Employment Programmes,25/11/2015,COMMUNITY WORK PLACEMENTS - JOB OUTCOME FEE,WWEP EP FG CEP CWP CPA06 - NORTH WEST (1),G4S REGIONAL MANAGEMENT UK & I LTD,2033952633,"14,020"
DEPARTMENT FOR WORK AND PENSIONS ,Employment Programmes,30/11/2015,COMMUNITY WORK PLACEMENTS - JOB OUTCOME FEE,WWEP EP FG CEP CWP CPA06 - NORTH WEST (1),G4S REGIONAL MANAGEMENT UK & I LTD,2033959538,"14,020"
DEPARTMENT FOR WORK AND PENSIONS ,Corporate,13/11/2015,TREDDS APPS DEV MANDAYS,CHG PIP IT PHASE 4,HP ENTERPRISE SERVICES UK LTD,2033934461,"13,980"
DEPARTMENT FOR WORK AND PENSIONS ,Employment Programmes,09/11/2015,WP JSA 25+ SUSTAINMENT OUTCOME PAYMENT,WWEG EP EAST LONDON CAREERS DEVELOPMENT GROUP,CAREERS DEVELOPMENT GROUP,2033927963,"13,975"
DEPARTMENT FOR WORK AND PENSIONS ,Employment Programmes,16/11/2015,WP JSA 25+ SUSTAINMENT OUTCOME PAYMENT,WWEG EP W MIDLANDS COV WARW STAFFS AND MARCHES ESG,ESG HOLDINGS LIMITED,2033938361,"13,975"
DEPARTMENT FOR WORK AND PENSIONS ,Employment Programmes,04/11/2015,WP JSA 25+ SUSTAINMENT OUTCOME PAYMENT,WWEG EP WEST LONDON INGEUS UK,INGEUS UK LTD,2033922492,"13,975"
DEPARTMENT FOR WORK AND PENSIONS ,Employment Programmes,18/11/2015,WP JSA 25+ SUSTAINMENT OUTCOME PAYMENT,WWEG EP EAST MIDLANDS INGEUS UK,INGEUS UK LTD,2033943009,"13,975"
DEPARTMENT FOR WORK AND PENSIONS ,Corporate,26/11/2015,CONTRACTORS & STAFF SUBSTITUTIONS,CIO IT SECURITY & BUSINESS CONTINUITY,CAPITA BUSINESS SERVICES LTD,2033956009,"13,932"
DEPARTMENT FOR WORK AND PENSIONS ,Employment Programmes,04/11/2015,WP JSA 25+ JOB OUTCOME PAYMENTWP JSA 25+ JOB OUTCOME PAYMENT,WWEG EP EAST LONDON CAREERS DEVELOPMENT GROUP,CAREERS DEVELOPMENT GROUP,2033921032,"13,770"
DEPARTMENT FOR WORK AND PENSIONS ,Employment Programmes,23/11/2015,WP JSA 25+ SUSTAINMENT OUTCOME PAYMENT,WWEG EP WEST LONDON INGEUS UK,INGEUS UK LTD,2033948650,"13,760"
DEPARTMENT FOR WORK AND PENSIONS ,Employment Programmes,24/11/2015,WP JSA 25+ SUSTAINMENT OUTCOME PAYMENT,WWEG EP EAST MIDLANDS INGEUS UK,INGEUS UK LTD,2033952315,"13,760"
DEPARTMENT FOR WORK AND PENSIONS ,Corporate,19/11/2015,CONTRACTORS & STAFF SUBSTITUTIONS,CIO ITPD IT DIGITALISATION,CAPITA BUSINESS SERVICES LTD,2033944240,"13,617"
DEPARTMENT FOR WORK AND PENSIONS ,Corporate,26/11/2015,CONTRACTORS & STAFF SUBSTITUTIONS,F&C CD STRATEGY AND BUSINESS MANAGEMENT,CAPITA BUSINESS SERVICES LTD,2033956009,"13,600"
DEPARTMENT FOR WORK AND PENSIONS ,Corporate,24/11/2015,COST VARIANCE ACCOUNT,OPS OPE C&I NATIONAL 3,CAPITA CIVIL SERVICE LEARNING,2033950783,"13,558"
DEPARTMENT FOR WORK AND PENSIONS ,Employment Programmes,17/11/2015,WP JSA 25+ SUSTAINMENT OUTCOME PAYMENT,WWEG EP NORTH WEST GM CHES AND WARR G4S,G4S REGIONAL MANAGEMENT UK & I LTD,2033941041,"13,545"
DEPARTMENT FOR WORK AND PENSIONS ,Employment Programmes,17/11/2015,WP JSA 25+ SUSTAINMENT OUTCOME PAYMENT,WWEG EP WEST YORKSHIRE INGEUS UK,INGEUS UK LTD,2033940111,"13,545"
DEPARTMENT FOR WORK AND PENSIONS ,Employment Programmes,30/11/2015,WP JSA 25+ SUSTAINMENT OUTCOME PAYMENT,WWEG EP WEST YORKSHIRE INGEUS UK,INGEUS UK LTD,2033960714,"13,545"
DEPARTMENT FOR WORK AND PENSIONS ,Employment Programmes,09/11/2015,WP JSA 25+ SUSTAINMENT OUTCOME PAYMENT,WWEG EP WEST YORKSHIRE BEST LTD,INTERSERVE WORKING FUTURES,2033927557,"13,545"
DEPARTMENT FOR WORK AND PENSIONS ,Employment Programmes,30/11/2015,COMMUNITY WORK PLACEMENTS - JOB OUTCOME FEE,WWEP EP FG CEP CWP CPA02 - EAST MIDLANDS,G4S REGIONAL MANAGEMENT UK & I LTD,2033959538,"13,434"
DEPARTMENT FOR WORK AND PENSIONS ,Employment Programmes,05/11/2015,WP JSA 25+ JOB OUTCOME PAYMENTWP JSA 25+ JOB OUTCOME PAYMENT,WWEG EP EAST LONDON CAREERS DEVELOPMENT GROUP,CAREERS DEVELOPMENT GROUP,2033923959,"13,398"
DEPARTMENT FOR WORK AND PENSIONS ,Employment Programmes,27/11/2015,COMMUNITY WORK PLACEMENTS - LONG COMPLETION FEE,WWEP EP FG CEP CWP CPA04 - LONDON (EAST),G4S REGIONAL MANAGEMENT UK & I LTD,2033958842,"13,359"
DEPARTMENT FOR WORK AND PENSIONS ,Corporate,19/11/2015,CONTRACTORS & STAFF SUBSTITUTIONS,CHG RTI STRATEGIC SOLUTION,CAPITA BUSINESS SERVICES LTD,2033944240,"13,350"
DEPARTMENT FOR WORK AND PENSIONS ,Corporate,27/11/2015,NON-TREDDS IS IT SERVICES (AMS),CIO TECH PLATFORMS GOV GATEWAY,ATOS ORIGIN IT SERVICES UK LTD,2033957779,"13,340"
DEPARTMENT FOR WORK AND PENSIONS ,Employment Programmes,03/11/2015,WP JSA 25+ SUSTAINMENT OUTCOME PAYMENT,WWEG EP W MIDLANDS COV WARW STAFFS AND MARCHES ESG,ESG HOLDINGS LIMITED,2033919877,"13,330"
DEPARTMENT FOR WORK AND PENSIONS ,Employment Programmes,06/11/2015,WP JSA 25+ SUSTAINMENT OUTCOME PAYMENT,WWEG EP SOUTH EAST SURR SUSSX AND KENT G4S,G4S REGIONAL MANAGEMENT UK & I LTD,2033926387,"13,330"
DEPARTMENT FOR WORK AND PENSIONS ,Employment Programmes,16/11/2015,WP JSA 25+ SUSTAINMENT OUTCOME PAYMENT,WWEG EP NORTH EAST Y AND H G4S,G4S REGIONAL MANAGEMENT UK & I LTD,2033938983,"13,330"
DEPARTMENT FOR WORK AND PENSIONS ,Employment Programmes,19/11/2015,WP JSA 25+ SUSTAINMENT OUTCOME PAYMENT,WWEG EP NORTH EAST INGEUS UK,INGEUS UK LTD,2033945576,"13,330"
DEPARTMENT FOR WORK AND PENSIONS ,Employment Programmes,23/11/2015,WP JSA 25+ SUSTAINMENT OUTCOME PAYMENT,WWEG EP NORTH WEST MERS HAL CUMB AND LANCS INGEUS UK,INGEUS UK LTD,2033948650,"13,330"
DEPARTMENT FOR WORK AND PENSIONS ,Employment Programmes,24/11/2015,WP JSA 25+ SUSTAINMENT OUTCOME PAYMENT,WWEG EP WEST YORKSHIRE INGEUS UK,INGEUS UK LTD,2033952315,"13,330"
DEPARTMENT FOR WORK AND PENSIONS ,Employment Programmes,30/11/2015,WP JSA 25+ SUSTAINMENT OUTCOME PAYMENT,WWEG EP NORTH WEST MERS HAL CUMB AND LANCS INGEUS UK,INGEUS UK LTD,2033960714,"13,330"
DEPARTMENT FOR WORK AND PENSIONS ,Corporate,19/11/2015,CONTRACTORS & STAFF SUBSTITUTIONS,CIO IT SECURITY & BUSINESS CONTINUITY,CAPITA BUSINESS SERVICES LTD,2033944240,"13,266"
DEPARTMENT FOR WORK AND PENSIONS ,Employment Programmes,30/11/2015,SERVICE FEE,WWEG EP CORE MWA CPA YORKSHIRE AND HUMBER,INTERSERVE WORKING FUTURES,2033959444,"13,226"
DEPARTMENT FOR WORK AND PENSIONS ,Corporate,17/11/2015,NON-TREDDS IS IT APPS DEV MANDAY,CIO TECH PLATFORMS INTEGRATING TECH CORE,IBM UNITED KINGDOM LTD,2033940553,"13,224"
DEPARTMENT FOR WORK AND PENSIONS ,Corporate,10/11/2015,CONTRACTORS & STAFF SUBSTITUTIONS,CIO ENTERPRISE INFRASTRUCTURE CONTRACT TELEPHONY,CAPITA BUSINESS SERVICES LTD,2033929315,"13,199"
DEPARTMENT FOR WORK AND PENSIONS ,Corporate,10/11/2015,CONTRACTORS & STAFF SUBSTITUTIONS,CIO IMP DATA ANALYTICS,CAPITA BUSINESS SERVICES LTD,2033929315,"13,191"
DEPARTMENT FOR WORK AND PENSIONS ,Employment Programmes,25/11/2015,WP JSA 25+ SUSTAINMENT OUTCOME PAYMENT,WWEG EP EAST LONDON CAREERS DEVELOPMENT GROUP,CAREERS DEVELOPMENT GROUP,2033953371,"13,115"
DEPARTMENT FOR WORK AND PENSIONS ,Employment Programmes,09/11/2015,WP JSA 25+ SUSTAINMENT OUTCOME PAYMENT,WWEG EP W MIDLANDS COV WARW STAFFS AND MARCHES ESG,ESG HOLDINGS LIMITED,2033928116,"13,115"
DEPARTMENT FOR WORK AND PENSIONS ,Employment Programmes,17/11/2015,WP JSA 25+ SUSTAINMENT OUTCOME PAYMENT,WWEG EP NORTH WEST MERS HAL CUMB AND LANCS INGEUS UK,INGEUS UK LTD,2033940111,"13,115"
DEPARTMENT FOR WORK AND PENSIONS ,Employment Programmes,19/11/2015,WP JSA 25+ SUSTAINMENT OUTCOME PAYMENT,WWEG EP EAST MIDLANDS INGEUS UK,INGEUS UK LTD,2033945576,"13,115"
DEPARTMENT FOR WORK AND PENSIONS ,Employment Programmes,13/11/2015,WP JSA 18-24 JOB SUSTAINMENT OUTCOME PAYMENT,WWEG EP NORTH EAST INGEUS UK,INGEUS UK LTD,2033935412,"13,090"
DEPARTMENT FOR WORK AND PENSIONS ,Employment Programmes,20/11/2015,WP JSA 18-24 JOB SUSTAINMENT OUTCOME PAYMENT,WWEG EP EAST MIDLANDS INGEUS UK,INGEUS UK LTD,2033948004,"13,090"
DEPARTMENT FOR WORK AND PENSIONS ,Corporate,10/11/2015,CONTRACTORS & STAFF SUBSTITUTIONS,F&C CD STRATEGY AND BUSINESS MANAGEMENT,CAPITA BUSINESS SERVICES LTD,2033929315,"13,071"
DEPARTMENT FOR WORK AND PENSIONS ,Corporate,10/11/2015,CONTRACTORS & STAFF SUBSTITUTIONS,CIO EUC COLLABORATION SERVICES CORE,CAPITA BUSINESS SERVICES LTD,2033929315,"13,041"
DEPARTMENT FOR WORK AND PENSIONS ,Employment Programmes,20/11/2015,WP JSA NEET SUSTAINMENT OUTCOME PAYMENT,WWEG EP NORTH EAST INGEUS UK,INGEUS UK LTD,2033948004,"13,000"
DEPARTMENT FOR WORK AND PENSIONS ,Corporate,04/11/2015,CONTRACTORS & STAFF SUBSTITUTIONS,CIO IT STATISTICAL SERVICES,CAPITA BUSINESS SERVICES LTD,2033921245,"12,984"
DEPARTMENT FOR WORK AND PENSIONS ,Housing Benefits,13/11/2015,HOUSING BENEFIT ADMINISTRATION,HB ENGLAND,CRAVEN DISTRICT COUNCIL,2033934314,"12,926"
DEPARTMENT FOR WORK AND PENSIONS ,Employment Programmes,05/11/2015,WP JSA 25+ SUSTAINMENT OUTCOME PAYMENT,WWEG EP SOUTH EAST SURR SUSSX AND KENT G4S,G4S REGIONAL MANAGEMENT UK & I LTD,2033924269,"12,900"
DEPARTMENT FOR WORK AND PENSIONS ,Employment Programmes,10/11/2015,WP JSA 25+ SUSTAINMENT OUTCOME PAYMENT,WWEG EP NORTH WEST GM CHES AND WARR G4S,G4S REGIONAL MANAGEMENT UK & I LTD,2033929165,"12,900"
DEPARTMENT FOR WORK AND PENSIONS ,Employment Programmes,17/11/2015,WP JSA 25+ SUSTAINMENT OUTCOME PAYMENT,WWEG EP SOUTH EAST SURR SUSSX AND KENT G4S,G4S REGIONAL MANAGEMENT UK & I LTD,2033941041,"12,900"
DEPARTMENT FOR WORK AND PENSIONS ,Employment Programmes,04/11/2015,WP JSA 25+ SUSTAINMENT OUTCOME PAYMENT,WWEG EP EAST MIDLANDS INGEUS UK,INGEUS UK LTD,2033922492,"12,900"
DEPARTMENT FOR WORK AND PENSIONS ,Employment Programmes,25/11/2015,WP JSA 25+ SUSTAINMENT OUTCOME PAYMENT,WWEG EP NORTH EAST INGEUS UK,INGEUS UK LTD,2033954471,"12,900"
DEPARTMENT FOR WORK AND PENSIONS ,Corporate,04/11/2015,CONTRACTORS & STAFF SUBSTITUTIONS,CHG BTG DELIVER DELIVERY METHODS,CAPITA BUSINESS SERVICES LTD,2033921245,"12,876"
DEPARTMENT FOR WORK AND PENSIONS ,Corporate,30/11/2015,STAFF TRAINING VAT RECOVERABLE,HR CONTRACTUAL L AND D,CAPITA CIVIL SERVICE LEARNING,2033961082,"12,844"
DEPARTMENT FOR WORK AND PENSIONS ,Employment Programmes,02/11/2015,WP JSA 25+ SUSTAINMENT OUTCOME PAYMENT,WWEG EP WEST YORKSHIRE INGEUS UK,INGEUS UK LTD,2033918938,"12,685"
DEPARTMENT FOR WORK AND PENSIONS ,Employment Programmes,03/11/2015,WP JSA 25+ SUSTAINMENT OUTCOME PAYMENT,WWEG EP NORTH WEST MERS HAL CUMB AND LANCS INGEUS UK,INGEUS UK LTD,2033919428,"12,685"
DEPARTMENT FOR WORK AND PENSIONS ,Employment Programmes,04/11/2015,WP JSA 25+ SUSTAINMENT OUTCOME PAYMENT,WWEG EP SCOTLAND INGEUS UK,INGEUS UK LTD,2033922492,"12,685"
DEPARTMENT FOR WORK AND PENSIONS ,Employment Programmes,04/11/2015,WP JSA 25+ SUSTAINMENT OUTCOME PAYMENT,WWEG EP NORTH EAST INGEUS UK,INGEUS UK LTD,2033922492,"12,685"
DEPARTMENT FOR WORK AND PENSIONS ,Employment Programmes,11/11/2015,WP JSA 25+ SUSTAINMENT OUTCOME PAYMENT,WWEG EP SCOTLAND INGEUS UK,INGEUS UK LTD,2033931853,"12,685"
DEPARTMENT FOR WORK AND PENSIONS ,Employment Programmes,16/11/2015,WP JSA 25+ SUSTAINMENT OUTCOME PAYMENT,WWEG EP NORTH EAST INGEUS UK,INGEUS UK LTD,2033939711,"12,685"
DEPARTMENT FOR WORK AND PENSIONS ,Employment Programmes,16/11/2015,WP JSA 25+ SUSTAINMENT OUTCOME PAYMENT,WWEG EP EAST OF ENGLAND INGEUS UK,INGEUS UK LTD,2033939711,"12,685"
DEPARTMENT FOR WORK AND PENSIONS ,Corporate,26/11/2015,CONTRACTORS & STAFF SUBSTITUTIONS,CIO DATA & ANALYTICS DATA SCIENTIST,CAPITA BUSINESS SERVICES LTD,2033956009,"12,637"
DEPARTMENT FOR WORK AND PENSIONS ,Employment Programmes,13/11/2015,WP JSA 18-24 JOB SUSTAINMENT OUTCOME PAYMENT,WWEG EP WEST YORKSHIRE INGEUS UK,INGEUS UK LTD,2033935412,"12,580"
DEPARTMENT FOR WORK AND PENSIONS ,Corporate,04/11/2015,CONTRACTORS & STAFF SUBSTITUTIONS,CHG DIGITALISATION PROG DIRECTOR & PMO,CAPITA BUSINESS SERVICES LTD,2033921245,"12,506"
DEPARTMENT FOR WORK AND PENSIONS ,Employment Programmes,06/11/2015,WP JSA NEET SUSTAINMENT OUTCOME PAYMENT,WWEG EP EAST OF ENGLAND INGEUS UK,INGEUS UK LTD,2033926706,"12,500"
DEPARTMENT FOR WORK AND PENSIONS ,Employment Programmes,27/11/2015,WP JSA NEET SUSTAINMENT OUTCOME PAYMENT,WWEG EP NORTH EAST INGEUS UK,INGEUS UK LTD,2033956864,"12,500"
DEPARTMENT FOR WORK AND PENSIONS ,Corporate,10/11/2015,CONTRACTORS & STAFF SUBSTITUTIONS,CHG CREDIT UNION EXPANSION & DEVELOPMENT,CAPITA BUSINESS SERVICES LTD,2033929315,"12,496"
DEPARTMENT FOR WORK AND PENSIONS ,Housing Benefits,13/11/2015,HOUSING BENEFIT ADMINISTRATION,HB ENGLAND,HART DISTRICT COUNCIL,2033934065,"12,484"
DEPARTMENT FOR WORK AND PENSIONS ,Employment Programmes,19/11/2015,WP JSA 25+ SUSTAINMENT OUTCOME PAYMENT,WWEG EP EAST LONDON CAREERS DEVELOPMENT GROUP,CAREERS DEVELOPMENT GROUP,2033944455,"12,470"
DEPARTMENT FOR WORK AND PENSIONS ,Employment Programmes,18/11/2015,WP JSA 25+ SUSTAINMENT OUTCOME PAYMENT,WWEG EP SOUTH EAST SURR SUSSX AND KENT G4S,G4S REGIONAL MANAGEMENT UK & I LTD,2033943917,"12,470"
DEPARTMENT FOR WORK AND PENSIONS ,Employment Programmes,02/11/2015,WP JSA 25+ SUSTAINMENT OUTCOME PAYMENT,WWEG EP EAST MIDLANDS INGEUS UK,INGEUS UK LTD,2033918938,"12,470"
DEPARTMENT FOR WORK AND PENSIONS ,Employment Programmes,04/11/2015,WP JSA 25+ SUSTAINMENT OUTCOME PAYMENT,WWEG EP WEST YORKSHIRE INGEUS UK,INGEUS UK LTD,2033922492,"12,470"
DEPARTMENT FOR WORK AND PENSIONS ,Employment Programmes,05/11/2015,WP JSA 25+ SUSTAINMENT OUTCOME PAYMENT,WWEG EP EAST OF ENGLAND INGEUS UK,INGEUS UK LTD,2033923790,"12,470"
DEPARTMENT FOR WORK AND PENSIONS ,Employment Programmes,10/11/2015,WP JSA 25+ SUSTAINMENT OUTCOME PAYMENT,WWEG EP NORTH WEST MERS HAL CUMB AND LANCS INGEUS UK,INGEUS UK LTD,2033930160,"12,470"
DEPARTMENT FOR WORK AND PENSIONS ,Employment Programmes,11/11/2015,WP JSA 25+ SUSTAINMENT OUTCOME PAYMENT,WWEG EP NORTH WEST MERS HAL CUMB AND LANCS INGEUS UK,INGEUS UK LTD,2033931853,"12,470"
DEPARTMENT FOR WORK AND PENSIONS ,Employment Programmes,11/11/2015,WP JSA 25+ SUSTAINMENT OUTCOME PAYMENT,WWEG EP WEST LONDON INGEUS UK,INGEUS UK LTD,2033931853,"12,470"
DEPARTMENT FOR WORK AND PENSIONS ,Employment Programmes,18/11/2015,WP JSA 25+ SUSTAINMENT OUTCOME PAYMENT,WWEG EP WEST LONDON INGEUS UK,INGEUS UK LTD,2033943009,"12,470"
DEPARTMENT FOR WORK AND PENSIONS ,Employment Programmes,19/11/2015,WP JSA 25+ SUSTAINMENT OUTCOME PAYMENT,WWEG EP EAST OF ENGLAND INGEUS UK,INGEUS UK LTD,2033945576,"12,470"
DEPARTMENT FOR WORK AND PENSIONS ,Employment Programmes,24/11/2015,WP JSA 25+ SUSTAINMENT OUTCOME PAYMENT,WWEG EP NORTH WEST MERS HAL CUMB AND LANCS INGEUS UK,INGEUS UK LTD,2033952315,"12,470"
DEPARTMENT FOR WORK AND PENSIONS ,Employment Programmes,25/11/2015,WP JSA 25+ SUSTAINMENT OUTCOME PAYMENT,WWEG EP NORTH WEST MERS HAL CUMB AND LANCS INGEUS UK,INGEUS UK LTD,2033954471,"12,470"
DEPARTMENT FOR WORK AND PENSIONS ,Employment Programmes,05/11/2015,COMMUNITY WORK PLACEMENTS - JOB OUTCOME FEE,WWEP EP FG CEP CWP CPA03 - LONDON (WEST),G4S REGIONAL MANAGEMENT UK & I LTD,2033924269,"12,415"
DEPARTMENT FOR WORK AND PENSIONS ,Corporate,04/11/2015,CONTRACTORS & STAFF SUBSTITUTIONS,CHG GOVERNMENT BANKING SERVICE,CAPITA BUSINESS SERVICES LTD,2033921245,"12,377"
DEPARTMENT FOR WORK AND PENSIONS ,Corporate,04/11/2015,CONTRACTORS & STAFF SUBSTITUTIONS,"CIO TECH PLATFORM FIN, COMM & HR CORE",CAPITA BUSINESS SERVICES LTD,2033921245,"12,367"
DEPARTMENT FOR WORK AND PENSIONS ,Corporate,19/11/2015,CONTRACTORS & STAFF SUBSTITUTIONS,"CIO TECH PLATFORM FIN, COMM & HR CORE",CAPITA BUSINESS SERVICES LTD,2033944240,"12,367"
DEPARTMENT FOR WORK AND PENSIONS ,Corporate,17/11/2015,TREDDS APPS DEV MANDAYS,CIO IT INFORMATION DATA SERVICES,HP ENTERPRISE SERVICES UK LTD,2033941139,"12,296"
DEPARTMENT FOR WORK AND PENSIONS ,Employment Programmes,25/11/2015,WP JSA 25+ SUSTAINMENT OUTCOME PAYMENT,WWEG EP WEST YORKSHIRE INGEUS UK,INGEUS UK LTD,2033954471,"12,255"
DEPARTMENT FOR WORK AND PENSIONS ,Employment Programmes,06/11/2015,WP JSA 25+ SUSTAINMENT OUTCOME PAYMENT,WWEG EP WEST YORKSHIRE BEST LTD,INTERSERVE WORKING FUTURES,2033926503,"12,255"
DEPARTMENT FOR WORK AND PENSIONS ,Corporate,04/11/2015,STAFF TRAINING VAT RECOVERABLE,HR CONTRACTUAL L AND D,CAPITA CIVIL SERVICE LEARNING,2033922514,"12,224"
DEPARTMENT FOR WORK AND PENSIONS ,Employment Programmes,06/11/2015,WP JSA 18-24 JOB SUSTAINMENT OUTCOME PAYMENT,WWEG EP EAST MIDLANDS INGEUS UK,INGEUS UK LTD,2033926706,"12,070"
DEPARTMENT FOR WORK AND PENSIONS ,Employment Programmes,20/11/2015,WP JSA 18-24 JOB SUSTAINMENT OUTCOME PAYMENT,WWEG EP WEST YORKSHIRE INGEUS UK,INGEUS UK LTD,2033948004,"12,070"
DEPARTMENT FOR WORK AND PENSIONS ,Corporate,17/11/2015,TREDDS APPS DEV MANDAYS,CHG STATE PENSION REFORM 2,HP ENTERPRISE SERVICES UK LTD,2033941139,"12,056"
DEPARTMENT FOR WORK AND PENSIONS ,Corporate,10/11/2015,CONTRACTORS & STAFF SUBSTITUTIONS,CIO IT STATISTICAL SERVICES,CAPITA BUSINESS SERVICES LTD,2033929315,"12,045"
DEPARTMENT FOR WORK AND PENSIONS ,Employment Programmes,12/11/2015,WP JSA 25+ SUSTAINMENT OUTCOME PAYMENT,WWEG EP NORTH WEST GM CHES AND WARR G4S,G4S REGIONAL MANAGEMENT UK & I LTD,2033933330,"12,040"
DEPARTMENT FOR WORK AND PENSIONS ,Employment Programmes,20/11/2015,WP JSA 25+ SUSTAINMENT OUTCOME PAYMENT,WWEG EP SOUTH EAST SURR SUSSX AND KENT G4S,G4S REGIONAL MANAGEMENT UK & I LTD,2033948080,"12,040"
DEPARTMENT FOR WORK AND PENSIONS ,Employment Programmes,17/11/2015,WP JSA 25+ SUSTAINMENT OUTCOME PAYMENT,WWEG EP WEST LONDON INGEUS UK,INGEUS UK LTD,2033940111,"12,040"
DEPARTMENT FOR WORK AND PENSIONS ,Employment Programmes,30/11/2015,WP JSA 25+ SUSTAINMENT OUTCOME PAYMENT,WWEG EP WEST LONDON INGEUS UK,INGEUS UK LTD,2033960714,"12,040"
DEPARTMENT FOR WORK AND PENSIONS ,Employment Programmes,20/11/2015,WP JSA 25+ SUSTAINMENT OUTCOME PAYMENT,WWEG EP WEST YORKSHIRE BEST LTD,INTERSERVE WORKING FUTURES,2033947796,"12,040"
DEPARTMENT FOR WORK AND PENSIONS ,Housing Benefits,13/11/2015,HOUSING BENEFIT ADMINISTRATION,HB ENGLAND,EDEN DISTRICT COUNCIL,2033934269,"12,010"
DEPARTMENT FOR WORK AND PENSIONS ,Employment Programmes,26/11/2015,COMMUNITY WORK PLACEMENTS - JOB OUTCOME FEE,WWEP EP FG CEP CWP CPA18 - YORKSHIRE & HUMBER (3),G4S REGIONAL MANAGEMENT UK & I LTD,2033955320,"12,000"
DEPARTMENT FOR WORK AND PENSIONS ,Employment Programmes,13/11/2015,WP JSA NEET SUSTAINMENT OUTCOME PAYMENT,WWEG EP NORTH EAST INGEUS UK,INGEUS UK LTD,2033935412,"12,000"
DEPARTMENT FOR WORK AND PENSIONS ,Corporate,10/11/2015,CONTRACTORS & STAFF SUBSTITUTIONS,CIO DATA & ANALYTICS DATA SCIENTIST,CAPITA BUSINESS SERVICES LTD,2033929315,"11,988"
DEPARTMENT FOR WORK AND PENSIONS ,Corporate,04/11/2015,CONTRACTORS & STAFF SUBSTITUTIONS,CIO ENTERPRISE INFRASTRUCTURE CONTRACT IPCC,CAPITA BUSINESS SERVICES LTD,2033921245,"11,939"
DEPARTMENT FOR WORK AND PENSIONS ,Housing Benefits,13/11/2015,HOUSING BENEFIT ADMINISTRATION,HB SCOTLAND,COMHAIRLE NAN EILEAN SIAR COUNCIL,2033934216,"11,917"
DEPARTMENT FOR WORK AND PENSIONS ,Employment Programmes,04/11/2015,WP JSA 25+ SUSTAINMENT OUTCOME PAYMENT,WWEG EP W MIDLANDS COV WARW STAFFS AND MARCHES ESG,ESG HOLDINGS LIMITED,2033922501,"11,825"
DEPARTMENT FOR WORK AND PENSIONS ,Employment Programmes,02/11/2015,WP JSA 25+ SUSTAINMENT OUTCOME PAYMENT,WWEG EP NORTH EAST Y AND H G4S,G4S REGIONAL MANAGEMENT UK & I LTD,2033918582,"11,825"
DEPARTMENT FOR WORK AND PENSIONS ,Employment Programmes,30/11/2015,WP JSA 25+ SUSTAINMENT OUTCOME PAYMENT,WWEG EP NORTH EAST Y AND H G4S,G4S REGIONAL MANAGEMENT UK & I LTD,2033959538,"11,825"
DEPARTMENT FOR WORK AND PENSIONS ,Employment Programmes,03/11/2015,WP JSA 25+ SUSTAINMENT OUTCOME PAYMENT,WWEG EP WEST YORKSHIRE INGEUS UK,INGEUS UK LTD,2033919428,"11,825"
DEPARTMENT FOR WORK AND PENSIONS ,Employment Programmes,16/11/2015,WP JSA 25+ SUSTAINMENT OUTCOME PAYMENT,WWEG EP WEST LONDON INGEUS UK,INGEUS UK LTD,2033939711,"11,825"
DEPARTMENT FOR WORK AND PENSIONS ,Employment Programmes,30/11/2015,WP JSA 25+ SUSTAINMENT OUTCOME PAYMENT,WWEG EP NORTH EAST INGEUS UK,INGEUS UK LTD,2033960714,"11,825"
DEPARTMENT FOR WORK AND PENSIONS ,Employment Programmes,16/11/2015,COMMUNITY WORK PLACEMENTS - JOB OUTCOME FEE,WWEP EP FG CEP CWP CPA04 - LONDON (EAST),G4S REGIONAL MANAGEMENT UK & I LTD,2033938983,"11,787"
DEPARTMENT FOR WORK AND PENSIONS ,Corporate,04/11/2015,CONTRACTORS & STAFF SUBSTITUTIONS,CHG PIP IT DIGITAL,CAPITA BUSINESS SERVICES LTD,2033921245,"11,675"
DEPARTMENT FOR WORK AND PENSIONS ,Corporate,04/11/2015,CONTRACTORS & STAFF SUBSTITUTIONS,CIO TECH PLATFORM BUS DIRECTOR & SUPPORT CORE,CAPITA BUSINESS SERVICES LTD,2033921245,"11,660"
DEPARTMENT FOR WORK AND PENSIONS ,Employment Programmes,05/11/2015,WP JSA 25+ SUSTAINMENT OUTCOME PAYMENT,WWEG EP EAST LONDON CAREERS DEVELOPMENT GROUP,CAREERS DEVELOPMENT GROUP,2033923959,"11,610"
DEPARTMENT FOR WORK AND PENSIONS ,Employment Programmes,02/11/2015,WP JSA 25+ SUSTAINMENT OUTCOME PAYMENT,WWEG EP NORTH EAST INGEUS UK,INGEUS UK LTD,2033918938,"11,610"
DEPARTMENT FOR WORK AND PENSIONS ,Employment Programmes,10/11/2015,WP JSA 25+ SUSTAINMENT OUTCOME PAYMENT,WWEG EP WEST YORKSHIRE INGEUS UK,INGEUS UK LTD,2033930160,"11,610"
DEPARTMENT FOR WORK AND PENSIONS ,Employment Programmes,09/11/2015,WP JSA 25+ SUSTAINMENT OUTCOME PAYMENT,WWEG EP NORTH EAST Y AND H G4S,G4S REGIONAL MANAGEMENT UK & I LTD,2033928166,"11,395"
DEPARTMENT FOR WORK AND PENSIONS ,Employment Programmes,11/11/2015,WP JSA 25+ SUSTAINMENT OUTCOME PAYMENT,WWEG EP NORTH WEST GM CHES AND WARR G4S,G4S REGIONAL MANAGEMENT UK & I LTD,2033931267,"11,395"
DEPARTMENT FOR WORK AND PENSIONS ,Employment Programmes,04/11/2015,WP JSA 25+ JOB OUTCOME PAYMENTWP JSA 25+ JOB OUTCOME PAYMENT,WWEG EP WEST YORKSHIRE BEST LTD,INTERSERVE WORKING FUTURES,2033921469,"11,316"
DEPARTMENT FOR WORK AND PENSIONS ,Corporate,19/11/2015,CONTRACTORS & STAFF SUBSTITUTIONS,CIO ENTERPRISE INFRASTRUCTURE CONTRACT IPCC,CAPITA BUSINESS SERVICES LTD,2033944240,"11,221"
DEPARTMENT FOR WORK AND PENSIONS ,Corporate,26/11/2015,CONTRACTORS & STAFF SUBSTITUTIONS,CIO ADC DIRECTOR,CAPITA BUSINESS SERVICES LTD,2033956009,"11,219"
DEPARTMENT FOR WORK AND PENSIONS ,Employment Programmes,05/11/2015,COMMUNITY WORK PLACEMENTS - JOB OUTCOME FEE,WWEP EP FG CEP CWP CPA06 - NORTH WEST (1),G4S REGIONAL MANAGEMENT UK & I LTD,2033924269,"11,216"
DEPARTMENT FOR WORK AND PENSIONS ,Employment Programmes,11/11/2015,COMMUNITY WORK PLACEMENTS - JOB OUTCOME FEE,WWEP EP FG CEP CWP CPA06 - NORTH WEST (1),G4S REGIONAL MANAGEMENT UK & I LTD,2033931267,"11,216"
DEPARTMENT FOR WORK AND PENSIONS ,Employment Programmes,27/11/2015,WP JSA 25+ SUSTAINMENT OUTCOME PAYMENT,WWEG EP W MIDLANDS COV WARW STAFFS AND MARCHES ESG,ESG HOLDINGS LIMITED,2033957147,"11,180"
DEPARTMENT FOR WORK AND PENSIONS ,Employment Programmes,02/11/2015,WP JSA 25+ SUSTAINMENT OUTCOME PAYMENT,WWEG EP NORTH WEST MERS HAL CUMB AND LANCS INGEUS UK,INGEUS UK LTD,2033918938,"11,180"
DEPARTMENT FOR WORK AND PENSIONS ,Employment Programmes,18/11/2015,WP JSA 25+ SUSTAINMENT OUTCOME PAYMENT,WWEG EP WEST YORKSHIRE INGEUS UK,INGEUS UK LTD,2033943009,"11,180"
DEPARTMENT FOR WORK AND PENSIONS ,Employment Programmes,06/11/2015,ACCESS TO WORK - PAYMENT FOR SUPPORT WORKERS,WWEG EP NORTH EAST,HANDSCOM LTD,2033925753,"11,098"
DEPARTMENT FOR WORK AND PENSIONS ,Employment Programmes,23/11/2015,COMMUNITY WORK PLACEMENTS - SHORT COMPLETION FEE,WWEP EP FG CEP CWP CPA04 - LONDON (EAST),G4S REGIONAL MANAGEMENT UK & I LTD,2033949009,"11,001"
DEPARTMENT FOR WORK AND PENSIONS ,Employment Programmes,06/11/2015,COMMUNITY WORK PLACEMENTS - LONG COMPLETION FEE,WWEP EP FG CEP CWP CPA18 - YORKSHIRE & HUMBER (3),G4S REGIONAL MANAGEMENT UK & I LTD,2033926387,"11,000"
DEPARTMENT FOR WORK AND PENSIONS ,Employment Programmes,06/11/2015,WP JSA NEET SUSTAINMENT OUTCOME PAYMENT,WWEG EP NORTH WEST MERS HAL CUMB AND LANCS INGEUS UK,INGEUS UK LTD,2033926706,"11,000"
DEPARTMENT FOR WORK AND PENSIONS ,Employment Programmes,04/11/2015,WP JSA 25+ SUSTAINMENT OUTCOME PAYMENT,WWEG EP EAST LONDON CAREERS DEVELOPMENT GROUP,CAREERS DEVELOPMENT GROUP,2033921032,"10,965"
DEPARTMENT FOR WORK AND PENSIONS ,Employment Programmes,05/11/2015,WP JSA 25+ SUSTAINMENT OUTCOME PAYMENT,WWEG EP NORTH WEST MERS HAL CUMB AND LANCS INGEUS UK,INGEUS UK LTD,2033923790,"10,965"
DEPARTMENT FOR WORK AND PENSIONS ,Employment Programmes,10/11/2015,WP JSA 25+ SUSTAINMENT OUTCOME PAYMENT,WWEG EP WEST LONDON INGEUS UK,INGEUS UK LTD,2033930160,"10,965"
DEPARTMENT FOR WORK AND PENSIONS ,Employment Programmes,11/11/2015,WP JSA 25+ SUSTAINMENT OUTCOME PAYMENT,WWEG EP NORTH EAST INGEUS UK,INGEUS UK LTD,2033931853,"10,965"
DEPARTMENT FOR WORK AND PENSIONS ,Employment Programmes,25/11/2015,WP JSA 25+ SUSTAINMENT OUTCOME PAYMENT,WWEG EP WEST YORKSHIRE BEST LTD,INTERSERVE WORKING FUTURES,2033952451,"10,965"
DEPARTMENT FOR WORK AND PENSIONS ,Employment Programmes,20/11/2015,WP ESA (IR) WRAG 3/6 MTH MANDATORY SUSTAINMENT OUTCOME PAYMENT,WWEG EP EAST MIDLANDS INGEUS UK,INGEUS UK LTD,2033948004,"10,810"
DEPARTMENT FOR WORK AND PENSIONS ,Employment Programmes,03/11/2015,WP JSA 25+ JOB OUTCOME PAYMENTWP JSA 25+ JOB OUTCOME PAYMENT,WWEG EP NORTH WEST GM CHES AND WARR G4S,G4S REGIONAL MANAGEMENT UK & I LTD,2033919744,"10,776"
DEPARTMENT FOR WORK AND PENSIONS ,Employment Programmes,11/11/2015,WP JSA 25+ SUSTAINMENT OUTCOME PAYMENT,WWEG EP EAST MIDLANDS INGEUS UK,INGEUS UK LTD,2033931853,"10,750"
DEPARTMENT FOR WORK AND PENSIONS ,Employment Programmes,25/11/2015,WP JSA 25+ SUSTAINMENT OUTCOME PAYMENT,WWEG EP EAST OF ENGLAND INGEUS UK,INGEUS UK LTD,2033954471,"10,750"
DEPARTMENT FOR WORK AND PENSIONS ,Employment Programmes,27/11/2015,WP JSA NEET SUSTAINMENT OUTCOME PAYMENT,WWEG EP NORTH WEST MERS HAL CUMB AND LANCS INGEUS UK,INGEUS UK LTD,2033956864,"10,750"
DEPARTMENT FOR WORK AND PENSIONS ,Employment Programmes,17/11/2015,WP JSA 25+ SUSTAINMENT OUTCOME PAYMENT,WWEG EP WEST YORKSHIRE BEST LTD,INTERSERVE WORKING FUTURES,2033940887,"10,750"
DEPARTMENT FOR WORK AND PENSIONS ,Employment Programmes,06/11/2015,COMMUNITY WORK PLACEMENTS - SHORT COMPLETION FEE,WWEP EP FG CEP CWP CPA06 - NORTH WEST (1),G4S REGIONAL MANAGEMENT UK & I LTD,2033926387,"10,749"
DEPARTMENT FOR WORK AND PENSIONS ,Employment Programmes,09/11/2015,COMMUNITY WORK PLACEMENTS - SHORT COMPLETION FEE,WWEP EP FG CEP CWP CPA02 - EAST MIDLANDS,G4S REGIONAL MANAGEMENT UK & I LTD,2033928166,"10,747"
DEPARTMENT FOR WORK AND PENSIONS ,Employment Programmes,09/11/2015,COMMUNITY WORK PLACEMENTS - JOB OUTCOME FEE,WWEP EP FG CEP CWP CPA02 - EAST MIDLANDS,G4S REGIONAL MANAGEMENT UK & I LTD,2033928166,"10,747"
DEPARTMENT FOR WORK AND PENSIONS ,Corporate,10/11/2015,CONTRACTORS & STAFF SUBSTITUTIONS,"CIO TECH PLATFORM FIN, COMM & HR CORE",CAPITA BUSINESS SERVICES LTD,2033929315,"10,737"
DEPARTMENT FOR WORK AND PENSIONS ,Employment Programmes,24/11/2015,COMMUNITY WORK PLACEMENTS - LONG COMPLETION FEE,WWEP EP FG CEP CWP CPA09 - SOUTH EAST (1),G4S REGIONAL MANAGEMENT UK & I LTD,2033951319,"10,634"
DEPARTMENT FOR WORK AND PENSIONS ,Employment Programmes,06/11/2015,COMMUNITY WORK PLACEMENTS - SHORT COMPLETION FEE,WWEP EP FG CEP CWP CPA04 - LONDON (EAST),G4S REGIONAL MANAGEMENT UK & I LTD,2033926387,"10,609"
DEPARTMENT FOR WORK AND PENSIONS ,Employment Programmes,05/11/2015,WP JSA 25+ SUSTAINMENT OUTCOME PAYMENT,WWEG EP NORTH WEST GM CHES AND WARR G4S,G4S REGIONAL MANAGEMENT UK & I LTD,2033924269,"10,535"
DEPARTMENT FOR WORK AND PENSIONS ,Employment Programmes,03/11/2015,WP JSA 25+ SUSTAINMENT OUTCOME PAYMENT,WWEG EP EAST MIDLANDS INGEUS UK,INGEUS UK LTD,2033919428,"10,535"
DEPARTMENT FOR WORK AND PENSIONS ,Employment Programmes,12/11/2015,WP JSA 25+ SUSTAINMENT OUTCOME PAYMENT,WWEG EP EAST MIDLANDS INGEUS UK,INGEUS UK LTD,2033933067,"10,535"
DEPARTMENT FOR WORK AND PENSIONS ,Employment Programmes,12/11/2015,WP JSA 25+ SUSTAINMENT OUTCOME PAYMENT,WWEG EP WEST LONDON INGEUS UK,INGEUS UK LTD,2033933067,"10,535"
DEPARTMENT FOR WORK AND PENSIONS ,Employment Programmes,24/11/2015,WP JSA 25+ SUSTAINMENT OUTCOME PAYMENT,WWEG EP WEST LONDON INGEUS UK,INGEUS UK LTD,2033952315,"10,535"
DEPARTMENT FOR WORK AND PENSIONS ,Corporate,26/11/2015,CONTRACTORS & STAFF SUBSTITUTIONS,HR HEALTH SAFETY WELLBEING HONOURS,CAPITA BUSINESS SERVICES LTD,2033956009,"10,515"
DEPARTMENT FOR WORK AND PENSIONS ,Employment Programmes,13/11/2015,WP JSA EARLY ACCESS SUSTAINMENT OUTCOME PAYMENT,WWEG EP EAST OF ENGLAND INGEUS UK,INGEUS UK LTD,2033935412,"10,500"
DEPARTMENT FOR WORK AND PENSIONS ,Employment Programmes,27/11/2015,WP JSA NEET SUSTAINMENT OUTCOME PAYMENT,WWEG EP EAST OF ENGLAND INGEUS UK,INGEUS UK LTD,2033956864,"10,500"
DEPARTMENT FOR WORK AND PENSIONS ,Corporate,04/11/2015,CONTRACTORS & STAFF SUBSTITUTIONS,CHG DIGITAL TRANSFORMATION DG OFFICE,CAPITA BUSINESS SERVICES LTD,2033921245,"10,430"
DEPARTMENT FOR WORK AND PENSIONS ,Corporate,19/11/2015,CONTRACTORS & STAFF SUBSTITUTIONS,CIO EUC COLLABORATION SERVICES CORE,CAPITA BUSINESS SERVICES LTD,2033944240,"10,388"
DEPARTMENT FOR WORK AND PENSIONS ,Employment Programmes,06/11/2015,COMMUNITY WORK PLACEMENTS - START FEE,WWEP EP FG CEP CWP CPA04 - LONDON (EAST),G4S REGIONAL MANAGEMENT UK & I LTD,2033926387,"10,373"
DEPARTMENT FOR WORK AND PENSIONS ,Employment Programmes,09/11/2015,WP JSA 25+ SUSTAINMENT OUTCOME PAYMENT,WWEG EP WEST YORKSHIRE INGEUS UK,INGEUS UK LTD,2033927516,"10,320"
DEPARTMENT FOR WORK AND PENSIONS ,Employment Programmes,11/11/2015,WP JSA 25+ SUSTAINMENT OUTCOME PAYMENT,WWEG EP EAST OF ENGLAND INGEUS UK,INGEUS UK LTD,2033931853,"10,320"
DEPARTMENT FOR WORK AND PENSIONS ,Employment Programmes,16/11/2015,WP JSA 25+ SUSTAINMENT OUTCOME PAYMENT,WWEG EP WEST YORKSHIRE INGEUS UK,INGEUS UK LTD,2033939711,"10,320"
DEPARTMENT FOR WORK AND PENSIONS ,Employment Programmes,04/11/2015,WP JSA 25+ JOB OUTCOME PAYMENTWP JSA 25+ JOB OUTCOME PAYMENT,WWEG EP NORTH EAST Y AND H G4S,G4S REGIONAL MANAGEMENT UK & I LTD,2033922860,"10,266"
DEPARTMENT FOR WORK AND PENSIONS ,Employment Programmes,20/11/2015,WP JSA NEET SUSTAINMENT OUTCOME PAYMENT,WWEG EP NORTH WEST MERS HAL CUMB AND LANCS INGEUS UK,INGEUS UK LTD,2033948004,"10,250"
DEPARTMENT FOR WORK AND PENSIONS ,Employment Programmes,20/11/2015,WP JSA NEET SUSTAINMENT OUTCOME PAYMENT,WWEG EP EAST OF ENGLAND INGEUS UK,INGEUS UK LTD,2033948004,"10,250"
DEPARTMENT FOR WORK AND PENSIONS ,Corporate,10/11/2015,CONTRACTORS & STAFF SUBSTITUTIONS,CIO IT SERVICES SERVICE SUPPLY MANAGEMENT,CAPITA BUSINESS SERVICES LTD,2033929315,"10,230"
DEPARTMENT FOR WORK AND PENSIONS ,Employment Programmes,03/11/2015,COMMUNITY WORK PLACEMENTS - LONG COMPLETION FEE,WWEP EP FG CEP CWP CPA04 - LONDON (EAST),G4S REGIONAL MANAGEMENT UK & I LTD,2033919744,"10,216"
DEPARTMENT FOR WORK AND PENSIONS ,Employment Programmes,06/11/2015,COMMUNITY WORK PLACEMENTS - LONG COMPLETION FEE,WWEP EP FG CEP CWP CPA04 - LONDON (EAST),G4S REGIONAL MANAGEMENT UK & I LTD,2033926387,"10,216"
DEPARTMENT FOR WORK AND PENSIONS ,Employment Programmes,26/11/2015,COMMUNITY WORK PLACEMENTS - LONG COMPLETION FEE,WWEP EP FG CEP CWP CPA04 - LONDON (EAST),G4S REGIONAL MANAGEMENT UK & I LTD,2033955320,"10,216"
DEPARTMENT FOR WORK AND PENSIONS ,Employment Programmes,30/11/2015,COMMUNITY WORK PLACEMENTS - SHORT COMPLETION FEE,WWEP EP FG CEP CWP CPA04 - LONDON (EAST),G4S REGIONAL MANAGEMENT UK & I LTD,2033959538,"10,216"
DEPARTMENT FOR WORK AND PENSIONS ,Employment Programmes,27/11/2015,WP JSA 18-24 JOB SUSTAINMENT OUTCOME PAYMENT,WWEG EP WEST YORKSHIRE INGEUS UK,INGEUS UK LTD,2033956864,"10,200"
DEPARTMENT FOR WORK AND PENSIONS ,Corporate,26/11/2015,CONTRACTORS & STAFF SUBSTITUTIONS,CIO ENTERPRISE INFRASTRUCTURE CONTRACT IPCC,CAPITA BUSINESS SERVICES LTD,2033956009,"10,195"
DEPARTMENT FOR WORK AND PENSIONS ,Corporate,19/11/2015,CONTRACTORS & STAFF SUBSTITUTIONS,CHG SECURE COMMS,CAPITA BUSINESS SERVICES LTD,2033944240,"10,162"
DEPARTMENT FOR WORK AND PENSIONS ,Corporate,10/11/2015,DESKTOP SERVICES,CIO EUC DEVICE SERVICES CORE,HP ENTERPRISE SERVICES UK LTD,2033929958,"10,157"
DEPARTMENT FOR WORK AND PENSIONS ,Corporate,19/11/2015,CONTRACTORS & STAFF SUBSTITUTIONS,CIO TECH PLATFORM FED CORE,CAPITA BUSINESS SERVICES LTD,2033944240,"10,148"
DEPARTMENT FOR WORK AND PENSIONS ,Employment Programmes,19/11/2015,COMMUNITY WORK PLACEMENTS - JOB OUTCOME FEE,WWEP EP FG CEP CWP CPA17 - YORKSHIRE & HUMBER (2),INTERSERVE WORKING FUTURES,2033945494,"10,128"
DEPARTMENT FOR WORK AND PENSIONS ,Employment Programmes,25/11/2015,COMMUNITY WORK PLACEMENTS - LONG COMPLETION FEE,WWEP EP FG CEP CWP CPA17 - YORKSHIRE & HUMBER (2),INTERSERVE WORKING FUTURES,2033952451,"10,128"
DEPARTMENT FOR WORK AND PENSIONS ,Employment Programmes,20/11/2015,SERVICE FEE,WWEG EP CORE MWA CPA YORKSHIRE AND HUMBER,INTERSERVE WORKING FUTURES,2033947796,"10,114"
DEPARTMENT FOR WORK AND PENSIONS ,Corporate,26/11/2015,CONTRACTORS & STAFF SUBSTITUTIONS,F&C CORP SVS FIN WORKING AGE,CAPITA BUSINESS SERVICES LTD,2033956009,"10,108"
DEPARTMENT FOR WORK AND PENSIONS ,Employment Programmes,12/11/2015,WP JSA 25+ SUSTAINMENT OUTCOME PAYMENT,WWEG EP WEST YORKSHIRE INGEUS UK,INGEUS UK LTD,2033933067,"10,105"
DEPARTMENT FOR WORK AND PENSIONS ,Employment Programmes,06/11/2015,WP JSA NEET SUSTAINMENT OUTCOME PAYMENT,WWEG EP NORTH EAST INGEUS UK,INGEUS UK LTD,2033926706,"10,000"
DEPARTMENT FOR WORK AND PENSIONS ,Corporate,17/11/2015,NON-TREDDS IS IT APPS DEV MANDAY,CHG LA DATA SHARING PROG,IBM UNITED KINGDOM LTD,2033940553,"9,995"
DEPARTMENT FOR WORK AND PENSIONS ,Employment Programmes,03/11/2015,WP JSA 25+ JOB OUTCOME PAYMENTWP JSA 25+ JOB OUTCOME PAYMENT,WWEG EP WEST YORKSHIRE BEST LTD,INTERSERVE WORKING FUTURES,2033919821,"9,984"
DEPARTMENT FOR WORK AND PENSIONS ,Corporate,19/11/2015,CONTRACTORS & STAFF SUBSTITUTIONS,HR HEALTH SAFETY WELLBEING HONOURS,CAPITA BUSINESS SERVICES LTD,2033944240,"9,963"
DEPARTMENT FOR WORK AND PENSIONS ,Employment Programmes,30/11/2015,COMMUNITY WORK PLACEMENTS - JOB OUTCOME FEE,WWEP EP FG CEP CWP CPA03 - LONDON (WEST),G4S REGIONAL MANAGEMENT UK & I LTD,2033959538,"9,932"
DEPARTMENT FOR WORK AND PENSIONS ,Corporate,26/11/2015,CONTRACTORS & STAFF SUBSTITUTIONS,CHG RTI STRATEGIC SOLUTION,CAPITA BUSINESS SERVICES LTD,2033956009,"9,923"
DEPARTMENT FOR WORK AND PENSIONS ,Employment Programmes,03/11/2015,COMMUNITY WORK PLACEMENTS - START FEE,WWEP EP FG CEP CWP CPA16 - YORKSHIRE & HUMBER (1),INTERSERVE WORKING FUTURES,2033919821,"9,908"
DEPARTMENT FOR WORK AND PENSIONS ,Employment Programmes,05/11/2015,WP JSA 25+ JOB OUTCOME PAYMENTWP JSA 25+ JOB OUTCOME PAYMENT,WWEG EP WEST YORKSHIRE INGEUS UK,INGEUS UK LTD,2033923790,"9,900"
DEPARTMENT FOR WORK AND PENSIONS ,Employment Programmes,18/11/2015,WP JSA 25+ SUSTAINMENT OUTCOME PAYMENT,WWEG EP NORTH WEST GM CHES AND WARR G4S,G4S REGIONAL MANAGEMENT UK & I LTD,2033943917,"9,890"
DEPARTMENT FOR WORK AND PENSIONS ,Employment Programmes,06/11/2015,WP JSA 18-24 JOB SUSTAINMENT OUTCOME PAYMENT,WWEG EP WEST YORKSHIRE INGEUS UK,INGEUS UK LTD,2033926706,"9,860"
DEPARTMENT FOR WORK AND PENSIONS ,Employment Programmes,09/11/2015,COMMUNITY WORK PLACEMENTS - LONG COMPLETION FEE,WWEP EP FG CEP CWP CPA02 - EAST MIDLANDS,G4S REGIONAL MANAGEMENT UK & I LTD,2033928166,"9,852"
DEPARTMENT FOR WORK AND PENSIONS ,Employment Programmes,30/11/2015,COMMUNITY WORK PLACEMENTS - SHORT COMPLETION FEE,WWEP EP FG CEP CWP CPA02 - EAST MIDLANDS,G4S REGIONAL MANAGEMENT UK & I LTD,2033959538,"9,852"
DEPARTMENT FOR WORK AND PENSIONS ,Corporate,23/11/2015,STAFF TRAINING VAT RECOVERABLE,CMG OPS EXTERNAL CONTRACTS/SLAS L&D,CAPITA CIVIL SERVICE LEARNING,2033949063,"9,800"
DEPARTMENT FOR WORK AND PENSIONS ,Corporate,10/11/2015,CONTRACTORS & STAFF SUBSTITUTIONS,CHG BTG DELIVER MOBILISE,CAPITA BUSINESS SERVICES LTD,2033929315,"9,770"
DEPARTMENT FOR WORK AND PENSIONS ,Employment Programmes,04/11/2015,WP JSA 18-24 JOB OUTCOME PAYMENT,WWEG EP NORTH WEST GM CHES AND WARR G4S,G4S REGIONAL MANAGEMENT UK & I LTD,2033922860,"9,750"
DEPARTMENT FOR WORK AND PENSIONS ,Corporate,26/11/2015,CONTRACTORS & STAFF SUBSTITUTIONS,CIO ENTERPRISE INFRASTRUCTURE CONTRACT GENERAL,CAPITA BUSINESS SERVICES LTD,2033956009,"9,715"
DEPARTMENT FOR WORK AND PENSIONS ,Employment Programmes,13/11/2015,WP JSA 18-24 JOB SUSTAINMENT OUTCOME PAYMENT,WWEG EP EAST LONDON CAREERS DEVELOPMENT GROUP,CAREERS DEVELOPMENT GROUP,2033936884,"9,690"
DEPARTMENT FOR WORK AND PENSIONS ,Corporate,26/11/2015,CONTRACTORS & STAFF SUBSTITUTIONS,CIO IT STATISTICAL SERVICES,CAPITA BUSINESS SERVICES LTD,2033956009,"9,688"
DEPARTMENT FOR WORK AND PENSIONS ,Corporate,19/11/2015,CONTRACTORS & STAFF SUBSTITUTIONS,CIO ENTERPRISE INFRASTRUCTURE CONTRACT TELEPHONY,CAPITA BUSINESS SERVICES LTD,2033944240,"9,680"
DEPARTMENT FOR WORK AND PENSIONS ,Employment Programmes,04/11/2015,WP JSA 25+ SUSTAINMENT OUTCOME PAYMENT,WWEG EP SOUTH EAST SURR SUSSX AND KENT G4S,G4S REGIONAL MANAGEMENT UK & I LTD,2033922860,"9,675"
DEPARTMENT FOR WORK AND PENSIONS ,Employment Programmes,13/11/2015,WP JSA 25+ SUSTAINMENT OUTCOME PAYMENT,WWEG EP NORTH EAST Y AND H G4S,G4S REGIONAL MANAGEMENT UK & I LTD,2033937597,"9,675"
DEPARTMENT FOR WORK AND PENSIONS ,Employment Programmes,16/11/2015,WP JSA 25+ SUSTAINMENT OUTCOME PAYMENT,WWEG EP NORTH WEST MERS HAL CUMB AND LANCS INGEUS UK,INGEUS UK LTD,2033939711,"9,675"
DEPARTMENT FOR WORK AND PENSIONS ,Employment Programmes,13/11/2015,COMMUNITY WORK PLACEMENTS - SHORT COMPLETION FEE,WWEP EP FG CEP CWP CPA09 - SOUTH EAST (1),G4S REGIONAL MANAGEMENT UK & I LTD,2033937597,"9,667"
DEPARTMENT FOR WORK AND PENSIONS ,Employment Programmes,27/11/2015,WP ESA (IR) WRAG 3/6 MTH MANDATORY SUSTAINMENT OUTCOME PAYMENT,WWEG EP SCOTLAND INGEUS UK,INGEUS UK LTD,2033956864,"9,635"
DEPARTMENT FOR WORK AND PENSIONS ,Employment Programmes,24/11/2015,ACCESS TO WORK - TRAVEL IN WORK,WWEG EP NORTH WEST,CAPITA SYMONDS LTD,2033950222,"9,634"
DEPARTMENT FOR WORK AND PENSIONS ,Employment Programmes,04/11/2015,COMMUNITY WORK PLACEMENTS - LONG COMPLETION FEE,WWEP EP FG CEP CWP CPA16 - YORKSHIRE & HUMBER (1),INTERSERVE WORKING FUTURES,2033921469,"9,588"
DEPARTMENT FOR WORK AND PENSIONS ,Corporate,19/11/2015,CONTRACTORS & STAFF SUBSTITUTIONS,CHG PENSION TRACING SERVICE,CAPITA BUSINESS SERVICES LTD,2033944240,"9,581"
DEPARTMENT FOR WORK AND PENSIONS ,Corporate,04/11/2015,CONTRACTORS & STAFF SUBSTITUTIONS,CIO ITPD IT DIGITALISATION,CAPITA BUSINESS SERVICES LTD,2033921245,"9,536"
DEPARTMENT FOR WORK AND PENSIONS ,Employment Programmes,27/11/2015,WP JSA NEET SUSTAINMENT OUTCOME PAYMENT,WWEG EP WEST YORKSHIRE INGEUS UK,INGEUS UK LTD,2033956864,"9,500"
DEPARTMENT FOR WORK AND PENSIONS ,Employment Programmes,02/11/2015,WP JSA 25+ JOB OUTCOME PAYMENTWP JSA 25+ JOB OUTCOME PAYMENT,WWEG EP WEST YORKSHIRE INGEUS UK,INGEUS UK LTD,2033918938,"9,465"
DEPARTMENT FOR WORK AND PENSIONS ,Employment Programmes,13/11/2015,WP JSA 25+ SUSTAINMENT OUTCOME PAYMENT,WWEG EP SOUTH EAST SURR SUSSX AND KENT G4S,G4S REGIONAL MANAGEMENT UK & I LTD,2033937597,"9,460"
DEPARTMENT FOR WORK AND PENSIONS ,Employment Programmes,11/11/2015,COMMUNITY WORK PLACEMENTS - LONG COMPLETION FEE,WWEP EP FG CEP CWP CPA04 - LONDON (EAST),G4S REGIONAL MANAGEMENT UK & I LTD,2033931267,"9,430"
DEPARTMENT FOR WORK AND PENSIONS ,Employment Programmes,05/11/2015,COMMUNITY WORK PLACEMENTS - JOB OUTCOME FEE,WWEP EP FG CEP CWP CPA04 - LONDON (EAST),G4S REGIONAL MANAGEMENT UK & I LTD,2033924269,"9,430"
DEPARTMENT FOR WORK AND PENSIONS ,Employment Programmes,20/11/2015,COMMUNITY WORK PLACEMENTS - START FEE,WWEP EP FG CEP CWP CPA04 - LONDON (EAST),G4S REGIONAL MANAGEMENT UK & I LTD,2033948080,"9,430"
DEPARTMENT FOR WORK AND PENSIONS ,Employment Programmes,06/11/2015,WP ESA MANDATORY (IR) WRAG 12M PG6 FLOW SUSTAINMENT FEE,WWEG EP SCOTLAND INGEUS UK,INGEUS UK LTD,2033926706,"9,400"
DEPARTMENT FOR WORK AND PENSIONS ,Employment Programmes,20/11/2015,WP ESA (IR) WRAG 3/6 MTH MANDATORY SUSTAINMENT OUTCOME PAYMENT,WWEG EP NORTH WEST MERS HAL CUMB AND LANCS INGEUS UK,INGEUS UK LTD,2033948004,"9,400"
DEPARTMENT FOR WORK AND PENSIONS ,Corporate,03/11/2015,REMOTE STORAGE COSTS VAT RECOV,FG OPS FIN DM CONTRACTS,CAPITA BUSINESS SERVICES LTD,2033919792,"9,391"
DEPARTMENT FOR WORK AND PENSIONS ,Employment Programmes,05/11/2015,WP JSA 25+ JOB OUTCOME PAYMENTWP JSA 25+ JOB OUTCOME PAYMENT,WWEG EP SOUTH EAST SURR SUSSX AND KENT G4S,G4S REGIONAL MANAGEMENT UK & I LTD,2033924269,"9,354"
DEPARTMENT FOR WORK AND PENSIONS ,Employment Programmes,16/11/2015,WP JSA 18-24 JOB SUSTAINMENT OUTCOME PAYMENT,WWEG EP EAST LONDON CAREERS DEVELOPMENT GROUP,CAREERS DEVELOPMENT GROUP,2033938256,"9,350"
DEPARTMENT FOR WORK AND PENSIONS ,Employment Programmes,17/11/2015,COMMUNITY WORK PLACEMENTS - START FEE,WWEP EP FG CEP CWP CPA06 - NORTH WEST (1),G4S REGIONAL MANAGEMENT UK & I LTD,2033941041,"9,347"
DEPARTMENT FOR WORK AND PENSIONS ,Employment Programmes,02/11/2015,WP JSA 25+ JOB OUTCOME PAYMENTWP JSA 25+ JOB OUTCOME PAYMENT,WWEG EP W MIDLANDS COV WARW STAFFS AND MARCHES ESG,ESG HOLDINGS LIMITED,2033919345,"9,276"
DEPARTMENT FOR WORK AND PENSIONS ,Employment Programmes,05/11/2015,WP JSA 25+ SUSTAINMENT OUTCOME PAYMENT,WWEG EP WEST YORKSHIRE INGEUS UK,INGEUS UK LTD,2033923790,"9,245"
DEPARTMENT FOR WORK AND PENSIONS ,Corporate,26/11/2015,CONTRACTORS & STAFF SUBSTITUTIONS,CIO TECH PLATFORMS INTEGRATING TECH CORE,CAPITA BUSINESS SERVICES LTD,2033956009,"9,220"
DEPARTMENT FOR WORK AND PENSIONS ,Employment Programmes,13/11/2015,WP ESA (IR) WRAG 3/6 MTH MANDATORY SUSTAINMENT OUTCOME PAYMENT,WWEG EP EAST MIDLANDS INGEUS UK,INGEUS UK LTD,2033935412,"9,165"
DEPARTMENT FOR WORK AND PENSIONS ,Employment Programmes,20/11/2015,WP ESA (IR) WRAG 3/6 MTH MANDATORY SUSTAINMENT OUTCOME PAYMENT,WWEG EP SCOTLAND INGEUS UK,INGEUS UK LTD,2033948004,"9,165"
DEPARTMENT FOR WORK AND PENSIONS ,Corporate,03/11/2015,REMOTE STORAGE COSTS VAT RECOV,CIO IT KNOWLEDGE AND INFORMATION MANAGEMENT,CAPITA BUSINESS SERVICES LTD,2033919792,"9,112"
DEPARTMENT FOR WORK AND PENSIONS ,Employment Programmes,17/11/2015,WP JSA 25+ SUSTAINMENT OUTCOME PAYMENT,WWEG EP W MIDLANDS COV WARW STAFFS AND MARCHES ESG,ESG HOLDINGS LIMITED,2033941214,"9,030"
DEPARTMENT FOR WORK AND PENSIONS ,Employment Programmes,12/11/2015,WP JSA 25+ SUSTAINMENT OUTCOME PAYMENT,WWEG EP SOUTH EAST SURR SUSSX AND KENT G4S,G4S REGIONAL MANAGEMENT UK & I LTD,2033933330,"9,030"
DEPARTMENT FOR WORK AND PENSIONS ,Employment Programmes,03/11/2015,WP JSA 25+ SUSTAINMENT OUTCOME PAYMENT,WWEG EP WEST LONDON INGEUS UK,INGEUS UK LTD,2033919428,"9,030"
DEPARTMENT FOR WORK AND PENSIONS ,Employment Programmes,19/11/2015,WP JSA 25+ SUSTAINMENT OUTCOME PAYMENT,WWEG EP WEST YORKSHIRE INGEUS UK,INGEUS UK LTD,2033945576,"9,030"
DEPARTMENT FOR WORK AND PENSIONS ,Employment Programmes,19/11/2015,WP JSA 25+ SUSTAINMENT OUTCOME PAYMENT,WWEG EP WEST LONDON INGEUS UK,INGEUS UK LTD,2033945576,"9,030"
DEPARTMENT FOR WORK AND PENSIONS ,Employment Programmes,03/11/2015,COMMUNITY WORK PLACEMENTS - JOB OUTCOME FEE,WWEP EP FG CEP CWP CPA18 - YORKSHIRE & HUMBER (3),G4S REGIONAL MANAGEMENT UK & I LTD,2033919744,"9,000"
DEPARTMENT FOR WORK AND PENSIONS ,Employment Programmes,06/11/2015,COMMUNITY WORK PLACEMENTS - JOB OUTCOME FEE,WWEP EP FG CEP CWP CPA18 - YORKSHIRE & HUMBER (3),G4S REGIONAL MANAGEMENT UK & I LTD,2033926387,"9,000"
DEPARTMENT FOR WORK AND PENSIONS ,Employment Programmes,11/11/2015,COMMUNITY WORK PLACEMENTS - JOB OUTCOME FEE,WWEP EP FG CEP CWP CPA18 - YORKSHIRE & HUMBER (3),G4S REGIONAL MANAGEMENT UK & I LTD,2033931267,"9,000"
DEPARTMENT FOR WORK AND PENSIONS ,Employment Programmes,26/11/2015,COMMUNITY WORK PLACEMENTS - LONG COMPLETION FEE,WWEP EP FG CEP CWP CPA18 - YORKSHIRE & HUMBER (3),G4S REGIONAL MANAGEMENT UK & I LTD,2033955320,"9,000"
DEPARTMENT FOR WORK AND PENSIONS ,Corporate,04/11/2015,CONTRACTORS & STAFF SUBSTITUTIONS,CIO COO IT DIRECTOR,CAPITA BUSINESS SERVICES LTD,2033921245,"8,982"
DEPARTMENT FOR WORK AND PENSIONS ,Employment Programmes,03/11/2015,COMMUNITY WORK PLACEMENTS - LONG COMPLETION FEE,WWEP EP FG CEP CWP CPA02 - EAST MIDLANDS,G4S REGIONAL MANAGEMENT UK & I LTD,2033919744,"8,956"
DEPARTMENT FOR WORK AND PENSIONS ,Employment Programmes,06/11/2015,WP ESA MANDATORY (IR) WRAG 12M PG6 FLOW SUSTAINMENT FEE,WWEG EP EAST MIDLANDS INGEUS UK,INGEUS UK LTD,2033926706,"8,930"
DEPARTMENT FOR WORK AND PENSIONS ,Employment Programmes,20/11/2015,WP ESA MANDATORY (IR) WRAG 12M PG6 FLOW SUSTAINMENT FEE,WWEG EP EAST MIDLANDS INGEUS UK,INGEUS UK LTD,2033948004,"8,930"
DEPARTMENT FOR WORK AND PENSIONS ,Employment Programmes,04/11/2015,COMMUNITY WORK PLACEMENTS - START FEE,WWEP EP FG CEP CWP CPA09 - SOUTH EAST (1),G4S REGIONAL MANAGEMENT UK & I LTD,2033922860,"8,894"
DEPARTMENT FOR WORK AND PENSIONS ,Employment Programmes,02/11/2015,WP JSA 25+ JOB OUTCOME PAYMENTWP JSA 25+ JOB OUTCOME PAYMENT,WWEG EP SOUTH EAST SURR SUSSX AND KENT G4S,G4S REGIONAL MANAGEMENT UK & I LTD,2033918582,"8,838"
DEPARTMENT FOR WORK AND PENSIONS ,Employment Programmes,05/11/2015,WP JSA 25+ JOB OUTCOME PAYMENTWP JSA 25+ JOB OUTCOME PAYMENT,WWEG EP W MIDLANDS COV WARW STAFFS AND MARCHES ESG,ESG HOLDINGS LIMITED,2033924710,"8,820"
DEPARTMENT FOR WORK AND PENSIONS ,Employment Programmes,23/11/2015,WP JSA 25+ SUSTAINMENT OUTCOME PAYMENT,WWEG EP W MIDLANDS COV WARW STAFFS AND MARCHES ESG,ESG HOLDINGS LIMITED,2033949051,"8,815"
DEPARTMENT FOR WORK AND PENSIONS ,Employment Programmes,04/11/2015,WP JSA 25+ SUSTAINMENT OUTCOME PAYMENT,WWEG EP NORTH WEST MERS HAL CUMB AND LANCS INGEUS UK,INGEUS UK LTD,2033922492,"8,815"
DEPARTMENT FOR WORK AND PENSIONS ,Employment Programmes,05/11/2015,WP JSA 25+ SUSTAINMENT OUTCOME PAYMENT,WWEG EP WEST LONDON INGEUS UK,INGEUS UK LTD,2033923790,"8,815"
DEPARTMENT FOR WORK AND PENSIONS ,Employment Programmes,11/11/2015,WP JSA 25+ SUSTAINMENT OUTCOME PAYMENT,WWEG EP WEST YORKSHIRE INGEUS UK,INGEUS UK LTD,2033931853,"8,815"
DEPARTMENT FOR WORK AND PENSIONS ,Employment Programmes,12/11/2015,WP JSA 25+ SUSTAINMENT OUTCOME PAYMENT,WWEG EP NORTH EAST INGEUS UK,INGEUS UK LTD,2033933067,"8,815"
DEPARTMENT FOR WORK AND PENSIONS ,Employment Programmes,02/11/2015,WP JSA 25+ SUSTAINMENT OUTCOME PAYMENT,WWEG EP WEST YORKSHIRE BEST LTD,INTERSERVE WORKING FUTURES,2033919185,"8,815"
DEPARTMENT FOR WORK AND PENSIONS ,Corporate,16/11/2015,TREDDS APPS DEV MANDAYS,CHG STATE PENSION REFORM SINGLE TIER,HP ENTERPRISE SERVICES UK LTD,2033938951,"8,808"
DEPARTMENT FOR WORK AND PENSIONS ,Employment Programmes,03/11/2015,WP JSA 25+ JOB OUTCOME PAYMENTWP JSA 25+ JOB OUTCOME PAYMENT,WWEG EP EAST LONDON CAREERS DEVELOPMENT GROUP,CAREERS DEVELOPMENT GROUP,2033919711,"8,790"
DEPARTMENT FOR WORK AND PENSIONS ,Corporate,26/11/2015,CONTRACTORS & STAFF SUBSTITUTIONS,CHG PIP PROG MANAGEMENT,CAPITA BUSINESS SERVICES LTD,2033956009,"8,789"
DEPARTMENT FOR WORK AND PENSIONS ,Corporate,04/11/2015,STAFF TRAINING VAT RECOVERABLE,F&C CD SOURCING,CAPITA CIVIL SERVICE LEARNING,2033922514,"8,781"
DEPARTMENT FOR WORK AND PENSIONS ,Employment Programmes,13/11/2015,WP JSA EARLY ACCESS SUSTAINMENT OUTCOME PAYMENT,WWEG EP SCOTLAND INGEUS UK,INGEUS UK LTD,2033935412,"8,750"
DEPARTMENT FOR WORK AND PENSIONS ,Employment Programmes,26/11/2015,COMMUNITY WORK PLACEMENTS - LONG COMPLETION FEE,WWEP EP FG CEP CWP CPA09 - SOUTH EAST (1),G4S REGIONAL MANAGEMENT UK & I LTD,2033955320,"8,701"
DEPARTMENT FOR WORK AND PENSIONS ,Employment Programmes,13/11/2015,COMMUNITY WORK PLACEMENTS - JOB OUTCOME FEE,WWEP EP FG CEP CWP CPA09 - SOUTH EAST (1),G4S REGIONAL MANAGEMENT UK & I LTD,2033937597,"8,701"
DEPARTMENT FOR WORK AND PENSIONS ,Employment Programmes,27/11/2015,COMMUNITY WORK PLACEMENTS - JOB OUTCOME FEE,WWEP EP FG CEP CWP CPA09 - SOUTH EAST (1),G4S REGIONAL MANAGEMENT UK & I LTD,2033958842,"8,701"
DEPARTMENT FOR WORK AND PENSIONS ,Employment Programmes,06/11/2015,WP ESA (IR) WRAG 3/6 MTH MANDATORY SUSTAINMENT OUTCOME PAYMENT,WWEG EP EAST MIDLANDS INGEUS UK,INGEUS UK LTD,2033926706,"8,695"
DEPARTMENT FOR WORK AND PENSIONS ,Employment Programmes,20/11/2015,WP ESA MANDATORY (IR) WRAG 12M PG6 FLOW SUSTAINMENT FEE,WWEG EP SCOTLAND INGEUS UK,INGEUS UK LTD,2033948004,"8,695"
DEPARTMENT FOR WORK AND PENSIONS ,Corporate,04/11/2015,CONTRACTORS & STAFF SUBSTITUTIONS,CIO ADC DIRECTOR,CAPITA BUSINESS SERVICES LTD,2033921245,"8,616"
DEPARTMENT FOR WORK AND PENSIONS ,Corporate,10/11/2015,CONTRACTORS & STAFF SUBSTITUTIONS,CIO ADC DIRECTOR,CAPITA BUSINESS SERVICES LTD,2033929315,"8,616"
DEPARTMENT FOR WORK AND PENSIONS ,Employment Programmes,05/11/2015,WP JSA 25+ SUSTAINMENT OUTCOME PAYMENT,WWEG EP NORTH EAST INGEUS UK,INGEUS UK LTD,2033923790,"8,600"
DEPARTMENT FOR WORK AND PENSIONS ,Employment Programmes,05/11/2015,WP JSA 25+ SUSTAINMENT OUTCOME PAYMENT,WWEG EP EAST MIDLANDS INGEUS UK,INGEUS UK LTD,2033923790,"8,600"
DEPARTMENT FOR WORK AND PENSIONS ,Employment Programmes,25/11/2015,WP JSA 25+ SUSTAINMENT OUTCOME PAYMENT,WWEG EP WEST LONDON INGEUS UK,INGEUS UK LTD,2033954471,"8,600"
DEPARTMENT FOR WORK AND PENSIONS ,Employment Programmes,02/11/2015,WP JSA 18-24 JOB SUSTAINMENT OUTCOME PAYMENT,WWEG EP NORTH WEST GM CHES AND WARR G4S,G4S REGIONAL MANAGEMENT UK & I LTD,2033918582,"8,500"
DEPARTMENT FOR WORK AND PENSIONS ,Corporate,17/11/2015,NON-TREDDS IS IT APPS DEV MANDAY,CIO TECH PLATFORM BUS DIRECTOR & SUPPORT CORE,IBM UNITED KINGDOM LTD,2033940553,"8,496"
DEPARTMENT FOR WORK AND PENSIONS ,Employment Programmes,12/11/2015,COMMUNITY WORK PLACEMENTS - START FEE,WWEP EP FG CEP CWP CPA04 - LONDON (EAST),G4S REGIONAL MANAGEMENT UK & I LTD,2033933330,"8,487"
DEPARTMENT FOR WORK AND PENSIONS ,Employment Programmes,27/11/2015,WP ESA MANDATORY (IR) WRAG 12M PG6 FLOW SUSTAINMENT FEE,WWEG EP EAST MIDLANDS INGEUS UK,INGEUS UK LTD,2033956864,"8,460"
DEPARTMENT FOR WORK AND PENSIONS ,Employment Programmes,24/11/2015,COMMUNITY WORK PLACEMENTS - LONG COMPLETION FEE,WWEP EP FG CEP CWP CPA06 - NORTH WEST (1),G4S REGIONAL MANAGEMENT UK & I LTD,2033951319,"8,412"
DEPARTMENT FOR WORK AND PENSIONS ,Employment Programmes,27/11/2015,COMMUNITY WORK PLACEMENTS - LONG COMPLETION FEE,WWEP EP FG CEP CWP CPA06 - NORTH WEST (1),G4S REGIONAL MANAGEMENT UK & I LTD,2033958842,"8,412"
DEPARTMENT FOR WORK AND PENSIONS ,Employment Programmes,12/11/2015,COMMUNITY WORK PLACEMENTS - JOB OUTCOME FEE,WWEP EP FG CEP CWP CPA06 - NORTH WEST (1),G4S REGIONAL MANAGEMENT UK & I LTD,2033933330,"8,412"
DEPARTMENT FOR WORK AND PENSIONS ,Employment Programmes,18/11/2015,COMMUNITY WORK PLACEMENTS - JOB OUTCOME FEE,WWEP EP FG CEP CWP CPA06 - NORTH WEST (1),G4S REGIONAL MANAGEMENT UK & I LTD,2033943917,"8,412"
DEPARTMENT FOR WORK AND PENSIONS ,Employment Programmes,26/11/2015,COMMUNITY WORK PLACEMENTS - JOB OUTCOME FEE,WWEP EP FG CEP CWP CPA06 - NORTH WEST (1),G4S REGIONAL MANAGEMENT UK & I LTD,2033955320,"8,412"
DEPARTMENT FOR WORK AND PENSIONS ,Corporate,17/11/2015,NON-TREDDS IS IT APPS DEV MANDAY,CIO CIS CORE,IBM UNITED KINGDOM LTD,2033940553,"8,407"
DEPARTMENT FOR WORK AND PENSIONS ,Employment Programmes,02/11/2015,WP JSA 25+ JOB OUTCOME PAYMENTWP JSA 25+ JOB OUTCOME PAYMENT,WWEG EP EAST LONDON CAREERS DEVELOPMENT GROUP,CAREERS DEVELOPMENT GROUP,2033919221,"8,400"
DEPARTMENT FOR WORK AND PENSIONS ,Employment Programmes,19/11/2015,WP JSA 25+ SUSTAINMENT OUTCOME PAYMENT,WWEG EP WEST YORKSHIRE BEST LTD,INTERSERVE WORKING FUTURES,2033945494,"8,385"
DEPARTMENT FOR WORK AND PENSIONS ,Corporate,26/11/2015,CONTRACTORS & STAFF SUBSTITUTIONS,OPS OPE C&I BUSINESS GENERATED CHANGE - IT,CAPITA BUSINESS SERVICES LTD,2033956009,"8,334"
DEPARTMENT FOR WORK AND PENSIONS ,Corporate,04/11/2015,CONTRACTORS & STAFF SUBSTITUTIONS,CHG PIP PROG MANAGEMENT,CAPITA BUSINESS SERVICES LTD,2033921245,"8,327"
DEPARTMENT FOR WORK AND PENSIONS ,Employment Programmes,04/11/2015,COMMUNITY WORK PLACEMENTS - START FEE,WWEP EP FG CEP CWP CPA16 - YORKSHIRE & HUMBER (1),INTERSERVE WORKING FUTURES,2033921469,"8,310"
DEPARTMENT FOR WORK AND PENSIONS ,Employment Programmes,02/11/2015,ACCESS TO WORK - PAYMENT FOR SUPPORT WORKERS,WWEG EP WALES COUNTRY,ELMFIELD SCHOOL FOR DEAF CHILDREN,2033918586,"8,288"
DEPARTMENT FOR WORK AND PENSIONS ,Employment Programmes,20/11/2015,SERVICE FEE,WWEG EP CORE MWA CPA EAST MIDLANDS,INGEUS UK LTD,2033948004,"8,280"
DEPARTMENT FOR WORK AND PENSIONS ,Employment Programmes,27/11/2015,SERVICE FEE,WWEG EP CORE MWA CPA EAST MIDLANDS,INGEUS UK LTD,2033956864,"8,280"
DEPARTMENT FOR WORK AND PENSIONS ,Employment Programmes,27/11/2015,WP ESA (IR) WRAG 3/6 MTH MANDATORY SUSTAINMENT OUTCOME PAYMENT,WWEG EP EAST MIDLANDS INGEUS UK,INGEUS UK LTD,2033956864,"8,225"
DEPARTMENT FOR WORK AND PENSIONS ,Corporate,13/11/2015,TREDDS APPS DEV MANDAYS,CHG CLASS 3A VOLUNTARY NATIONAL INSURANCE CONTS,HP ENTERPRISE SERVICES UK LTD,2033934461,"8,182"
DEPARTMENT FOR WORK AND PENSIONS ,Employment Programmes,12/11/2015,WP JSA 25+ SUSTAINMENT OUTCOME PAYMENT,WWEG EP EAST LONDON CAREERS DEVELOPMENT GROUP,CAREERS DEVELOPMENT GROUP,2033933136,"8,170"
DEPARTMENT FOR WORK AND PENSIONS ,Employment Programmes,19/11/2015,WP JSA 25+ SUSTAINMENT OUTCOME PAYMENT,WWEG EP SOUTH EAST SURR SUSSX AND KENT G4S,G4S REGIONAL MANAGEMENT UK & I LTD,2033946260,"8,170"
DEPARTMENT FOR WORK AND PENSIONS ,Employment Programmes,05/11/2015,WP JSA 25+ SUSTAINMENT OUTCOME PAYMENT,WWEG EP SCOTLAND INGEUS UK,INGEUS UK LTD,2033923790,"8,170"
DEPARTMENT FOR WORK AND PENSIONS ,Employment Programmes,18/11/2015,WP JSA 18-24 JOB SUSTAINMENT OUTCOME PAYMENT,WWEG EP EAST LONDON CAREERS DEVELOPMENT GROUP,CAREERS DEVELOPMENT GROUP,2033943187,"8,160"
DEPARTMENT FOR WORK AND PENSIONS ,Corporate,04/11/2015,CONTRACTORS & STAFF SUBSTITUTIONS,CIO TECH PLATFORM IMP CIS R,CAPITA BUSINESS SERVICES LTD,2033921245,"8,124"
DEPARTMENT FOR WORK AND PENSIONS ,Corporate,04/11/2015,COST VARIANCE ACCOUNT,OPS OPE C&I NATIONAL 3,CAPITA CIVIL SERVICE LEARNING,2033922514,"8,117"
DEPARTMENT FOR WORK AND PENSIONS ,Corporate,23/11/2015,TREDDS IS IT CONSULTANCY NON ADVICE,CIO TECH PLATFORM IMP CIS R,HP ENTERPRISE SERVICES UK LTD,2033948600,"8,069"
DEPARTMENT FOR WORK AND PENSIONS ,Employment Programmes,11/11/2015,COMMUNITY WORK PLACEMENTS - SHORT COMPLETION FEE,WWEP EP FG CEP CWP CPA02 - EAST MIDLANDS,G4S REGIONAL MANAGEMENT UK & I LTD,2033931267,"8,060"
DEPARTMENT FOR WORK AND PENSIONS ,Employment Programmes,10/11/2015,COMMUNITY WORK PLACEMENTS - JOB OUTCOME FEE,WWEP EP FG CEP CWP CPA02 - EAST MIDLANDS,G4S REGIONAL MANAGEMENT UK & I LTD,2033929165,"8,060"
DEPARTMENT FOR WORK AND PENSIONS ,Employment Programmes,24/11/2015,COMMUNITY WORK PLACEMENTS - JOB OUTCOME FEE,WWEP EP FG CEP CWP CPA02 - EAST MIDLANDS,G4S REGIONAL MANAGEMENT UK & I LTD,2033951319,"8,060"
DEPARTMENT FOR WORK AND PENSIONS ,Employment Programmes,16/11/2015,WP JSA 25+ JOB OUTCOME PAYMENTWP JSA 25+ JOB OUTCOME PAYMENT,WWEG EP EAST LONDON CAREERS DEVELOPMENT GROUP,CAREERS DEVELOPMENT GROUP,2033938256,"8,058"
DEPARTMENT FOR WORK AND PENSIONS ,Corporate,10/11/2015,TREDDS APPS DEV MANDAYS,OPS OPE C&I IT WINTER FUEL,HP ENTERPRISE SERVICES UK LTD,2033929958,"8,056"
DEPARTMENT FOR WORK AND PENSIONS ,Corporate,30/11/2015,STAFF TRAINING VAT RECOVERABLE,CIO IT CYBER SECURITY,CAPITA CIVIL SERVICE LEARNING,2033961082,"8,032"
DEPARTMENT FOR WORK AND PENSIONS ,Corporate,26/11/2015,CONTRACTORS & STAFF SUBSTITUTIONS,CHG BTG DELIVER DELIVERY METHODS,CAPITA BUSINESS SERVICES LTD,2033956009,"7,992"
DEPARTMENT FOR WORK AND PENSIONS ,Employment Programmes,13/11/2015,WP JSA 18-24 JOB SUSTAINMENT OUTCOME PAYMENT,WWEG EP EAST OF ENGLAND INGEUS UK,INGEUS UK LTD,2033935412,"7,990"
DEPARTMENT FOR WORK AND PENSIONS ,Employment Programmes,27/11/2015,WP ESA MANDATORY (IR) WRAG 12M PG6 FLOW SUSTAINMENT FEE,WWEG EP NORTH WEST MERS HAL CUMB AND LANCS INGEUS UK,INGEUS UK LTD,2033956864,"7,990"
DEPARTMENT FOR WORK AND PENSIONS ,Employment Programmes,13/11/2015,WP JSA 18-24 JOB SUSTAINMENT OUTCOME PAYMENT,WWEG EP WEST YORKSHIRE BEST LTD,INTERSERVE WORKING FUTURES,2033935095,"7,990"
DEPARTMENT FOR WORK AND PENSIONS ,Corporate,10/11/2015,CONNECTIVITY,CIO COO IT DIRECTOR,BT GLOBAL SERVICES,2033930004,"7,980"
DEPARTMENT FOR WORK AND PENSIONS ,Employment Programmes,12/11/2015,WP JSA 25+ SUSTAINMENT OUTCOME PAYMENT,WWEG EP EAST OF ENGLAND INGEUS UK,INGEUS UK LTD,2033933067,"7,955"
DEPARTMENT FOR WORK AND PENSIONS ,Employment Programmes,10/11/2015,WP JSA 25+ SUSTAINMENT OUTCOME PAYMENT,WWEG EP WEST YORKSHIRE BEST LTD,INTERSERVE WORKING FUTURES,2033929641,"7,955"
DEPARTMENT FOR WORK AND PENSIONS ,Employment Programmes,18/11/2015,WP JSA 25+ SUSTAINMENT OUTCOME PAYMENT,WWEG EP WEST YORKSHIRE BEST LTD,INTERSERVE WORKING FUTURES,2033943480,"7,955"
DEPARTMENT FOR WORK AND PENSIONS ,Corporate,10/11/2015,CONTRACTORS & STAFF SUBSTITUTIONS,CIO TECHNOLOGY COO CONTRACT BULK PRINT,CAPITA BUSINESS SERVICES LTD,2033929315,"7,849"
DEPARTMENT FOR WORK AND PENSIONS ,Employment Programmes,30/11/2015,WP JSA 18-24 JOB SUSTAINMENT OUTCOME PAYMENT,WWEG EP NORTH WEST GM CHES AND WARR G4S,G4S REGIONAL MANAGEMENT UK & I LTD,2033959538,"7,820"
DEPARTMENT FOR WORK AND PENSIONS ,Employment Programmes,23/11/2015,WP JSA 18-24 JOB SUSTAINMENT OUTCOME PAYMENT,WWEG EP SCOTLAND INGEUS UK,INGEUS UK LTD,2033948650,"7,820"
DEPARTMENT FOR WORK AND PENSIONS ,Corporate,09/11/2015,PUBLICITY PRODUCTION COST,CHG STATE PENSION REFORM SINGLE TIER,CARAT,2033928664,"7,782"
DEPARTMENT FOR WORK AND PENSIONS ,Employment Programmes,09/11/2015,SERVICE FEE,WWEG EP CORE MWA CPA EAST MIDLANDS,INGEUS UK LTD,2033927516,"7,763"
DEPARTMENT FOR WORK AND PENSIONS ,Employment Programmes,06/11/2015,WP ESA (IR) WRAG 3/6 MTH MANDATORY SUSTAINMENT OUTCOME PAYMENT,WWEG EP NORTH WEST MERS HAL CUMB AND LANCS INGEUS UK,INGEUS UK LTD,2033926706,"7,755"
DEPARTMENT FOR WORK AND PENSIONS ,Employment Programmes,20/11/2015,WP ESA MANDATORY (IR) WRAG 12M PG6 FLOW SUSTAINMENT FEE,WWEG EP NORTH WEST MERS HAL CUMB AND LANCS INGEUS UK,INGEUS UK LTD,2033948004,"7,755"
DEPARTMENT FOR WORK AND PENSIONS ,Employment Programmes,27/11/2015,WP ESA MANDATORY (IR) WRAG 12M PG6 FLOW SUSTAINMENT FEE,WWEG EP SCOTLAND INGEUS UK,INGEUS UK LTD,2033956864,"7,755"
DEPARTMENT FOR WORK AND PENSIONS ,Employment Programmes,06/11/2015,WP JSA EARLY ACCESS SUSTAINMENT OUTCOME PAYMENT,WWEG EP SCOTLAND INGEUS UK,INGEUS UK LTD,2033926706,"7,750"
DEPARTMENT FOR WORK AND PENSIONS ,Employment Programmes,06/11/2015,WP JSA EARLY ACCESS SUSTAINMENT OUTCOME PAYMENT,WWEG EP EAST OF ENGLAND INGEUS UK,INGEUS UK LTD,2033926706,"7,750"
DEPARTMENT FOR WORK AND PENSIONS ,Employment Programmes,20/11/2015,WP JSA NEET SUSTAINMENT OUTCOME PAYMENT,WWEG EP WEST YORKSHIRE INGEUS UK,INGEUS UK LTD,2033948004,"7,750"
DEPARTMENT FOR WORK AND PENSIONS ,Employment Programmes,27/11/2015,WP JSA EARLY ACCESS SUSTAINMENT OUTCOME PAYMENT,WWEG EP EAST MIDLANDS INGEUS UK,INGEUS UK LTD,2033956864,"7,750"
DEPARTMENT FOR WORK AND PENSIONS ,Corporate,04/11/2015,CONTRACTORS & STAFF SUBSTITUTIONS,CHG BTG ENGAGE,CAPITA BUSINESS SERVICES LTD,2033921245,"7,737"
DEPARTMENT FOR WORK AND PENSIONS ,Employment Programmes,27/11/2015,WP JSA 18-24 JOB SUSTAINMENT OUTCOME PAYMENT,WWEG EP NORTH WEST GM CHES AND WARR G4S,G4S REGIONAL MANAGEMENT UK & I LTD,2033958842,"7,650"
DEPARTMENT FOR WORK AND PENSIONS ,Corporate,19/11/2015,CONTRACTORS & STAFF SUBSTITUTIONS,CIO TECH PLATFORM BUS SUPPORT SYS CORE,CAPITA BUSINESS SERVICES LTD,2033944240,"7,645"
DEPARTMENT FOR WORK AND PENSIONS ,Employment Programmes,19/11/2015,COMMUNITY WORK PLACEMENTS - SHORT COMPLETION FEE,WWEP EP FG CEP CWP CPA02 - EAST MIDLANDS,G4S REGIONAL MANAGEMENT UK & I LTD,2033946260,"7,613"
DEPARTMENT FOR WORK AND PENSIONS ,Employment Programmes,04/11/2015,COMMUNITY WORK PLACEMENTS - JOB OUTCOME FEE,WWEP EP FG CEP CWP CPA17 - YORKSHIRE & HUMBER (2),INTERSERVE WORKING FUTURES,2033921469,"7,596"
DEPARTMENT FOR WORK AND PENSIONS ,Corporate,17/11/2015,NETWORK SERVICES,CIO CTO SECURITY,BT GLOBAL SERVICES,2033941370,"7,572"
DEPARTMENT FOR WORK AND PENSIONS ,Employment Programmes,25/11/2015,WP JSA 25+ SUSTAINMENT OUTCOME PAYMENT,WWEG EP W MIDLANDS COV WARW STAFFS AND MARCHES ESG,ESG HOLDINGS LIMITED,2033952880,"7,525"
DEPARTMENT FOR WORK AND PENSIONS ,Employment Programmes,06/11/2015,WP JSA 25+ SUSTAINMENT OUTCOME PAYMENT,WWEG EP NORTH EAST Y AND H G4S,G4S REGIONAL MANAGEMENT UK & I LTD,2033926387,"7,525"
DEPARTMENT FOR WORK AND PENSIONS ,Employment Programmes,20/11/2015,WP JSA 25+ SUSTAINMENT OUTCOME PAYMENT,WWEG EP NORTH EAST Y AND H G4S,G4S REGIONAL MANAGEMENT UK & I LTD,2033948080,"7,525"
DEPARTMENT FOR WORK AND PENSIONS ,Employment Programmes,24/11/2015,WP JSA 25+ SUSTAINMENT OUTCOME PAYMENT,WWEG EP SOUTH EAST SURR SUSSX AND KENT G4S,G4S REGIONAL MANAGEMENT UK & I LTD,2033951319,"7,525"
DEPARTMENT FOR WORK AND PENSIONS ,Employment Programmes,27/11/2015,WP ESA (IR) WRAG 3/6 MTH MANDATORY SUSTAINMENT OUTCOME PAYMENT,WWEG EP NORTH WEST MERS HAL CUMB AND LANCS INGEUS UK,INGEUS UK LTD,2033956864,"7,520"
DEPARTMENT FOR WORK AND PENSIONS ,Employment Programmes,13/11/2015,WP JSA NEET SUSTAINMENT OUTCOME PAYMENT,WWEG EP EAST MIDLANDS INGEUS UK,INGEUS UK LTD,2033935412,"7,500"
DEPARTMENT FOR WORK AND PENSIONS ,Employment Programmes,17/11/2015,WP JSA 18-24 JOB SUSTAINMENT OUTCOME PAYMENT,WWEG EP NORTH EAST INGEUS UK,INGEUS UK LTD,2033940111,"7,480"
DEPARTMENT FOR WORK AND PENSIONS ,Employment Programmes,18/11/2015,WP JSA 18-24 JOB SUSTAINMENT OUTCOME PAYMENT,WWEG EP NORTH WEST MERS HAL CUMB AND LANCS INGEUS UK,INGEUS UK LTD,2033943009,"7,480"
DEPARTMENT FOR WORK AND PENSIONS ,Employment Programmes,24/11/2015,WP JSA 18-24 JOB SUSTAINMENT OUTCOME PAYMENT,WWEG EP NORTH EAST INGEUS UK,INGEUS UK LTD,2033952315,"7,480"
DEPARTMENT FOR WORK AND PENSIONS ,Employment Programmes,06/11/2015,COMMUNITY WORK PLACEMENTS - START FEE,WWEP EP FG CEP CWP CPA06 - NORTH WEST (1),G4S REGIONAL MANAGEMENT UK & I LTD,2033926387,"7,478"
DEPARTMENT FOR WORK AND PENSIONS ,Employment Programmes,09/11/2015,COMMUNITY WORK PLACEMENTS - SHORT COMPLETION FEE,WWEP EP FG CEP CWP CPA06 - NORTH WEST (1),G4S REGIONAL MANAGEMENT UK & I LTD,2033928166,"7,478"
DEPARTMENT FOR WORK AND PENSIONS ,Employment Programmes,03/11/2015,COMMUNITY WORK PLACEMENTS - SHORT COMPLETION FEE,WWEP EP FG CEP CWP CPA04 - LONDON (EAST),G4S REGIONAL MANAGEMENT UK & I LTD,2033919744,"7,465"
DEPARTMENT FOR WORK AND PENSIONS ,Employment Programmes,30/11/2015,COMMUNITY WORK PLACEMENTS - LONG COMPLETION FEE,WWEP EP FG CEP CWP CPA16 - YORKSHIRE & HUMBER (1),INTERSERVE WORKING FUTURES,2033959444,"7,457"
DEPARTMENT FOR WORK AND PENSIONS ,Corporate,26/11/2015,CONTRACTORS & STAFF SUBSTITUTIONS,CIO PROD OPS & ASSURANCE CORE,CAPITA BUSINESS SERVICES LTD,2033956009,"7,452"
DEPARTMENT FOR WORK AND PENSIONS ,Employment Programmes,05/11/2015,WP JSA 25+ JOB OUTCOME PAYMENTWP JSA 25+ JOB OUTCOME PAYMENT,WWEG EP WEST YORKSHIRE BEST LTD,INTERSERVE WORKING FUTURES,2033924109,"7,452"
DEPARTMENT FOR WORK AND PENSIONS ,Employment Programmes,25/11/2015,WP JSA 18-24 JOB OUTCOME PAYMENT,WWEG EP EAST LONDON CAREERS DEVELOPMENT GROUP,CAREERS DEVELOPMENT GROUP,2033953371,"7,446"
DEPARTMENT FOR WORK AND PENSIONS ,Corporate,10/11/2015,CONTRACTORS & STAFF SUBSTITUTIONS,CIO ENTERPRISE INFRASTRUCTURE CONTRACT GENERAL,CAPITA BUSINESS SERVICES LTD,2033929315,"7,414"
DEPARTMENT FOR WORK AND PENSIONS ,Employment Programmes,17/11/2015,SERVICE FEE,WWEG EP CORE MWA CPA YORKSHIRE AND HUMBER,INTERSERVE WORKING FUTURES,2033940887,"7,391"
DEPARTMENT FOR WORK AND PENSIONS ,Employment Programmes,11/11/2015,WP JSA 25+ SUSTAINMENT OUTCOME PAYMENT,WWEG EP SOUTH EAST SURR SUSSX AND KENT G4S,G4S REGIONAL MANAGEMENT UK & I LTD,2033931267,"7,310"
DEPARTMENT FOR WORK AND PENSIONS ,Employment Programmes,20/11/2015,WP JSA 18-24 JOB SUSTAINMENT OUTCOME PAYMENT,WWEG EP NORTH WEST GM CHES AND WARR G4S,G4S REGIONAL MANAGEMENT UK & I LTD,2033948080,"7,310"
DEPARTMENT FOR WORK AND PENSIONS ,Employment Programmes,25/11/2015,WP JSA 18-24 JOB SUSTAINMENT OUTCOME PAYMENT,WWEG EP NORTH WEST GM CHES AND WARR G4S,G4S REGIONAL MANAGEMENT UK & I LTD,2033952633,"7,310"
DEPARTMENT FOR WORK AND PENSIONS ,Employment Programmes,02/11/2015,WP ESA (IR) WRAG 3/6 MTH MANDATORY SUSTAINMENT OUTCOME PAYMENT,WWEG EP W MIDLANDS COV WARW STAFFS AND MARCHES ESG,ESG HOLDINGS LIMITED,2033919345,"7,285"
DEPARTMENT FOR WORK AND PENSIONS ,Employment Programmes,20/11/2015,WP ESA (IR) WRAG 3/6 MTH MANDATORY SUSTAINMENT OUTCOME PAYMENT,WWEG EP W MIDLANDS COV WARW STAFFS AND MARCHES ESG,ESG HOLDINGS LIMITED,2033946829,"7,285"
DEPARTMENT FOR WORK AND PENSIONS ,Employment Programmes,13/11/2015,WP ESA MANDATORY (IR) WRAG 12M PG6 FLOW SUSTAINMENT FEE,WWEG EP NORTH WEST MERS HAL CUMB AND LANCS INGEUS UK,INGEUS UK LTD,2033935412,"7,285"
DEPARTMENT FOR WORK AND PENSIONS ,Corporate,04/11/2015,CONTRACTORS & STAFF SUBSTITUTIONS,CIO EUC DEVICE SERVICES CORE,CAPITA BUSINESS SERVICES LTD,2033921245,"7,260"
DEPARTMENT FOR WORK AND PENSIONS ,Employment Programmes,20/11/2015,WP JSA EARLY ACCESS SUSTAINMENT OUTCOME PAYMENT,WWEG EP SCOTLAND INGEUS UK,INGEUS UK LTD,2033948004,"7,250"
DEPARTMENT FOR WORK AND PENSIONS ,Employment Programmes,20/11/2015,WP JSA 25+ JOB OUTCOME PAYMENTWP JSA 25+ JOB OUTCOME PAYMENT,WWEG EP NORTH WEST GM CHES AND WARR G4S,G4S REGIONAL MANAGEMENT UK & I LTD,2033948080,"7,242"
DEPARTMENT FOR WORK AND PENSIONS ,Corporate,10/11/2015,CONTRACTORS & STAFF SUBSTITUTIONS,CIO PROD OPS & ASSURANCE CORE,CAPITA BUSINESS SERVICES LTD,2033929315,"7,208"
DEPARTMENT FOR WORK AND PENSIONS ,Employment Programmes,04/11/2015,COMMUNITY WORK PLACEMENTS - JOB OUTCOME FEE,WWEP EP FG CEP CWP CPA16 - YORKSHIRE & HUMBER (1),INTERSERVE WORKING FUTURES,2033921469,"7,191"
DEPARTMENT FOR WORK AND PENSIONS ,Employment Programmes,17/11/2015,WP JSA 18-24 JOB SUSTAINMENT OUTCOME PAYMENT,WWEG EP SCOTLAND INGEUS UK,INGEUS UK LTD,2033940111,"7,140"
DEPARTMENT FOR WORK AND PENSIONS ,Employment Programmes,23/11/2015,WP JSA 18-24 JOB SUSTAINMENT OUTCOME PAYMENT,WWEG EP NORTH EAST INGEUS UK,INGEUS UK LTD,2033948650,"7,140"
DEPARTMENT FOR WORK AND PENSIONS ,Employment Programmes,12/11/2015,SUSTAINMENT FEE,WWEG EP WORK CHOICE S LON LAMBETH SOUTHWARK WANDSWORTH,INGEUS UK LTD,2033933067,"7,122"
DEPARTMENT FOR WORK AND PENSIONS ,Employment Programmes,17/11/2015,SUSTAINMENT FEE,WWEG EP WORK CHOICE S LON LAMBETH SOUTHWARK WANDSWORTH,INGEUS UK LTD,2033940111,"7,122"
DEPARTMENT FOR WORK AND PENSIONS ,Employment Programmes,30/11/2015,SUSTAINMENT FEE,WWEG EP WORK CHOICE S LON LAMBETH SOUTHWARK WANDSWORTH,INGEUS UK LTD,2033960714,"7,122"
DEPARTMENT FOR WORK AND PENSIONS ,Employment Programmes,23/11/2015,WP JSA 25+ SUSTAINMENT OUTCOME PAYMENT,WWEG EP NORTH EAST Y AND H G4S,G4S REGIONAL MANAGEMENT UK & I LTD,2033949009,"7,095"
DEPARTMENT FOR WORK AND PENSIONS ,Employment Programmes,27/11/2015,WP JSA 25+ SUSTAINMENT OUTCOME PAYMENT,WWEG EP NORTH EAST Y AND H G4S,G4S REGIONAL MANAGEMENT UK & I LTD,2033958842,"7,095"
DEPARTMENT FOR WORK AND PENSIONS ,Employment Programmes,11/11/2015,COMMUNITY WORK PLACEMENTS - START FEE,WWEP EP FG CEP CWP CPA17 - YORKSHIRE & HUMBER (2),INTERSERVE WORKING FUTURES,2033931583,"7,090"
DEPARTMENT FOR WORK AND PENSIONS ,Employment Programmes,17/11/2015,COMMUNITY WORK PLACEMENTS - START FEE,WWEP EP FG CEP CWP CPA17 - YORKSHIRE & HUMBER (2),INTERSERVE WORKING FUTURES,2033940887,"7,090"
DEPARTMENT FOR WORK AND PENSIONS ,Employment Programmes,17/11/2015,COMMUNITY WORK PLACEMENTS - LONG COMPLETION FEE,WWEP EP FG CEP CWP CPA04 - LONDON (EAST),G4S REGIONAL MANAGEMENT UK & I LTD,2033941041,"7,072"
DEPARTMENT FOR WORK AND PENSIONS ,Employment Programmes,23/11/2015,COMMUNITY WORK PLACEMENTS - LONG COMPLETION FEE,WWEP EP FG CEP CWP CPA04 - LONDON (EAST),G4S REGIONAL MANAGEMENT UK & I LTD,2033949009,"7,072"
DEPARTMENT FOR WORK AND PENSIONS ,Employment Programmes,03/11/2015,COMMUNITY WORK PLACEMENTS - JOB OUTCOME FEE,WWEP EP FG CEP CWP CPA04 - LONDON (EAST),G4S REGIONAL MANAGEMENT UK & I LTD,2033919744,"7,072"
DEPARTMENT FOR WORK AND PENSIONS ,Employment Programmes,12/11/2015,COMMUNITY WORK PLACEMENTS - JOB OUTCOME FEE,WWEP EP FG CEP CWP CPA04 - LONDON (EAST),G4S REGIONAL MANAGEMENT UK & I LTD,2033933330,"7,072"
DEPARTMENT FOR WORK AND PENSIONS ,Employment Programmes,25/11/2015,COMMUNITY WORK PLACEMENTS - JOB OUTCOME FEE,WWEP EP FG CEP CWP CPA04 - LONDON (EAST),G4S REGIONAL MANAGEMENT UK & I LTD,2033952633,"7,072"
DEPARTMENT FOR WORK AND PENSIONS ,Corporate,17/11/2015,TREDDS IS IT CONSULTANCY NON ADVICE,OPS OPE C&I BUSINESS GENERATED CHANGE - IT,HP ENTERPRISE SERVICES UK LTD,2033941139,"7,056"
DEPARTMENT FOR WORK AND PENSIONS ,Employment Programmes,13/11/2015,WP ESA (IR) WRAG 3/6 MTH MANDATORY SUSTAINMENT OUTCOME PAYMENT,WWEG EP SCOTLAND INGEUS UK,INGEUS UK LTD,2033935412,"7,050"
DEPARTMENT FOR WORK AND PENSIONS ,Employment Programmes,13/11/2015,WP ESA MANDATORY (IR) WRAG 12M PG6 FLOW SUSTAINMENT FEE,WWEG EP SCOTLAND INGEUS UK,INGEUS UK LTD,2033935412,"7,050"
DEPARTMENT FOR WORK AND PENSIONS ,Corporate,26/11/2015,STAFF TRAVEL,CHG UC PATHFINDER DELIVERY MANAGEMENT,ENTERPRISE RENT A CAR UK LTD,2033956402,"7,023"
DEPARTMENT FOR WORK AND PENSIONS ,Employment Programmes,13/11/2015,WP JSA NEET SUSTAINMENT OUTCOME PAYMENT,WWEG EP W MIDLANDS COV WARW STAFFS AND MARCHES ESG,ESG HOLDINGS LIMITED,2033937468,"7,000"
DEPARTMENT FOR WORK AND PENSIONS ,Employment Programmes,05/11/2015,COMMUNITY WORK PLACEMENTS - SHORT COMPLETION FEE,WWEP EP FG CEP CWP CPA18 - YORKSHIRE & HUMBER (3),G4S REGIONAL MANAGEMENT UK & I LTD,2033924269,"7,000"
DEPARTMENT FOR WORK AND PENSIONS ,Employment Programmes,06/11/2015,WP JSA NEET SUSTAINMENT OUTCOME PAYMENT,WWEG EP EAST MIDLANDS INGEUS UK,INGEUS UK LTD,2033926706,"7,000"
DEPARTMENT FOR WORK AND PENSIONS ,Corporate,13/11/2015,CONNECTIVITY,CIO ITLR PSN CONNECTIVITY,BT GLOBAL SERVICES,2033934873,"6,999"
DEPARTMENT FOR WORK AND PENSIONS ,Employment Programmes,23/11/2015,WP JSA 18-24 JOB SUSTAINMENT OUTCOME PAYMENT,WWEG EP EAST MIDLANDS INGEUS UK,INGEUS UK LTD,2033948650,"6,970"
DEPARTMENT FOR WORK AND PENSIONS ,Corporate,26/11/2015,CONTRACTORS & STAFF SUBSTITUTIONS,CHG BTG ENGAGE,CAPITA BUSINESS SERVICES LTD,2033956009,"6,963"
DEPARTMENT FOR WORK AND PENSIONS ,Housing Benefits,13/11/2015,HOUSING BENEFIT ADMINISTRATION,HB ENGLAND,CORPORATION OF LONDON,2033934042,"6,955"
DEPARTMENT FOR WORK AND PENSIONS ,Employment Programmes,17/11/2015,COMMUNITY WORK PLACEMENTS - START FEE,WWEP EP FG CEP CWP CPA04 - LONDON (EAST),G4S REGIONAL MANAGEMENT UK & I LTD,2033941041,"6,915"
DEPARTMENT FOR WORK AND PENSIONS ,Employment Programmes,25/11/2015,COMMUNITY WORK PLACEMENTS - START FEE,WWEP EP FG CEP CWP CPA04 - LONDON (EAST),G4S REGIONAL MANAGEMENT UK & I LTD,2033952633,"6,915"
DEPARTMENT FOR WORK AND PENSIONS ,Employment Programmes,11/11/2015,WP JSA 25+ SUSTAINMENT OUTCOME PAYMENT,WWEG EP NORTH EAST Y AND H G4S,G4S REGIONAL MANAGEMENT UK & I LTD,2033931267,"6,880"
DEPARTMENT FOR WORK AND PENSIONS ,Employment Programmes,19/11/2015,WP JSA 25+ SUSTAINMENT OUTCOME PAYMENT,WWEG EP NORTH WEST GM CHES AND WARR G4S,G4S REGIONAL MANAGEMENT UK & I LTD,2033946260,"6,880"
DEPARTMENT FOR WORK AND PENSIONS ,Corporate,16/11/2015,TREDDS APPS DEV MANDAYS,CIO IT OGD HMRC ITLR,HP ENTERPRISE SERVICES UK LTD,2033938951,"6,868"
DEPARTMENT FOR WORK AND PENSIONS ,Employment Programmes,04/11/2015,OUTCOME FEE,WWEG EP FG CEP ENGLISH LANGUAGE REQUIREMENT (SCOTLAND),INGEUS UK LTD,2033922492,"6,854"
DEPARTMENT FOR WORK AND PENSIONS ,Employment Programmes,03/11/2015,WP JSA 25+ JOB OUTCOME PAYMENTWP JSA 25+ JOB OUTCOME PAYMENT,WWEG EP SOUTH EAST SURR SUSSX AND KENT G4S,G4S REGIONAL MANAGEMENT UK & I LTD,2033919744,"6,840"
DEPARTMENT FOR WORK AND PENSIONS ,Corporate,26/11/2015,CONTRACTORS & STAFF SUBSTITUTIONS,CHG DEPARTMENTAL & BUSINESS STRATEGY (RECHARGES),CAPITA BUSINESS SERVICES LTD,2033956009,"6,828"
DEPARTMENT FOR WORK AND PENSIONS ,Employment Programmes,06/11/2015,WP ESA (IR) WRAG 3/6 MTH MANDATORY SUSTAINMENT OUTCOME PAYMENT,WWEG EP SCOTLAND INGEUS UK,INGEUS UK LTD,2033926706,"6,815"
DEPARTMENT FOR WORK AND PENSIONS ,Employment Programmes,13/11/2015,WP ESA (IR) WRAG 3/6 MTH MANDATORY SUSTAINMENT OUTCOME PAYMENT,WWEG EP NORTH WEST MERS HAL CUMB AND LANCS INGEUS UK,INGEUS UK LTD,2033935412,"6,815"
DEPARTMENT FOR WORK AND PENSIONS ,Employment Programmes,03/11/2015,WP JSA 18-24 JOB SUSTAINMENT OUTCOME PAYMENT,WWEG EP SOUTH EAST SURR SUSSX AND KENT G4S,G4S REGIONAL MANAGEMENT UK & I LTD,2033919744,"6,800"
DEPARTMENT FOR WORK AND PENSIONS ,Employment Programmes,23/11/2015,WP JSA 18-24 JOB SUSTAINMENT OUTCOME PAYMENT,WWEG EP NORTH WEST GM CHES AND WARR G4S,G4S REGIONAL MANAGEMENT UK & I LTD,2033949009,"6,800"
DEPARTMENT FOR WORK AND PENSIONS ,Employment Programmes,10/11/2015,WP JSA 18-24 JOB SUSTAINMENT OUTCOME PAYMENT,WWEG EP NORTH EAST INGEUS UK,INGEUS UK LTD,2033930160,"6,800"
DEPARTMENT FOR WORK AND PENSIONS ,Employment Programmes,27/11/2015,WP JSA 18-24 JOB SUSTAINMENT OUTCOME PAYMENT,WWEG EP WEST LONDON INGEUS UK,INGEUS UK LTD,2033956864,"6,800"
DEPARTMENT FOR WORK AND PENSIONS ,Employment Programmes,03/11/2015,WP JSA 18-24 JOB OUTCOME PAYMENT,WWEG EP SOUTH EAST SURR SUSSX AND KENT G4S,G4S REGIONAL MANAGEMENT UK & I LTD,2033919744,"6,786"
DEPARTMENT FOR WORK AND PENSIONS ,Corporate,19/11/2015,CONTRACTORS & STAFF SUBSTITUTIONS,CHG BTG ENGAGE,CAPITA BUSINESS SERVICES LTD,2033944240,"6,785"
DEPARTMENT FOR WORK AND PENSIONS ,Employment Programmes,16/11/2015,COMMUNITY WORK PLACEMENTS - SHORT COMPLETION FEE,WWEP EP FG CEP CWP CPA09 - SOUTH EAST (1),G4S REGIONAL MANAGEMENT UK & I LTD,2033938983,"6,767"
DEPARTMENT FOR WORK AND PENSIONS ,Employment Programmes,02/11/2015,COMMUNITY WORK PLACEMENTS - LONG COMPLETION FEE,WWEP EP FG CEP CWP CPA17 - YORKSHIRE & HUMBER (2),INTERSERVE WORKING FUTURES,2033919185,"6,752"
DEPARTMENT FOR WORK AND PENSIONS ,Employment Programmes,18/11/2015,COMMUNITY WORK PLACEMENTS - LONG COMPLETION FEE,WWEP EP FG CEP CWP CPA17 - YORKSHIRE & HUMBER (2),INTERSERVE WORKING FUTURES,2033943480,"6,752"
DEPARTMENT FOR WORK AND PENSIONS ,Employment Programmes,19/11/2015,COMMUNITY WORK PLACEMENTS - LONG COMPLETION FEE,WWEP EP FG CEP CWP CPA17 - YORKSHIRE & HUMBER (2),INTERSERVE WORKING FUTURES,2033945494,"6,752"
DEPARTMENT FOR WORK AND PENSIONS ,Employment Programmes,13/11/2015,WP JSA EARLY ACCESS SUSTAINMENT OUTCOME PAYMENT,WWEG EP EAST MIDLANDS INGEUS UK,INGEUS UK LTD,2033935412,"6,750"
DEPARTMENT FOR WORK AND PENSIONS ,Employment Programmes,13/11/2015,WP JSA NEET SUSTAINMENT OUTCOME PAYMENT,WWEG EP EAST OF ENGLAND INGEUS UK,INGEUS UK LTD,2033935412,"6,750"
DEPARTMENT FOR WORK AND PENSIONS ,Employment Programmes,20/11/2015,WP JSA NEET SUSTAINMENT OUTCOME PAYMENT,WWEG EP EAST MIDLANDS INGEUS UK,INGEUS UK LTD,2033948004,"6,750"
DEPARTMENT FOR WORK AND PENSIONS ,Corporate,18/11/2015,STAFF TRAINING VAT RECOVERABLE,COMMS OTHER,CAPITA CIVIL SERVICE LEARNING,2033941895,"6,726"
DEPARTMENT FOR WORK AND PENSIONS ,Corporate,10/11/2015,CONTRACTORS & STAFF SUBSTITUTIONS,CHG PENSION TRACING SERVICE,CAPITA BUSINESS SERVICES LTD,2033929315,"6,711"
DEPARTMENT FOR WORK AND PENSIONS ,Corporate,19/11/2015,CONTRACTORS & STAFF SUBSTITUTIONS,CHG BTG DELIVER MOBILISE,CAPITA BUSINESS SERVICES LTD,2033944240,"6,693"
DEPARTMENT FOR WORK AND PENSIONS ,Employment Programmes,02/11/2015,COMMUNITY WORK PLACEMENTS - SHORT COMPLETION FEE,WWEP EP FG CEP CWP CPA04 - LONDON (EAST),G4S REGIONAL MANAGEMENT UK & I LTD,2033918582,"6,679"
DEPARTMENT FOR WORK AND PENSIONS ,Employment Programmes,27/11/2015,WP JSA 25+ SUSTAINMENT OUTCOME PAYMENT,WWEG EP WEST YORKSHIRE BEST LTD,INTERSERVE WORKING FUTURES,2033956783,"6,665"
DEPARTMENT FOR WORK AND PENSIONS ,Corporate,17/11/2015,TREDDS APPS DEV MANDAYS,CIO NISSA OGD,HP ENTERPRISE SERVICES UK LTD,2033941139,"6,636"
DEPARTMENT FOR WORK AND PENSIONS ,Employment Programmes,17/11/2015,WP JSA 18-24 JOB SUSTAINMENT OUTCOME PAYMENT,WWEG EP EAST LONDON CAREERS DEVELOPMENT GROUP,CAREERS DEVELOPMENT GROUP,2033940865,"6,630"
DEPARTMENT FOR WORK AND PENSIONS ,Employment Programmes,02/11/2015,WP JSA 18-24 JOB SUSTAINMENT OUTCOME PAYMENT,WWEG EP SOUTH EAST SURR SUSSX AND KENT G4S,G4S REGIONAL MANAGEMENT UK & I LTD,2033918582,"6,630"
DEPARTMENT FOR WORK AND PENSIONS ,Employment Programmes,16/11/2015,WP JSA 18-24 JOB SUSTAINMENT OUTCOME PAYMENT,WWEG EP NORTH WEST GM CHES AND WARR G4S,G4S REGIONAL MANAGEMENT UK & I LTD,2033938983,"6,630"
DEPARTMENT FOR WORK AND PENSIONS ,Employment Programmes,24/11/2015,WP JSA 18-24 JOB SUSTAINMENT OUTCOME PAYMENT,WWEG EP NORTH WEST MERS HAL CUMB AND LANCS INGEUS UK,INGEUS UK LTD,2033952315,"6,630"
DEPARTMENT FOR WORK AND PENSIONS ,Employment Programmes,04/11/2015,SERVICE FEE,WWEG EP CORE MWA CPA YORKSHIRE AND HUMBER,INTERSERVE WORKING FUTURES,2033921469,"6,613"
DEPARTMENT FOR WORK AND PENSIONS ,Employment Programmes,05/11/2015,WP JSA 18-24 JOB OUTCOME PAYMENT,WWEG EP SOUTH EAST SURR SUSSX AND KENT G4S,G4S REGIONAL MANAGEMENT UK & I LTD,2033924269,"6,612"
DEPARTMENT FOR WORK AND PENSIONS ,Employment Programmes,19/11/2015,COMMUNITY WORK PLACEMENTS - START FEE,WWEP EP FG CEP CWP CPA04 - LONDON (EAST),G4S REGIONAL MANAGEMENT UK & I LTD,2033946260,"6,601"
DEPARTMENT FOR WORK AND PENSIONS ,Employment Programmes,26/11/2015,COMMUNITY WORK PLACEMENTS - START FEE,WWEP EP FG CEP CWP CPA04 - LONDON (EAST),G4S REGIONAL MANAGEMENT UK & I LTD,2033955320,"6,601"
DEPARTMENT FOR WORK AND PENSIONS ,Employment Programmes,04/11/2015,WP JSA 25+ JOB OUTCOME PAYMENTWP JSA 25+ JOB OUTCOME PAYMENT,WWEG EP WEST LONDON INGEUS UK,INGEUS UK LTD,2033922492,"6,588"
DEPARTMENT FOR WORK AND PENSIONS ,Employment Programmes,13/11/2015,WP ESA MANDATORY (IR) WRAG 12M PG6 FLOW SUSTAINMENT FEE,WWEG EP EAST MIDLANDS INGEUS UK,INGEUS UK LTD,2033935412,"6,580"
DEPARTMENT FOR WORK AND PENSIONS ,Employment Programmes,20/11/2015,WP ESA (IR) WRAG 3/6 MTH MANDATORY SUSTAINMENT OUTCOME PAYMENT,WWEG EP NORTH EAST INGEUS UK,INGEUS UK LTD,2033948004,"6,580"
DEPARTMENT FOR WORK AND PENSIONS ,Employment Programmes,20/11/2015,WP JSA NEET SUSTAINMENT OUTCOME PAYMENT,WWEG EP W MIDLANDS COV WARW STAFFS AND MARCHES ESG,ESG HOLDINGS LIMITED,2033946829,"6,500"
DEPARTMENT FOR WORK AND PENSIONS ,Employment Programmes,06/11/2015,WP JSA NEET SUSTAINMENT OUTCOME PAYMENT,WWEG EP WEST YORKSHIRE INGEUS UK,INGEUS UK LTD,2033926706,"6,500"
DEPARTMENT FOR WORK AND PENSIONS ,Employment Programmes,13/11/2015,WP JSA NEET SUSTAINMENT OUTCOME PAYMENT,WWEG EP NORTH WEST MERS HAL CUMB AND LANCS INGEUS UK,INGEUS UK LTD,2033935412,"6,500"
DEPARTMENT FOR WORK AND PENSIONS ,Employment Programmes,27/11/2015,WP JSA EARLY ACCESS SUSTAINMENT OUTCOME PAYMENT,WWEG EP SCOTLAND INGEUS UK,INGEUS UK LTD,2033956864,"6,500"
DEPARTMENT FOR WORK AND PENSIONS ,Employment Programmes,27/11/2015,WP JSA NEET SUSTAINMENT OUTCOME PAYMENT,WWEG EP EAST MIDLANDS INGEUS UK,INGEUS UK LTD,2033956864,"6,500"
DEPARTMENT FOR WORK AND PENSIONS ,Employment Programmes,24/11/2015,WP JSA 25+ JOB OUTCOME PAYMENTWP JSA 25+ JOB OUTCOME PAYMENT,WWEG EP SOUTH EAST SURR SUSSX AND KENT G4S,G4S REGIONAL MANAGEMENT UK & I LTD,2033951319,"6,498"
DEPARTMENT FOR WORK AND PENSIONS ,Corporate,04/11/2015,CONTRACTORS & STAFF SUBSTITUTIONS,F&C CD STRATEGY AND BUSINESS MANAGEMENT,CAPITA BUSINESS SERVICES LTD,2033921245,"6,462"
DEPARTMENT FOR WORK AND PENSIONS ,Employment Programmes,13/11/2015,WP JSA 18-24 JOB SUSTAINMENT OUTCOME PAYMENT,WWEG EP NORTH WEST GM CHES AND WARR G4S,G4S REGIONAL MANAGEMENT UK & I LTD,2033937597,"6,460"
DEPARTMENT FOR WORK AND PENSIONS ,Employment Programmes,09/11/2015,WP JSA 18-24 JOB SUSTAINMENT OUTCOME PAYMENT,WWEG EP EAST OF ENGLAND INGEUS UK,INGEUS UK LTD,2033927516,"6,460"
DEPARTMENT FOR WORK AND PENSIONS ,Employment Programmes,12/11/2015,WP JSA 18-24 JOB SUSTAINMENT OUTCOME PAYMENT,WWEG EP NORTH EAST INGEUS UK,INGEUS UK LTD,2033933067,"6,460"
DEPARTMENT FOR WORK AND PENSIONS ,Employment Programmes,17/11/2015,WP JSA 18-24 JOB SUSTAINMENT OUTCOME PAYMENT,WWEG EP NORTH WEST MERS HAL CUMB AND LANCS INGEUS UK,INGEUS UK LTD,2033940111,"6,460"
DEPARTMENT FOR WORK AND PENSIONS ,Employment Programmes,19/11/2015,WP JSA 18-24 JOB SUSTAINMENT OUTCOME PAYMENT,WWEG EP NORTH EAST INGEUS UK,INGEUS UK LTD,2033945576,"6,460"
DEPARTMENT FOR WORK AND PENSIONS ,Employment Programmes,30/11/2015,WP JSA 18-24 JOB SUSTAINMENT OUTCOME PAYMENT,WWEG EP NORTH WEST MERS HAL CUMB AND LANCS INGEUS UK,INGEUS UK LTD,2033960714,"6,460"
DEPARTMENT FOR WORK AND PENSIONS ,Employment Programmes,25/11/2015,WP JSA 25+ SUSTAINMENT OUTCOME PAYMENT,WWEG EP NORTH EAST Y AND H G4S,G4S REGIONAL MANAGEMENT UK & I LTD,2033952633,"6,450"
DEPARTMENT FOR WORK AND PENSIONS ,Employment Programmes,11/11/2015,COMMUNITY WORK PLACEMENTS - START FEE,WWEP EP FG CEP CWP CPA02 - EAST MIDLANDS,G4S REGIONAL MANAGEMENT UK & I LTD,2033931267,"6,448"
DEPARTMENT FOR WORK AND PENSIONS ,Employment Programmes,24/11/2015,COMMUNITY WORK PLACEMENTS - START FEE,WWEP EP FG CEP CWP CPA02 - EAST MIDLANDS,G4S REGIONAL MANAGEMENT UK & I LTD,2033951319,"6,448"
DEPARTMENT FOR WORK AND PENSIONS ,Employment Programmes,19/11/2015,WP JSA 25+ JOB OUTCOME PAYMENTWP JSA 25+ JOB OUTCOME PAYMENT,WWEG EP EAST LONDON CAREERS DEVELOPMENT GROUP,CAREERS DEVELOPMENT GROUP,2033944455,"6,444"
DEPARTMENT FOR WORK AND PENSIONS ,Corporate,04/11/2015,CONTRACTORS & STAFF SUBSTITUTIONS,CHG DEPARTMENTAL & BUSINESS STRATEGY (RECHARGES),CAPITA BUSINESS SERVICES LTD,2033921245,"6,428"
DEPARTMENT FOR WORK AND PENSIONS ,Employment Programmes,05/11/2015,COMMUNITY WORK PLACEMENTS - START FEE,WWEP EP FG CEP CWP CPA16 - YORKSHIRE & HUMBER (1),INTERSERVE WORKING FUTURES,2033924109,"6,392"
DEPARTMENT FOR WORK AND PENSIONS ,Employment Programmes,02/11/2015,COMMUNITY WORK PLACEMENTS - LONG COMPLETION FEE,WWEP EP FG CEP CWP CPA16 - YORKSHIRE & HUMBER (1),INTERSERVE WORKING FUTURES,2033919185,"6,392"
DEPARTMENT FOR WORK AND PENSIONS ,Corporate,04/11/2015,CONTRACTORS & STAFF SUBSTITUTIONS,OPS WDC WSD ATW SLT & BUSINESS SUPPORT TEAM,CAPITA BUSINESS SERVICES LTD,2033921245,"6,388"
DEPARTMENT FOR WORK AND PENSIONS ,Corporate,19/11/2015,CONTRACTORS & STAFF SUBSTITUTIONS,CIO EUCS CONTRACT SIAM TOOLING,CAPITA BUSINESS SERVICES LTD,2033944240,"6,388"
DEPARTMENT FOR WORK AND PENSIONS ,Employment Programmes,03/11/2015,COMMUNITY WORK PLACEMENTS - START FEE,WWEP EP FG CEP CWP CPA06 - NORTH WEST (1),G4S REGIONAL MANAGEMENT UK & I LTD,2033919744,"6,356"
DEPARTMENT FOR WORK AND PENSIONS ,Employment Programmes,13/11/2015,COMMUNITY WORK PLACEMENTS - START FEE,WWEP EP FG CEP CWP CPA06 - NORTH WEST (1),G4S REGIONAL MANAGEMENT UK & I LTD,2033937597,"6,356"
DEPARTMENT FOR WORK AND PENSIONS ,Employment Programmes,03/11/2015,WP JSA 25+ JOB OUTCOME PAYMENTWP JSA 25+ JOB OUTCOME PAYMENT,WWEG EP W MIDLANDS COV WARW STAFFS AND MARCHES ESG,ESG HOLDINGS LIMITED,2033919877,"6,348"
DEPARTMENT FOR WORK AND PENSIONS ,Employment Programmes,06/11/2015,WP ESA MANDATORY (IR) WRAG 12M PG6 FLOW SUSTAINMENT FEE,WWEG EP NORTH WEST MERS HAL CUMB AND LANCS INGEUS UK,INGEUS UK LTD,2033926706,"6,345"
DEPARTMENT FOR WORK AND PENSIONS ,Employment Programmes,09/11/2015,WP ESA (IR) WRAG 3/6 MTH MANDATORY SUSTAINMENT OUTCOME PAYMENT,WWEG EP EAST MIDLANDS INGEUS UK,INGEUS UK LTD,2033927516,"6,345"
